{"text_format":"1","workbook":"xlsx","n_sheets":9,"sheets":["作成","基本情報","報告書","避難確保計画","緊急連絡先","緊急連絡網","避難誘導方法","チェックリスト","町名一覧"],"not_rendered":{"charts":0,"images":4,"macros":1,"external_links":0,"defined_names":20,"comments":2,"pivot_tables":0},"unopened":[],"bounds":{"document_bytes":16777216,"sheet_cells":100000,"rows_first":2000,"rows_last":500,"rows_between":2000,"halvings":0,"cell_chars":16384,"cell_head_chars":4096},"cells_cut":0,"cells_raw":0,"read":"whole","date_system":"1900"}

{"sheet":"作成","index":0,"n_rows":70,"n_cols":13,"rows_kept":70,"cut":false,"hidden":false,"merged":[]}
["避難確保計画作成シート",null,null,null,null,null,null,"ダウンロードしたこのファイルを、デスクトップに保存してから入力してください。"]
[null,null,{"$f":"IF(M3=1,\"計画作成・報告義務はありません\",IF(AND(I4<>\"\",I10<>\"\"),IF(M3=4,\"計画作成・報告義務があります\",IF(AND(0<M3,M3<4),\"計画作成・報告義務はありません\",\"\")),\"\"))","v":""}]
[null,null,null,null,null,null,null,null,null,null,null,null,{"$f":"M4+M10","v":0}]
[1,"要配慮者利用施設ですか",null,null,null,null,null,null,null,{"$f":"IF(I4=\"\",\"←選択してください\",\"\")","v":"←選択してください"},null,null,{"$f":"IF(I4=\"はい\",2,IF(I4=\"いいえ\",1,0))","v":0}]
[null,"⇒","「要配慮者利用施設」"]
[null,null,"高齢者や障害者・乳幼児等が利用する社会福祉施設や、学校、医療施設その他主として防災上の配慮を要する者が利用する施設"]
[]
[null,{"$f":"IF(M8=2,\"⇒\",\"\")","v":""},null,{"$f":"IF(AND(M8=2,C8=\"\"),\"←施設種別を選択してください\",\"\")","v":""},null,null,null,null,null,null,null,null,{"$f":"M4","v":0}]
[]
[2,"洪水浸水想定区域もしくは土砂災害警戒区域またはその両方に該当する場所にありますか",null,null,null,null,null,null,null,{"$f":"IF(I10=\"\",\"←選択してください\",\"\")","v":"←選択してください"},null,null,{"$f":"IF(I10=\"はい\",2,IF(I10=\"いいえ\",1,0))","v":0}]
[]
[null,null,null,null,null,null,null,null,null,{"$f":"IF(AND(I10=\"はい\",I12=\"\"),\"←選択してください\",\"\")","v":""},null,null,{"$f":"IF(I12=\"洪水浸水想定あり\",1,IF(I12=\"土砂災害想定あり\",2,IF(I12=\"洪水・土砂両方の想定あり\",3,\"\")))","v":""}]
[null,null,"「せんだいくらしのマップ」で掲載マップ一覧の「防災」をクリック"]
[null,null,"「洪水ハザードマップ」「その他河川ハザードマップ」「土砂災害危険地マップ」それぞれで施設所在地の状況を確認"]
[]
[null,{"$f":"IF(AND(A19=0,M16=4,OR(I12=\"洪水浸水想定あり\",I12=\"洪水・土砂両方の想定あり\")),\"↓該当河川の情報を入力してください\",\"\")","v":""},null,null,null,null,null,{"$f":"IF(AND(G19=0,M16=4,OR(I12=\"土砂災害想定あり\",I12=\"洪水・土砂両方の想定あり\")),\"↓想定される土砂災害を入力してください\",\"\")","v":""},null,null,null,null,{"$f":"M3","v":0}]
[null,"洪水浸水が想定される河川と浸水深",null,null,null,null,null,"想定される土砂災害の種類（がけ崩れ、土石流、地すべり）"]
[null,"早期の立ち退き避難が必要な区域に該当するか",null,null,null,null,null,"区域の種別（警戒区域、特別警戒区域）"]
[{"$f":"COUNTIFS(B20:B51,\"☑\")","v":0},"洪水","対象河川","浸水深","早期の立ち退き避難が必要な区域か",null,{"$f":"COUNTIFS(H20:H51,\"☑\")","v":0},"土砂災害","種別","区域"]
[{"$f":"IF(B20=\"☑\",1,\"\")","v":""},"□","名取川",null,null,null,{"$f":"IF(H20=\"☑\",1,\"\")","v":""},"□","がけ崩れ（急傾斜地の崩壊）",null,null,null,"□"]
[{"$f":"IF(COUNTIF($B$20:B21,\"☑\")=MAX($A$20:A20),\"\",COUNTIF($B$20:B21,\"☑\"))","v":""},"□","広瀬川下流",null,null,null,{"$f":"IF(COUNTIF($H$20:H21,\"☑\")=MAX($G$20:G20),\"\",COUNTIF($H$20:H21,\"☑\"))","v":""},"□","土石流"]
[{"$f":"IF(COUNTIF($B$20:B22,\"☑\")=MAX($A$20:A21),\"\",COUNTIF($B$20:B22,\"☑\"))","v":""},"□","七北田川下流",null,null,null,{"$f":"IF(COUNTIF($H$20:H22,\"☑\")=MAX($G$20:G21),\"\",COUNTIF($H$20:H22,\"☑\"))","v":""},"□","地すべり"]
[{"$f":"IF(COUNTIF($B$20:B23,\"☑\")=MAX($A$20:A22),\"\",COUNTIF($B$20:B23,\"☑\"))","v":""},"□","梅田川下流"]
[{"$f":"IF(COUNTIF($B$20:B24,\"☑\")=MAX($A$20:A23),\"\",COUNTIF($B$20:B24,\"☑\"))","v":""},"□","砂押川"]
[{"$f":"IF(COUNTIF($B$20:B25,\"☑\")=MAX($A$20:A24),\"\",COUNTIF($B$20:B25,\"☑\"))","v":""},"□","七北田川中流"]
[{"$f":"IF(COUNTIF($B$20:B26,\"☑\")=MAX($A$20:A25),\"\",COUNTIF($B$20:B26,\"☑\"))","v":""},"□","旧笊川　"]
[{"$f":"IF(COUNTIF($B$20:B27,\"☑\")=MAX($A$20:A26),\"\",COUNTIF($B$20:B27,\"☑\"))","v":""},"□","笊川下流"]
[{"$f":"IF(COUNTIF($B$20:B28,\"☑\")=MAX($A$20:A27),\"\",COUNTIF($B$20:B28,\"☑\"))","v":""},"□","増田川"]
[{"$f":"IF(COUNTIF($B$20:B29,\"☑\")=MAX($A$20:A28),\"\",COUNTIF($B$20:B29,\"☑\"))","v":""},"□","藤川"]
[{"$f":"IF(COUNTIF($B$20:B30,\"☑\")=MAX($A$20:A29),\"\",COUNTIF($B$20:B30,\"☑\"))","v":""},"□","笊川上流"]
[{"$f":"IF(COUNTIF($B$20:B31,\"☑\")=MAX($A$20:A30),\"\",COUNTIF($B$20:B31,\"☑\"))","v":""},"□","後田川"]
[{"$f":"IF(COUNTIF($B$20:B32,\"☑\")=MAX($A$20:A31),\"\",COUNTIF($B$20:B32,\"☑\"))","v":""},"□","木流堀川"]
[{"$f":"IF(COUNTIF($B$20:B33,\"☑\")=MAX($A$20:A32),\"\",COUNTIF($B$20:B33,\"☑\"))","v":""},"□","坪沼川"]
[{"$f":"IF(COUNTIF($B$20:B34,\"☑\")=MAX($A$20:A33),\"\",COUNTIF($B$20:B34,\"☑\"))","v":""},"□","支倉川"]
[{"$f":"IF(COUNTIF($B$20:B35,\"☑\")=MAX($A$20:A34),\"\",COUNTIF($B$20:B35,\"☑\"))","v":""},"□","七北田川上流"]
[{"$f":"IF(COUNTIF($B$20:B36,\"☑\")=MAX($A$20:A35),\"\",COUNTIF($B$20:B36,\"☑\"))","v":""},"□","梅田川上流"]
[{"$f":"IF(COUNTIF($B$20:B37,\"☑\")=MAX($A$20:A36),\"\",COUNTIF($B$20:B37,\"☑\"))","v":""},"□","要害川"]
[{"$f":"IF(COUNTIF($B$20:B38,\"☑\")=MAX($A$20:A37),\"\",COUNTIF($B$20:B38,\"☑\"))","v":""},"□","仙台川"]
[{"$f":"IF(COUNTIF($B$20:B39,\"☑\")=MAX($A$20:A38),\"\",COUNTIF($B$20:B39,\"☑\"))","v":""},"□","高柳川"]
[{"$f":"IF(COUNTIF($B$20:B40,\"☑\")=MAX($A$20:A39),\"\",COUNTIF($B$20:B40,\"☑\"))","v":""},"□","広瀬川上流"]
[{"$f":"IF(COUNTIF($B$20:B41,\"☑\")=MAX($A$20:A40),\"\",COUNTIF($B$20:B41,\"☑\"))","v":""},"□","名取川（新余方）"]
[{"$f":"IF(COUNTIF($B$20:B42,\"☑\")=MAX($A$20:A41),\"\",COUNTIF($B$20:B42,\"☑\"))","v":""},"□","名取川上流"]
[{"$f":"IF(COUNTIF($B$20:B43,\"☑\")=MAX($A$20:A42),\"\",COUNTIF($B$20:B43,\"☑\"))","v":""},"□","斉勝川"]
[{"$f":"IF(COUNTIF($B$20:B44,\"☑\")=MAX($A$20:A43),\"\",COUNTIF($B$20:B44,\"☑\"))","v":""},"□","芋沢川"]
[{"$f":"IF(COUNTIF($B$20:B45,\"☑\")=MAX($A$20:A44),\"\",COUNTIF($B$20:B45,\"☑\"))","v":""},"□","大倉川"]
[{"$f":"IF(COUNTIF($B$20:B46,\"☑\")=MAX($A$20:A45),\"\",COUNTIF($B$20:B46,\"☑\"))","v":""},"□","青下川"]
[{"$f":"IF(COUNTIF($B$20:B47,\"☑\")=MAX($A$20:A46),\"\",COUNTIF($B$20:B47,\"☑\"))","v":""},"□","新川"]
[{"$f":"IF(COUNTIF($B$20:B48,\"☑\")=MAX($A$20:A47),\"\",COUNTIF($B$20:B48,\"☑\"))","v":""},"□","岩の川"]
[{"$f":"IF(COUNTIF($B$20:B49,\"☑\")=MAX($A$20:A48),\"\",COUNTIF($B$20:B49,\"☑\"))","v":""},"□","碁石川"]
[{"$f":"IF(COUNTIF($B$20:B50,\"☑\")=MAX($A$20:A49),\"\",COUNTIF($B$20:B50,\"☑\"))","v":""},"□","本砂金川"]
[{"$f":"IF(COUNTIF($B$20:B51,\"☑\")=MAX($A$20:A40),\"\",COUNTIF($B$20:B51,\"☑\"))","v":""},"□"]
[]
[]
[3,"「基本情報」シートを入力してください。"]
[4,"「報告書」シートの内容を確認してください。"]
[5,"「避難確保計画」シートを入力してください。"]
[6,"「チェックリスト」シートを入力してください。"]
[7,"「報告書」「避難確保計画」「チェックリスト」を減災推進課へ提出してください。"]
[null,"Eメール","hinan_kakuho@city.sendai.jp",null,"作成した各PDFデータを添付してください。"]
[null,null,null,null,"　　利用者の緊急連絡先など個人情報が含まれる場合があるため、このExcelファイル自体は提出しないでください。"]
[null,"FAX","022-214-8096"]
[]
[null,"郵送／持参","〒980-8671"]
[null,null,"仙台市青葉区国分町三丁目７番１号"]
[null,null,"仙台市危機管理局　防災・減災部"]
[null,null,"減災推進課　地域支援係"]
[]
["お問い合わせ"]
[null,"電話","022-214-3048"]
[null,null,"減災推進課　地域支援係　避難確保計画担当"]

{"sheet":"基本情報","index":1,"n_rows":56,"n_cols":6,"rows_kept":56,"cut":false,"hidden":false,"merged":[]}
["基本情報入力シート"]
[]
[1,null,"報告者（所有者又は管理者）"]
[null,1,null,"住所",null,"区"]
[null,null,null,null,null,"町名"]
[null,null,null,null,null,"番地以下"]
[null,null,null,null,{"$f":"IF(E4<>\"\",CONCATENATE(\"仙台市\",E4,E5,E6),\"\")","v":""}]
[]
[null,2,null,"氏名"]
[null,3,null,"施設電話番号"]
[null,4,null,"施設FAX番号"]
[null,5,null,"メールアドレス"]
[]
[null,6,null,"報告年月日"]
[]
[2,null,"対象施設"]
[null,1,null,"施設所在地",null,"区"]
[null,null,null,null,null,"町名"]
[null,null,null,null,null,"番地以下"]
[null,null,null,null,{"$f":"IF(E17<>\"\",CONCATENATE(\"仙台市\",E17,E18,E19),\"\")","v":""}]
[]
[null,2,null,"施設名称"]
[null,3,null,"用途"]
[null,4,null,"その他必要な事項"]
[null,5,null,"職員数"]
[null,6,null,"利用者数"]
[]
[null,7,null,"計画提出理由"]
[]
[3,null,"施設の状況"]
[null,1,null,"構造"]
[null,2,null,"建物の階数"]
[null,3,null,"使用する階"]
[null,4,"昼","利用者"]
[null,5,"昼","施設職員"]
[null,6,"夜間","利用者"]
[null,7,"夜間","施設職員"]
[null,8,"休日","利用者"]
[null,9,"休日","施設職員"]
[]
[4,null,"今回の計画"]
[null,null,"対象となる災害の種別",null,"↓作成シートを基に自動判定されます"]
[null,null,null,"洪水",{"$f":"IF(作成!A19>0,\"該当\",\"非該当\")","v":"非該当"}]
[null,null,null,"土砂災害",{"$f":"IF(作成!G19>0,\"該当\",\"非該当\")","v":"非該当"}]
[]
[5,null,"自衛水防組織"]
[null,null,{"$f":"IF(E15=\"該当\",\"努力義務\",\"\")","v":""},"自衛水防組織"]
[]
[null,null,"※自衛水防組織は対象災害に応じて、以下のように定められています。"]
[]
[null,null,{"$f":"IF(E43=\"該当\",\"　・洪水が対象災害となる場合\",\"\")","v":""}]
[null,null,null,{"$f":"IF(E43=\"該当\",\"自衛水防組織設置の努力義務が課せられています。\",\"\")","v":""}]
[null,null,null,{"$f":"IF(E43=\"該当\",\"（水防法第十五条の三第７項）\",\"\")","v":""}]
[]
[null,null,{"$f":"IF(E44=\"該当\",\"　・土砂災害が対象となる場合\",\"\")","v":""}]
[null,null,null,{"$f":"IF(E44=\"該当\",\"自衛水防組織設置の努力義務規定はありません。\",\"\")","v":""}]

{"sheet":"報告書","index":2,"n_rows":47,"n_cols":13,"rows_kept":47,"cut":false,"hidden":false,"merged":[[46,1,46,9],[5,2,5,8],[14,6,14,9],[16,7,16,9],[17,7,17,9],[18,7,18,9],[29,4,29,9],[30,4,30,9],[31,4,31,9],[32,4,32,9],[33,4,33,6],[33,7,33,9],[15,6,15,9],[33,1,33,3],[10,1,10,2],[23,1,23,9]]}
[]
[]
[null,null,null,null,null,null,null,null,null,null,null,null,"基本情報シートの内容が反映されています。"]
[null,null,null,null,null,null,null,null,null,null,null,null,"誤りがないかご確認ください。"]
[]
[null,null,"避難確保計画作成（変更等）報告書"]
[]
[null,null,null,null,null,null,null,null,{"$f":"基本情報!E14","v":"00:00:00"}]
[]
[null,"（あて先）"]
[null,"仙台市長"]
[]
[]
[null,null,null,null,null,"報告者（所有者又は管理者）"]
[null,null,null,null,null,"住所",{"$f":"基本情報!E7","v":""}]
[null,null,null,null,null,"氏名",{"$f":"基本情報!E9","v":0}]
[null,null,null,null,null,"施設電話番号",null,{"$f":"基本情報!E10","v":0}]
[null,null,null,null,null,"施設FAX番号",null,{"$f":"基本情報!E11","v":0}]
[null,null,null,null,null,"メールアドレス",null,{"$f":"基本情報!E12","v":0}]
[]
[]
[]
[]
[null,"別添のとおり水防法第15条の３第１項及び土砂災害防止法第８条の２の規定に基づく避難確保計画を"]
[{"$f":"IF(基本情報!E28=\"新規作成\",\"☑\",\"□\")","v":"□"},"作成"]
[{"$f":"IF(基本情報!E28=\"計画の変更（更新)\",\"☑\",\"□\")","v":"□"},"変更",null,"しましたので、報告いたします。"]
[{"$f":"IF(基本情報!E28=\"消防計画に追加\",\"☑\",\"□\")","v":"□"},"消防計画に追加"]
[]
[]
[null,"対象施設の所在地",null,null,{"$f":"基本情報!E20","v":""}]
[null,"対象施設の名称",null,null,{"$f":"基本情報!E22","v":0}]
[null,"対象施設の用途",null,null,{"$f":"基本情報!E23","v":0}]
[null,"その他必要な事項",null,null,{"$f":"IF(基本情報!E24<>\"\",基本情報!E24,\"\")","v":""}]
[null,"対象施設の職員数及び利用者数",null,null,{"$f":"IF(基本情報!E25<>\"\",基本情報!E25,\"\")","v":""},null,null,{"$f":"IF(基本情報!E26<>\"\",基本情報!E26,\"\")","v":""}]
[null,"＊受付欄",null,null,"＊経過欄"]
[null,null,null,null,"□","危機管理局減災推進課　送付"]
[null,null,null,null,"□","消防局予防課　送付"]
[]
[]
[]
[]
[]
[]
["※","施設電話番号、施設FAX番号は、避難情報等を受信するためのものであること。"]
["※","受付欄、経過欄は記入しないこと。"]
["※","書類の提出先は、危機管理局減災推進課です。"]
[null,"ただし、消防法に基づく消防計画に避難確保計画を併記した場合は、「本報告書」及び「消防計画作成（変更）届出書」の双方を添付し、建物を管轄する消防署に直接持参のうえ提出して下さい。"]

{"sheet":"避難確保計画","index":3,"n_rows":509,"n_cols":20,"rows_kept":509,"cut":false,"hidden":false,"merged":[[487,6,487,10],[488,6,488,10],[489,6,489,10],[490,6,490,10],[491,6,491,10],[494,6,494,10],[495,6,495,10],[222,1,222,3],[438,6,438,10],[439,6,439,10],[440,6,440,10],[441,6,441,10],[267,2,267,3],[267,4,267,5],[267,6,267,7],[435,2,435,3],[454,3,454,10],[333,2,333,9],[334,2,334,9],[338,2,338,9],[339,2,339,9],[340,2,340,9],[341,2,341,9],[342,2,342,9],[508,3,508,4],[507,5,507,6],[507,7,507,8],[507,9,507,10],[509,3,509,4],[510,3,510,4],[511,3,511,4],[512,3,512,4],[508,5,508,6],[509,5,509,6],[510,5,510,6],[511,5,511,6],[512,5,512,6],[508,7,508,8],[509,7,509,8],[510,7,510,8],[511,7,511,8],[512,7,512,8],[508,9,508,10],[509,9,509,10],[510,9,510,10],[511,9,511,10],[512,9,512,10],[507,3,507,4],[86,2,86,9],[215,1,215,3],[256,1,256,2],[220,1,220,3],[220,4,220,10],[186,1,186,10],[187,1,187,10],[173,8,173,10],[196,8,196,10],[196,5,196,7],[193,2,193,4],[194,2,194,4],[195,2,195,4],[192,5,192,7],[193,5,193,7],[195,5,195,7],[190,1,190,10],[191,8,191,10],[191,5,191,7],[191,2,191,4],[192,2,192,4],[192,8,192,10],[221,4,221,10],[224,4,227,10],[15,1,15,9],[41,2,41,8],[19,5,19,8],[98,2,98,3],[98,7,98,9],[105,2,105,3],[106,2,106,3],[107,2,107,3],[99,2,99,3],[100,2,100,3],[101,2,101,3],[102,2,102,3],[103,2,103,3],[104,2,104,3],[89,1,89,2],[89,3,89,4],[90,5,91,5],[76,2,76,9],[80,2,80,9],[82,2,82,9],[99,7,99,9],[100,7,100,9],[101,7,101,9],[102,7,102,9],[437,6,437,10],[437,3,437,5],[438,4,438,5],[440,4,440,5],[441,4,441,5],[442,4,442,5],[442,6,442,10],[445,6,445,10],[330,1,330,4],[336,1,336,9],[332,2,332,9],[377,6,377,10],[429,6,429,10],[310,2,310,9],[308,2,308,9],[309,2,309,9],[311,2,311,9],[312,2,312,9],[314,2,314,9],[432,1,432,2],[432,3,432,4],[318,2,318,9],[319,2,319,9],[314,1,315,1],[308,1,309,1],[310,1,312,1],[313,2,313,9],[315,2,315,9],[316,2,316,9],[317,2,317,9],[461,3,461,10],[462,3,462,10],[463,3,463,10],[481,1,481,2],[481,3,481,4],[445,4,445,5],[447,4,447,5],[448,4,448,5],[449,4,449,5],[455,3,455,10],[456,3,456,10],[446,6,446,10],[17,4,17,6],[493,6,493,10],[493,3,493,5],[444,6,444,10],[444,3,444,5],[506,3,506,4],[506,5,506,6],[506,7,506,8],[506,9,506,10],[497,4,497,5],[498,4,498,5],[484,2,484,3],[486,3,486,5],[486,6,486,10],[487,4,487,5],[489,4,489,5],[490,4,490,5],[491,4,491,5],[494,4,494,5],[496,4,496,5],[457,3,457,10],[458,3,458,10],[459,3,459,10],[460,3,460,10],[244,2,244,9],[262,2,262,9],[265,2,265,9],[307,2,307,9],[281,2,281,9],[283,2,283,9],[284,2,284,9],[303,2,303,9],[305,2,305,9],[267,8,267,9],[306,1,306,9],[268,2,271,3],[268,1,271,1],[272,1,275,1],[276,1,279,1],[268,5,271,5],[272,5,275,5],[276,5,279,5],[272,2,275,3],[276,2,279,3],[268,4,271,4],[272,4,275,4],[276,4,279,4],[268,8,271,8],[232,2,232,9],[169,5,169,7],[169,8,169,10],[173,5,173,7],[171,8,171,10],[172,8,172,10],[171,5,171,7],[172,5,172,7],[170,8,170,10],[184,5,185,7],[174,5,174,7],[174,8,174,10],[189,1,189,2],[218,2,218,9],[208,1,208,9],[177,8,177,10],[180,5,180,7],[183,5,183,7],[180,8,180,10],[183,8,183,10],[184,2,184,4],[185,2,185,4],[202,8,202,10],[200,5,202,7],[230,2,230,9],[176,5,176,7],[176,8,176,10],[177,5,177,7],[177,2,177,4],[183,2,183,4],[180,2,180,4],[178,2,178,4],[179,2,179,4],[181,2,181,4],[182,2,182,4],[204,1,204,10],[201,2,202,4],[201,8,201,10],[200,2,200,4],[194,5,194,7],[184,8,184,10],[185,8,185,10],[210,1,210,9],[212,1,212,9],[177,1,185,1],[199,2,199,4],[197,1,202,1],[182,5,182,7],[182,8,182,10],[175,5,175,7],[175,8,175,10],[169,2,169,4],[167,1,167,2],[171,2,171,4],[172,2,172,4],[170,2,170,4],[168,1,168,10],[173,1,176,1],[173,2,176,4],[170,1,172,1],[113,2,113,9],[105,4,105,9],[106,4,106,9],[107,4,107,9],[178,8,178,10],[179,8,179,10],[178,5,178,7],[179,5,179,7],[181,5,181,7],[108,1,109,9],[105,1,107,1],[181,8,181,10],[199,5,199,7],[193,1,196,1],[272,9,275,9],[276,9,279,9],[199,8,199,10],[200,8,200,10],[197,2,197,4],[197,5,197,7],[89,9,89,10],[89,6,89,7],[90,8,91,8],[90,9,90,10],[91,9,91,10],[90,6,90,7],[91,6,91,7],[103,7,103,9],[104,7,104,9],[197,8,197,10],[198,2,198,4],[198,5,198,7],[198,8,198,10],[90,2,91,2],[90,3,90,4],[91,3,91,4],[268,9,271,9],[228,1,228,10],[272,8,275,8],[276,8,279,8],[305,13,305,17],[98,1,104,1],[301,1,301,6],[171,13,171,17],[193,13,193,17],[224,13,224,17],[193,8,193,10],[194,8,194,10],[195,8,195,10],[196,2,196,4],[222,4,223,10],[98,4,98,6],[99,4,99,6],[100,4,100,6],[101,4,101,6],[102,4,102,6],[103,4,103,6],[104,4,104,6],[203,1,203,10],[119,1,119,9]]}
[]
[null,null,null,null,null,null,null,null,null,null,null,null,null,null,"洪水","土砂","洪水・土砂",null,"自衛水防組織","早期立退　　　"]
[null,null,null,null,null,null,null,null,null,null,null,null,null,null,{"$f":"IF(基本情報!E43=\"該当\",1,0)","v":0},{"$f":"IF(基本情報!E44=\"該当\",1,0)","v":0},{"$f":"IF(AND(基本情報!E43=\"該当\",基本情報!E44=\"該当\"),1,0)","v":0},{"$f":"SUM(O3:Q3)","v":0},{"$f":"IF(基本情報!E47=\"設置する\",1,0)","v":0},{"$f":"COUNTIFS(H100:J105,\"はい\")","v":0}]
[]
[]
[]
[]
[]
[]
[]
[]
[]
[]
[]
[]
[null,"避難確保計画"]
[]
[null,null,null,null,{"$f":"IF(作成!C8<>\"\",作成!C8,\"\")","v":""}]
[]
[null,null,null,null,"対象災害：",{"$f":"O20","v":""},null,null,null,null,null,null,null,null,{"$f":"IF(Q3=1,\"洪水・土砂災害\",IF(AND(O3=1,P3=0),\"洪水\",IF(AND(O3=0,P3=1),\"土砂災害\",\"\")))","v":""}]
[]
[]
[]
[]
[]
[]
[]
[]
[]
[]
[]
[]
[]
[]
[]
[]
[]
[]
[]
[]
[]
[null,null,{"$f":"IF(基本情報!E22<>\"\",基本情報!E22,\"\")","v":""},null,null,null,null,null,null,null,null,null,null,{"$f":"IF(C42<>\"\",\"←基本情報シートの施設名が反映されています\",\"\")","v":""}]
[]
[null,null,null,null,"年",null,"月","作成",null,null,null,null,null,{"$f":"IF(OR(D44=\"\",F44=\"\"),\"←作成年月を入力してください\",\"\")","v":"←作成年月を入力してください"}]
[null,null,null,null,null,null,null,null,null,null,null,null,null,{"$f":"CONCATENATE(D44,E44,F44,G44,\"版\")","v":"年月版"}]
[]
[]
[]
[null,"－目次－",null,null,null,null,null,null,null,null,null,null,null,"《解説及び留意事項》"]
[null,null,null,null,null,null,null,null,null,null,null,null,null,"避難確保計画に記載すべき事項は水防法施行規則"]
[null,"1. 計画の目的・報告",null,null,null,null,null,null,null,{"$f":"L75","v":1},null,null,null,"（平成12年建設省令第44号）及び土砂災害防止法第八条の二に定められており、"]
[null,"2．計画の適用範囲",null,null,null,null,null,null,null,{"$f":"L85","v":1},null,null,null,"仙台市が示す「ひな形」は法に定める事項を満たすように作成されています。"]
[null,"3．防災体制",null,null,null,null,null,null,null,{"$f":"L168","v":4},null,null,null,"従って、必要に応じ項目を追加することは構いませんが、"]
[null,"4．情報収集及び伝達",null,null,null,null,null,null,null,{"$f":"L216","v":6},null,null,null,"項目の削除はしないようにしましょう。"]
[null,"5．避難誘導",null,null,null,null,null,null,null,{"$f":"L257","v":7}]
[null,"6．避難の確保を図るための施設の整備",null,null,null,null,null,null,null,{"$f":"L302","v":8}]
[null,"7．防災教育及び訓練の実施",null,null,null,null,null,null,null,{"$f":"L331","v":8}]
[null,{"$f":"IF(基本情報!E47=\"設置する\",\"8．自衛水防組織の業務に関する事項（自衛水防組織を設置する場合に限る）\",\"\")","v":""},null,null,null,null,null,null,null,{"$f":"IF(基本情報!E47=\"設置する\",避難確保計画!L337,\"\")","v":""},null,null,null,{"$f":"IF(S3=1,\"←自衛水防組織を設置する場合は必要です\",\"\")","v":""}]
[null,"別紙","防災体制一覧表（自衛水防組織を設置しない場合）",null,null,null,null,null,null,null,null,null,null,{"$f":"IF(S3=0,\"←自衛水防組織を設置しない場合は必要です\",\"\")","v":"←自衛水防組織を設置しない場合は必要です"}]
[null,null,"外部機関等への緊急連絡先一覧"]
[]
[]
[]
[]
[]
[]
[]
[null,"　　"]
[null,"【添付資料（仙台市への提出は不要）】"]
[null,"■","施設利用者緊急連絡先一覧表"]
[null,"■","緊急連絡網"]
[null,"■","対応別避難誘導方法一覧表"]
[]
[]
[null,"1. 計画の目的・報告   ",null,null,null,null,null,null,null,null,null,1]
[]
[null,"■",{"$f":"IF(Q3=1,P80,IF(O3=1,P77,IF(P3=1,P78,\"\")))","v":""},null,null,null,null,null,null,null,null,null,null,null,"洪水","この計画は、本施設における利用者の洪水時の、円滑かつ迅速な避難の確保を図ることを目的とする。　"]
[null,null,"※関連法",null,{"$f":"IF(O3=1,\"水防法\",\"\")","v":""},null,null,null,null,null,null,null,null,null,"土砂","この計画は、本施設における利用者の土砂災害発生時または土砂災害のおそれがある場合の、円滑かつ迅速な避難の確保を図ることを目的とする。　"]
[null,null,null,null,{"$f":"IF(P3=1,\"土砂災害防止法\",\"\")","v":""}]
[null,null,null,null,null,null,null,null,null,null,null,null,null,null,"洪水・土砂","この計画は、本施設における利用者の洪水時・土砂災害発生時または土砂災害のおそれがある場合の、円滑かつ迅速な避難の確保を図ることを目的とする。　"]
[null,"■","作成した避難確保計画に基づいて、安全な避難行動を確実に行うことができるよう、防災教育や訓練を行い、施設の職員や利用者に対して、洪水や土砂災害に関する知識を深めるとともに、訓練等を通して課題等を抽出し、必要に応じてこの計画を見直ししていくものとする。"]
[]
[null,"■","避難確保計画を作成又は必要に応じて見直し・修正をしたときは、遅滞なく仙台市長(担当は危機管理局減災推進課)へ報告する。"]
[]
[null,"2．計画の適用範囲",null,null,null,null,null,null,null,null,null,{"$f":"L75","v":1}]
[]
[null,"■","この計画は、本施設に勤務又は利用する全ての者に適用するものとする。"]
[]
[null,"【施設の状況】"]
[null,"構造",null,{"$f":"IF(基本情報!E31=\"\",\"\",基本情報!E31)","v":""},null,"階数",{"$f":"IF(基本情報!E32=\"\",\"\",基本情報!E32)","v":""},null,"使用階",{"$f":"IF(基本情報!E33=\"\",\"\",基本情報!E33)","v":""},null,null,null,"←基本情報シートの内容が反映されています。"]
[null,"利用者","昼",{"$f":"IF(基本情報!E34=0,\"なし\",基本情報!E34)","v":"なし"},null,"夜間",{"$f":"IF(基本情報!E36=0,\"なし\",基本情報!E36)","v":"なし"},null,"休日",{"$f":"IF(基本情報!E38=0,\"なし\",基本情報!E38)","v":"なし"}]
[null,"施設職員",null,{"$f":"IF(基本情報!E35=0,\"なし\",基本情報!E35)","v":"なし"},null,null,{"$f":"IF(基本情報!E37=0,\"なし\",基本情報!E37)","v":"なし"},null,null,{"$f":"IF(基本情報!E39=0,\"なし\",基本情報!E39)","v":"なし"}]
[]
[]
[]
[]
[]
[null,"【対象となる災害種別】",null,null,null,null,null,null,null,null,null,{"$f":"L75+1","v":2}]
[null,"洪水","対象河川名",null,"浸水深の想定",null,null,"早期の立ち退き避難が\n必要な区域か",null,null,null,null,{"$f":"SUM(M100:M105)","v":0},"←作成シートの内容が反映されています。"]
[null,null,{"$f":"IFERROR(VLOOKUP(1,作成!$A$20:$E$51,3,0),\"－\")","v":"－"},null,{"$f":"IFERROR(VLOOKUP(C100,作成!C20:D51,2,0),\"\")","v":""},null,null,{"$f":"IFERROR(VLOOKUP(C100,作成!C20:E51,3,0),\"\")","v":""},null,null,{"$f":"IF(AND(E100=\"なし\",H100=\"はい\"),\"※\",\"\")","v":""},null,{"$f":"IF(K100=\"※\",1,\"\")","v":""},"早期の立退き避難が必要な区域とは、"]
[null,null,{"$f":"IFERROR(VLOOKUP(2,作成!$A$20:$E$51,3,0),\"－\")","v":"－"},null,{"$f":"IFERROR(VLOOKUP(C101,作成!C21:D52,2,0),\"\")","v":""},null,null,{"$f":"IFERROR(VLOOKUP(C101,作成!C21:E52,3,0),\"\")","v":""},null,null,{"$f":"IF(AND(E101=\"なし\",H101=\"はい\"),\"※\",\"\")","v":""},null,{"$f":"IF(K101=\"※\",1,\"\")","v":""},"一般的な木造住宅を押し流すほどの氾濫流や河岸浸食が発生する"]
[null,null,{"$f":"IFERROR(VLOOKUP(3,作成!$A$20:$E$51,3,0),\"－\")","v":"－"},null,{"$f":"IFERROR(VLOOKUP(C102,作成!C22:D53,2,0),\"\")","v":""},null,null,{"$f":"IFERROR(VLOOKUP(C102,作成!C22:E53,3,0),\"\")","v":""},null,null,"",null,"","おそれのある区域（家屋倒壊等氾濫想定区域）、又は浸水深3ｍ以上の"]
[null,null,{"$f":"IFERROR(VLOOKUP(4,作成!$A$20:$E$51,3,0),\"－\")","v":"－"},null,{"$f":"IFERROR(VLOOKUP(C103,作成!C23:D54,2,0),\"\")","v":""},null,null,{"$f":"IFERROR(VLOOKUP(C103,作成!C23:E54,3,0),\"\")","v":""},null,null,"",null,"","区域のことです。特に大雨時の災害リスクが高いため、"]
[null,null,{"$f":"IFERROR(VLOOKUP(5,作成!$A$20:$E$51,3,0),\"－\")","v":"－"},null,{"$f":"IFERROR(VLOOKUP(C104,作成!C24:D54,2,0),\"\")","v":""},null,null,{"$f":"IFERROR(VLOOKUP(C104,作成!C24:E54,3,0),\"\")","v":""},null,null,"",null,"","早い段階で避難行動をとる必要があります。"]
[null,null,{"$f":"IFERROR(VLOOKUP(6,作成!$A$20:$E$51,3,0),\"－\")","v":"－"},null,{"$f":"IFERROR(VLOOKUP(C105,作成!C25:D55,2,0),\"\")","v":""},null,null,{"$f":"IFERROR(VLOOKUP(C105,作成!C25:E55,3,0),\"\")","v":""},null,null,"",null,""]
[null,"土砂災害","がけ崩れ\n（急傾斜地の崩壊）",null,{"$f":"IF(作成!J20<>\"\",作成!J20,\"－\")","v":"－"},null,null,null,null,null,null,null,null,{"$f":"IF(E106=\"土砂災害警戒区域\",\"→土砂災害が発生した場合、住民生命又は身体に危害が生ずるおそれがあります。\",IF(E106=\"土砂災害特別警戒区域\",\"→土砂災害が発生した場合、住民建築物に損壊が生じ、生命又は身体に著しい危害が生じるおそれがあります。\",\"\"))","v":""}]
[null,null,"土石流",null,{"$f":"IF(作成!J21<>\"\",作成!J21,\"－\")","v":"－"},null,null,null,null,null,null,null,null,{"$f":"IF(E107=\"土砂災害警戒区域\",\"→土砂災害が発生した場合、住民生命又は身体に危害が生ずるおそれがあります。\",IF(E107=\"土砂災害特別警戒区域\",\"→土砂災害が発生した場合、住民建築物に損壊が生じ、生命又は身体に著しい危害が生じるおそれがあります。\",\"\"))","v":""}]
[null,null,"地すべり",null,{"$f":"IF(作成!J22<>\"\",作成!J22,\"－\")","v":"－"},null,null,null,null,null,null,null,null,""]
[null,{"$f":"IF(M99>0,\"※洪水の浸水想定区域に含まれていないが、家屋が倒壊するような河岸浸食が発生するおそれがある\",\"\")","v":""}]
[]
[]
[]
[null,"■","事前休業の判断について",null,null,null,null,null,null,null,null,null,null,"（選択してください）"]
[null,null,"台風の接近等、風雨の影響により公共交通機関の計画的な運休等が予定される場合、○○○○部門を臨時休業とする。\nまたは午前・午後○○時の時点で、「仙台市 東部・西部」に以下のいずれかが発令されている場合も同様とする。\n",null,null,null,null,null,null,null,null,null,{"$f":"COUNTIF(C114, \"*○*\")","v":1},{"$f":"IF(AND(N113=\"事前休業あり\",M114=1),\"←　適宜加除修正してください。\",\"\")","v":""}]
[null,null,"・暴風警報または暴風特別警報、大雨警報または大雨特別警報"]
[null,null,"・その他○○○○○○○○○○○○○○○○の場合　等"]
[]
[]
[null,"【別紙１　施設周辺の避難経路図】",null,null,null,null,null,null,null,null,null,{"$f":"L98+1","v":3}]
[null,"洪水や土砂災害のおそれがある場合の避難場所は、ハザードマップの洪水浸水想定区域・土砂災害警戒区域等から、以下の場所とする。"]
[null,"（全ての避難場所について避難経路図を作成すること）"]
[]
[null,"避難経路図",null,null,null,null,null,null,null,null,null,null,null,"←避難経路図を貼り付けてください。"]
[]
[null,null,null,null,null,null,null,null,null,null,null,null,null,"【ポイント】"]
[null,null,null,null,null,null,null,null,null,null,null,null,null,"・安全が確保できる避難先を選定する"]
[null,null,null,null,null,null,null,null,null,null,null,null,null,"・安全が確保できる避難ルートや避難方法を定める"]
[]
[]
[]
[]
[]
[]
[]
[]
[]
[]
[]
[]
[]
[]
[]
[]
[]
[]
[]
[]
[]
[]
[]
[]
[]
[]
[]
[]
[]
[]
[]
[]
[]
[]
[]
[]
[]
[]
[]
[]
[null,"3．防災体制 ",null,null,null,null,null,null,null,null,null,{"$f":"L119+1","v":4}]
[null,"《洪水が対象の場合》"]
[null,null,"体制確立の判断時期 ※1",null,null,"活動内容",null,null,"対応要員 ※2",null,null,null,null,{"$f":"IF(O3=1,\"←適宜加除修正してください。\",\"\")","v":""}]
[null,"注意\n体制","以下のいずれかに該当する場合",null,null,"▪洪水予報等の情報収集",null,null,"情報収集伝達要員",null,null,null,null,"【ポイント】"]
[null,null,"▪【警戒レベル２】\n洪水注意報の発表 ※3",null,null,null,null,null,null,null,null,null,null,"・気象情報や河川情報、土砂災害に関する情報、避難情報の収集・伝達方法等を適切に定める"]
[null,null,"▪対象河川の氾濫注意情報（警戒レベル２相当情報）の発表 ※3",null,null,null,null,null,null,null,null,null,null,"・避難を開始するタイミングを適切に定める"]
[null,"警戒\n体制","洪水警報（警戒レベル３相当情報）の発表 ※3",null,null,"▪洪水予報等の情報収集",null,null,"情報収集伝達要員",null,null,null,null,"・利用者の避難支援のための適切な体制確立とする"]
[null,null,null,null,null,{"$f":"IF(E18=\"社会福祉施設等\",\"▪保護者への事前連絡\",\"▪入院（所）家族への事前連絡\"&CHAR(10)&\" ▪外来診療中止の刑掲示\")","v":"▪入院（所）家族への事前連絡\n ▪外来診療中止の刑掲示"},null,null,null,null,null,null,null,"・避難支援に必要な要員を適切に確保する"]
[null,null,null,null,null,"▪周辺住民への事前協力依頼"]
[null,null,null,null,null,"▪使用する資機材の準備",null,null,"避難誘導要員"]
[null,"非常\n体制","以下のいずれかに該当する場合",null,null,"▪要配慮者の避難誘導",null,null,"避難誘導要員"]
[null,null,"▪対象河川の氾濫警戒情報（警戒レベル３相当情報）の発表 ※3"]
[null,null,"▪【警戒レベル３】\n高齢者等避難の発令"]
[null,null,"以下のいずれかに該当する場合",null,null,"▪施設全体の避難誘導",null,null,"避難誘導要員"]
[null,null,"▪対象河川の氾濫危険情報（警戒レベル４相当情報）の発表 ※3"]
[null,null,"▪【警戒レベル４】\n避難指示の発令"]
[null,null,"以下のいずれかに該当する場合",null,null,"▪緊急安全確保措置",null,null,"避難誘導要員"]
[null,null,"▪対象河川の氾濫発生情報（警戒レベル５相当情報）の発表 ※3",null,null,"（その時点でいる場所よりも相対的に安全である場所へ直ちに移動等すること。必ずしも身の安全を確保できるとは限らない。）"]
[null,null,"▪【警戒レベル５】\n緊急安全確保の発令\n（必ず発令される情報ではないことに注意）"]
["※1","避難情報は段階的に発令されるとは限らない。特に中小河川においては水位の変動が激しいため、気象情報や付近の状況等の情報収集に努め、危険と判断した場合は避難情報の発令を待たずに避難行動をとること。\n"]
["※2","自衛水防組織を設置した場合には、各防災体制に対応する自衛水防組織の班編成及び要員の配置を記述する。上記のほか、施設の管理権限者（又は自衛水防組織の統括管理者）の指揮命令に従うものとする。"]
["※3","中小河川には該当しない。"]
[null,"3．防災体制 ",null,null,null,null,null,null,null,null,null,{"$f":"L168+1","v":5}]
[null,"《土砂災害が対象の場合》"]
[null,null,"体制確立の判断時期※1",null,null,"活動内容",null,null,"対応要員※2",null,null,null,null,{"$f":"IF(P3=1,\"←適宜加除修正してください。\",\"\")","v":""}]
[null,"注意\n体制","【警戒レベル２】\n大雨注意報の発表",null,null,"▪気象情報等の情報収集",null,null,"情報収集伝達要員",null,null,null,null,"【ポイント】"]
[null,"警戒\n体制","以下のいずれかに該当する場合",null,null,"▪気象情報等の情報収集",null,null,"情報収集伝達要員",null,null,null,null,"・気象情報や河川情報、土砂災害に関する情報、避難情報の収集・伝達方法等を適切に定める"]
[null,null,"▪大雨警報（土砂災害）（警戒レベル３相当情報）の発表",null,null,{"$f":"IF(E18=\"社会福祉施設等\",\"▪保護者への事前連絡\",\"▪入院（所）家族への事前連絡\"&CHAR(10)&\" ▪外来診療中止の刑掲示\")","v":"▪入院（所）家族への事前連絡\n ▪外来診療中止の刑掲示"},null,null,null,null,null,null,null,"・避難を開始するタイミングを適切に定める"]
[null,null,"▪土砂災害警戒情報（警戒レベル４相当情報）の発表",null,null,"▪周辺住民への事前協力依頼",null,null,null,null,null,null,null,"・利用者の避難支援のための適切な体制確立とする"]
[null,null,null,null,null,"▪使用する資機材の準備",null,null,"避難誘導要員",null,null,null,null,"・避難支援に必要な要員を適切に確保する"]
[null,"非常\n体制","【警戒レベル３】\n高齢者等避難の発令",null,null,"▪要配慮者の避難誘導",null,null,"避難誘導要員"]
[null,null,"【警戒レベル４】\n避難指示の発令",null,null,"▪施設全体の避難誘導",null,null,"避難誘導要員"]
[null,null,"以下のいずれかに該当する場合",null,null,"▪緊急安全確保措置",null,null,"避難誘導要員"]
[null,null,"▪大雨特別警報（土砂災害）（警戒レベル５相当情報）の発表",null,null,"（その時点でいる場所よりも相対的に安全である場所へ直ちに移動等すること。必ずしも身の安全を確保できるとは限らない。）"]
[null,null,"【警戒レベル５】\n緊急安全確保の発令\n（必ず発令される情報ではないことに注意）"]
[]
["※1","避難情報は段階的に発令されるとは限らない。気象情報や付近等の情報収集に努め、危険と判断した場合は避難情報の発令を待たずに避難行動をとること。\n"]
["※2","自衛水防組織を設置した場合には、各防災体制に対応する自衛水防組織の班編成及び要員の配置を記述する。上記のほか、施設の管理権限者(又は自衛水防組織の統括管理者)の指揮命令に従うものとする。"]
[]
["■","土砂災害について"]
[null,"・土石流災害"]
[null,"　大雨がきっかけとなり、谷や斜面にたまった土砂が、雨による水と一緒に一気に流れ出して起こる災害。"]
[null,"・がけ崩れ災害"]
[null,"　地面にしみ込んだ水分で土の抵抗力が弱くなり、弱くなった斜面が突然崩れ落ちる等、急な斜面で発生する災害。"]
[null,"・地すべり災害"]
[null,"　比較的ゆるやかな斜面において、地中の粘土層などの滑りやすい層が地下水などの影響で、ゆっくりと動き出す現象。予測することが技術的に困難であることから、都道府県と気象庁が共同で発表する「土砂災害警戒情報」の対象となっていない。危険性が確認された場合は国や都道府県等の調査結果等を踏まえ、市町村が避難情報を発令することとされている。"]
[]
[]
[null,"4．情報収集及び伝達 ",null,null,null,null,null,null,null,null,null,{"$f":"L190+1","v":6}]
[]
[null,"(1) 情報収集"]
[null,"■","収集する主な情報及び収集方法は、以下のとおりとする。"]
[]
[null,"収集する情報",null,null,"収集方法"]
[null,"気象情報",null,null,"テレビ、ラジオ、情報提供機関のウェブサイト等",null,null,null,null,null,null,null,null,"←適宜加除修正してください。"]
[null,"洪水予報、水位到達情報 ※",null,null,"仙台市からのファックス、情報提供機関のウェブサイト等",null,null,null,null,null,null,null,null,"【ポイント】"]
[null,"土砂災害警戒情報"]
[null,"避難情報（避難指示等）",null,null,"仙台市からのファックス、テレビ、ラジオ、仙台市ホームページ、緊急速報メール、仙台市避難情報ウェブサイト、杜の都防災Web、杜の都防災メール、仙台市危機管理局X（旧Twitter）、仙台市公式LINE 等",null,null,null,null,null,null,null,null,"・必要な情報機器等を確保する"]
[]
[]
[]
[null,"※　中小河川に洪水予報、洪水特別警戒水位(氾濫危険水位)到達情報は発表されない。"]
[]
[null,"■","停電時は、ラジオ、タブレット、携帯電話を活用して情報を収集するものとし、これに備えて、乾電池、バッテリー等を備蓄する。"]
[]
[null,"■","提供される情報に加えて、雨の降り方、施設周辺の水路や道路の状況等を施設内から確認し、その場にとどまることが危険と判断した場合や、以下に示すような土砂災害の前兆現象を確認した際は、避難情報の発令を待つことなく避難行動を開始する。"]
[]
[null,null,"代表的な土砂災害の前兆現象"]
[null,null,"・がけの表面に水が流れ出す",null,null,null,"・がけや斜面から水が噴き出す"]
[null,null,"・小石がパラパラと落ちる",null,null,null,"・井戸や沢の水が濁る"]
[null,null,"・樹木が傾く",null,null,null,"・樹木の根の切れる音がする"]
[null,null,"・樹木の倒れる音がする",null,null,null,"・がけに割れ目が見える"]
[null,null,"・斜面が膨らみだす",null,null,null,"・地鳴りがする"]
[null,null,"・家や擁壁に亀裂が入る",null,null,null,"・地面が揺れる"]
[]
[]
[null,"(2) 情報伝達"]
[null,"■"," 「施設内緊急連絡網」に基づき、また館内放送や掲示板を用いて、体制の確立状況、気象情報、避難情報等を施設内関係者間で共有する。"]
[null,"　"]
[]
[]
[]
[]
[]
[]
[]
[]
[]
[]
[null,"5．避難誘導",null,null,null,null,null,null,null,null,null,{"$f":"L216+1","v":7}]
[]
[null,"(1)  避難場所"]
[null,"■","避難場所は下表のとおりとする。"]
[]
[null,"(2)  避難経路"]
[null,"■","避難場所までの避難経路については、別紙１「避難経路図」のとおりとする。"]
[]
[null,"(3)  避難誘導方法"]
[null,"■","避難場所までの移動距離及び移動手段は、以下のとおりとする。"]
[]
[null,null,"避難場所",null,"移動距離",null,"移動手段",null,"避難に要する時間"]
[null,"優先順位１",null,null,null,"ｍ","☐徒歩",null,null,"分",null,null,null,{"$f":"IF(C269=\"\",\"←避難場所等を入力してください。\",\"\")","v":"←避難場所等を入力してください。"}]
[null,null,null,null,null,null,"☐車両　　台"]
[null,null,null,null,null,null,"☐その他",null,null,null,null,null,null,"【ポイント】"]
[null,null,null,null,null,null,"(　　　　　)",null,null,null,null,null,null,"・安全が確保できる避難先を選定する"]
[null,"優先順位２",null,null,null,"ｍ","☐徒歩",null,null,"分",null,null,null,"・安全が確保できる避難ルートや避難方法を定める"]
[null,null,null,null,null,null,"☐車両　　台"]
[null,null,null,null,null,null,"☐その他"]
[null,null,null,null,null,null,"(　　　　　)"]
[null,"優先順位３",null,null,null,"ｍ","☐徒歩",null,null,"分"]
[null,null,null,null,null,null,"☐車両　　台"]
[null,null,null,null,null,null,"☐その他"]
[null,null,null,null,null,null,"(　　　　　)"]
[]
[null,"■","洪水について、早期の立退き避難が必要な区域内での「屋内安全確保」は、家屋の倒壊や浸水の深さが３ｍ以上となる等の危険性があることから、原則、行わない。"]
[]
[null,"■","土砂災害については、自宅・施設等が外力により倒壊するおそれがある為、立ち退き避難が推奨されている。"]
[]
[]
[]
[]
[]
[]
[]
[]
[]
[]
[]
[]
[]
[]
[]
[]
[]
[null,"6．避難の確保を図るための施設の整備",null,null,null,null,null,null,null,null,null,{"$f":"L257+1","v":8}]
[]
[null,"■","情報収集・伝達及び避難誘導の際に使用する施設及び資器材については、下表「避難確保資器材等一覧」に示すとおりである。"]
[]
[null,"■","これらの資器材等については、日頃からその維持管理に努めるものとする。"]
[null,"避難確保資器材等一覧（チェックを入れる）"]
[null,"活動の区分","備蓄品"]
[null,"情報収集\n・伝達","☐テレビ　☐ラジオ　☐タブレット　☐ファックス",null,null,null,null,null,null,null,null,null,null,"←該当するものにチェックをしてください。"]
[null,null,"☐携帯電話　☐懐中電灯　☐電池　☐携帯電話用バッテリー"]
[null,"避難誘導","☐名簿（従業員、利用者等）　☐案内旗　☐タブレット　☐携帯電話",null,null,null,null,null,null,null,null,null,null,"【ポイント】"]
[null,null,"☐懐中電灯　☐携帯用拡声器　☐電池式照明器具　☐電池",null,null,null,null,null,null,null,null,null,null,"・必要な情報機器等を確保する"]
[null,null,"☐携帯電話バッテリー　☐ライフジャケット　☐蛍光塗料",null,null,null,null,null,null,null,null,null,null,"・避難に必要な設備を確保する"]
[null,null,{"$f":"IF(E18=\"社会福祉施設等\",\"\",\"□カルテのバックアップデータ（紹介状、処方箋作成用）\")","v":"□カルテのバックアップデータ（紹介状、処方箋作成用）"},null,null,null,null,null,null,null,null,null,null,"・屋内安全確保（垂直避難）を行う場合に必要な物資等を確保する"]
[null,"施設内の一時避難","☐水（１人あたり　　ℓ）　☐食料（１人あたり　　食分）"]
[null,null,"☐寝具　☐防寒具"]
[null,"高齢者","☐おむつ・おしりふき"]
[null,"障害者","☐常備薬"]
[null,"乳幼児","☐おむつ・おしりふき　☐おやつ　☐おんぶひも"]
[null,"そのほか","☐ウェットティッシュ　☐ゴミ袋　☐タオル"]
[null,null,"☐"]
[null,null,"☐"]
[null,null,"☐"]
[null,null,"☐"]
[null,null,"☐"]
[]
[null,"浸水を防ぐための対策"]
[null,"☐土のう　☐止水板"]
[null,"☐そのほか（　　　　　　　　　　　　　　　　　　　　　　　　）"]
[]
[null,"7．防災教育及び訓練の実施",null,null,null,null,null,null,null,null,null,{"$f":"L302","v":8}]
[]
[null,"■","毎年○○月に新規採用の従業員を対象に研修を実施する。",null,null,null,null,null,null,null,null,null,{"$f":"COUNTIF(C333, \"*○*\")","v":1},{"$f":"IF(M333>0,\"←研修の時期を入力してください。\",\"\")","v":"←研修の時期を入力してください。"}]
[null,"■","毎年○○月に全従業員を対象として情報収集・伝達及び避難誘導に関する訓練を実施する。",null,null,null,null,null,null,null,null,null,{"$f":"COUNTIF(C334, \"*○*\")","v":1},{"$f":"IF(M334>0,\"←訓練の時期を入力してください。\",\"\")","v":"←訓練の時期を入力してください。"}]
[null,"■","本計画に基づく訓練を実施した際は、仙台市危機管理局まで報告する。"]
[]
[null,"8．自衛水防組織の業務に関する事項（自衛水防組織を設置する場合に限る）",null,null,null,null,null,null,null,null,null,{"$f":"L302+1","v":9},null,{"$f":"IF(S3=1,\"←作成してください。\",\"←作成不要です。\")","v":"←作成不要です。"}]
[null,"《記載例》"]
[null,"■","別添「自衛水防組織活動要領」に基づき自衛水防組織を設置する。"]
[null,"■","自衛水防組織においては、以下のとおり訓練を実施するものとする。"]
[null,"▶","毎年○○月に新たに自衛水防組織の構成員となった従業員を対象として研修を実施する。",null,null,null,null,null,null,null,null,null,{"$f":"COUNTIF(C341, \"*○*\")","v":1},{"$f":"IF(AND(S3=1,M341>0),\"←研修の時期を入力してください。\",\"\")","v":""}]
[null,"▶","毎年○○月に行う全従業員を対象とした訓練に先立って、自衛水防組織の全構成員を対象として情報収集・伝達及び避難誘導に関する訓練を実施する。",null,null,null,null,null,null,null,null,null,{"$f":"COUNTIF(C342, \"*○*\")","v":1},{"$f":"IF(AND(S3=1,M342>0),\"←訓練の時期を入力してください。\",\"\")","v":""}]
[null,"▶","自衛水防組織を組織または変更したときは、水防法第十五条の三第８項に基づき、遅滞なく、当該計画を仙台市長(担当は危機管理局減災推進課)へ報告する。"]
[]
[]
[]
[]
[]
[]
[]
[]
[]
[]
[]
[]
[]
[]
[]
[]
[]
[]
[]
[]
[]
[]
[]
[]
[]
[]
[]
[]
[]
[]
[]
[]
[]
[]
[null,null,null,null,null,null,{"$f":"IF(S3=1,\"\",\"自衛水防組織を設置する場合のみ作成\")","v":"自衛水防組織を設置する場合のみ作成"}]
[null,"別添１　自衛水防組織活動要領(案)",null,null,null,null,null,null,null,null,null,null,null,{"$f":"IF(S3=1,\"←適宜加除修正してください。\",\"←作成不要です。\")","v":"←作成不要です。"}]
[]
[null,"（自衛水防組織の編成）"]
[null,"第１条　管理権限者は、洪水時において避難確保計画に基づく円滑かつ迅速な"]
[null,"　避難を確保するため、自衛水防組織を編成するものとする。"]
[]
[null,"２　自衛水防組織には、統括管理者を置く。"]
[null,"（１）統括管理者は、管理権限者の命を受け、自衛水防組織の機能が有効に"]
[null,"　発揮できるよう組織を統括する。"]
[null,"（２）統括管理者は、洪水時における避難行動について、その指揮、命令、"]
[null,"　監督等一切の権限を有する。"]
[]
[null,"３　管理権限者は、統括管理者の代行者を定め、当該代行者に対し、統括管理"]
[null,"　者の任務を代行するために必要な指揮、命令、監督等の権限を付与する。"]
[]
[null,"４　自衛水防組織に、班を置く。"]
[null,"(１)　班は、総括・情報班及び避難誘導班とし、各班に班長を置く。"]
[null,"(２)　各班の任務は、別表１に掲げる任務とする。"]
[null,"(３)  防災センター（最低限、通信設備を有するものとする）を自衛水防組織"]
[null,"　の活動拠点とし、防災センター勤務員及び各班の班長を自衛水防組織の中核"]
[null,"　として配置する。"]
[]
[null,"（自衛水防組織の運用）"]
[null,"第２条　管理権限者は、従業員の勤務体制（シフト）も考慮した組織編成"]
[null,"　に努め、必要な人員の確保及び従業員等に割り当てた任務の周知徹底を"]
[null,"　図るものとする。"]
[null,"２　特に、休日・夜間も施設内に利用者が滞在する施設にあって、"]
[null,"　休日・夜間に在館する従業員等のみによっては十分な体制を確保する"]
[null,"　ことが難しい場合は、管理権限者は、近隣在住の従業員等の非常参集"]
[null,"　も考慮して組織編成に努めるものとする。"]
[null,"３　管理権限者は、災害等の応急活動のため緊急連絡網や従業員等の"]
[null,"　非常参集計画を定めるものとする。"]
[]
[null,"（自衛水防組織の装備）"]
[null,"第３条　管理権限者は、自衛水防組織に必要な装備品を整備するとともに、"]
[null,"　適正な維持管理に努めなければならない。"]
[null,"(１)　自衛水防組織の装備品は、別表２「自衛水防組織装備品リスト」"]
[null,"　のとおりとする。"]
[null,"(２)　自衛水防組織の装備品については、統括管理者が防災センターに保管し、"]
[null,"　必要な点検を行うとともに点検結果を記録保管し、常時使用できる"]
[null,"　状態で維持管理する。"]
[]
[null,"（自衛水防組織の活動）"]
[null,"第４条　自衛水防組織の各班は、避難確保計画に基づき情報収集及び避難"]
[null,"　誘導等の活動を行うものとする。"]
[]
[]
[]
[]
[]
[]
[null,null,null,null,null,null,{"$f":"IF(S3=1,\"\",\"自衛水防組織を設置する場合のみ作成\")","v":"自衛水防組織を設置する場合のみ作成"}]
[null,"別表1　「自衛水防組織の編成と任務」"]
[null,null,null,null,null,null,null,null,null,null,null,null,null,{"$f":"IF(S3=1,\"←必要事項を入力してください。\",\"←作成不要です。\")","v":"←作成不要です。"}]
[null,"統括管理者"]
[]
[null,null,"統括管理者の代行者"]
[]
[]
[null,null,null,"役職及び氏名",null,null,"任　務"]
[null,null,null,"班長",null,null,"・自衛水防活動の指揮統制、状況の把握、"]
[null,null,"総括・","班員",null,"名","情報内容の記録"]
[null,null,"情報班",null,null,null,"・館内放送等による避難の呼び掛け"]
[null,null,null,null,null,null,"・気象情報、洪水予報等の情報の収集"]
[null,null,null,null,null,null,"・関係者及び関係機関との連絡"]
[]
[null,null,null,"役職及び氏名",null,null,"任　務"]
[null,null,null,"班長",null,null,"・避難誘導の実施"]
[null,null,"避難","班員",null,"名","・未避難者、要救助者の確認"]
[null,null,"誘導班"]
[]
[]
[]
[null,"別表２　「自衛水防組織装備品リスト」"]
[]
[null,"任務",null,"装備品"]
[null,"総括・情報班",null,"名簿（従業員、利用者等）"]
[null,null,null,"情報収集及び伝達機器（ラジオ、タブレット、トランシーバー、携帯電話等）"]
[null,null,null,"照明器具（懐中電灯、投光機等）"]
[null,"避難誘導班",null,"名簿（従業員、利用者等）"]
[null,null,null,"誘導の標識（案内旗等）"]
[null,null,null,"情報収集及び伝達機器（タブレット、トランシーバー、携帯電話等）"]
[null,null,null,"懐中電灯"]
[null,null,null,"携帯用拡声器"]
[null,null,null,"誘導用ライフジャケット"]
[null,null,null,"蛍光塗料"]
[]
[]
[]
[]
[]
[]
[]
[]
[]
[]
[]
[null,"＜別紙＞"]
[null,"■防災体制一覧表（自衛水防組織を設置しない場合）",null,null,null,null,null,null,null,null,null,null,null,{"$f":"IF(S3=0,\"←作成してください。\",\"←作成不要です。\")","v":"←作成してください。"}]
[null,"《記入例（既存のものがあればそれを活用）》"]
[null,null,null,null,null,null,null,null,null,null,null,null,null,"【ポイント】"]
[null,null,null,null,null,null,null,null,null,null,null,null,null,"・避難支援に必要な要員を適切に確保する"]
[]
[null,"管理権限者"]
[]
[null,null,"管理権限者の代行者"]
[]
[]
[null,null,null,"役職及び氏名",null,null,"任　務"]
[null,null,null,"班長",null,null,"・自衛消防活動の指揮統制、状況の把握、"]
[null,null,"総括・","班員",null,"名","情報内容の記録"]
[null,null,"情報班",null,null,null,"・館内放送等による避難の呼び掛け"]
[null,null,null,null,null,null,"・気象情報、洪水予報等の情報の収集"]
[null,null,null,null,null,null,"・関係者及び関係機関との連絡"]
[]
[null,null,null,"役職及び氏名",null,null,"任　務"]
[null,null,null,"班長",null,null,"・避難誘導の実施"]
[null,null,"避難","班員",null,"名","・未避難者、要救助者の確認"]
[null,null,"誘導班"]
[]
[]
[]
[]
[]
[]
[null,"■外部機関等への緊急連絡先一覧表"]
[null,"《記入例（既存のものがあればそれを活用）》"]
[]
[null,"連絡先","担当部署","担当者氏名",null,"電話番号",null,"連絡可能時間",null,"備考"]
[null,"避難誘導等の支援者"]
[null,"医療機関"]

{"sheet":"緊急連絡先","index":4,"n_rows":6,"n_cols":14,"rows_kept":6,"cut":false,"hidden":false,"merged":[[4,8,5,9]]}
[]
[null,"【添付資料】"]
[null,"■施設利用者緊急連絡先一覧表",null,null,null,null,null,null,null,null,null,null,null,"参考です。仙台市への提出は不要です。"]
[null,"《記入例（既存のものがあればそれを活用）》"]
[null,"施設利用者",null,null,"緊急連絡先",null,null,null,"その他（緊急搬送先等）"]
[null,"氏名","年齢","住所","氏名","続柄","電話番号","住所"]

{"sheet":"緊急連絡網","index":5,"n_rows":24,"n_cols":14,"rows_kept":24,"cut":false,"hidden":false,"merged":[[7,5,7,6],[6,5,6,6]]}
[]
[null,"【添付資料】"]
[null,"■緊急連絡網",null,null,null,null,null,null,null,null,null,null,null,"←参考です。仙台市への提出は不要です。"]
[null,"《記入例（既存のものがあればそれを活用）》"]
[]
[]
[null,null,null,null,"氏名"]
[null,null,null,null,"連絡先"]
[]
[]
[null,"氏名",null,"氏名",null,"氏名",null,"氏名"]
[null,"連絡先",null,"連絡先",null,"連絡先",null,"連絡先"]
[null,null,"↓",null,"↓",null,"↓",null,"↓"]
[null,"氏名",null,"氏名",null,"氏名",null,"氏名"]
[null,"連絡先",null,"連絡先",null,"連絡先",null,"連絡先"]
[null,null,"↓",null,"↓",null,"↓",null,"↓"]
[null,"氏名",null,"氏名",null,"氏名",null,"氏名"]
[null,"連絡先",null,"連絡先",null,"連絡先",null,"連絡先"]
[null,null,"↓",null,"↓",null,"↓",null,"↓"]
[null,"氏名",null,"氏名",null,"氏名",null,"氏名"]
[null,"連絡先",null,"連絡先",null,"連絡先",null,"連絡先"]
[null,null,"↓",null,"↓",null,"↓",null,"↓"]
[null,"氏名",null,"氏名",null,"氏名",null,"氏名"]
[null,"連絡先",null,"連絡先",null,"連絡先",null,"連絡先"]

{"sheet":"避難誘導方法","index":6,"n_rows":47,"n_cols":14,"rows_kept":47,"cut":false,"hidden":false,"merged":[[33,2,33,3],[33,4,33,5],[33,7,33,8],[34,2,34,3],[34,4,34,5],[34,7,34,8],[31,2,31,3],[31,4,31,5],[31,7,31,8],[32,2,32,3],[32,4,32,5],[32,7,32,8],[29,2,29,3],[29,4,29,5],[29,7,29,8],[30,2,30,3],[30,4,30,5],[30,7,30,8],[27,2,27,3],[27,4,27,5],[27,7,27,8],[28,2,28,3],[28,4,28,5],[28,7,28,8],[25,2,25,3],[25,4,25,5],[25,7,25,8],[26,2,26,3],[26,4,26,5],[26,7,26,8],[23,2,23,3],[23,4,23,5],[23,7,23,8],[24,2,24,3],[24,4,24,5],[24,7,24,8],[37,2,37,3],[37,4,37,5],[37,7,37,8],[38,2,38,3],[38,4,38,5],[38,7,38,8],[35,2,35,3],[35,4,35,5],[35,7,35,8],[36,2,36,3],[36,4,36,5],[36,7,36,8],[20,2,20,3],[20,4,20,5],[20,7,20,8],[21,2,21,3],[21,4,21,5],[21,7,21,8],[18,2,18,3],[18,4,18,5],[18,7,18,8],[19,2,19,3],[19,4,19,5],[19,7,19,8],[16,2,16,3],[16,4,16,5],[16,7,16,8],[17,2,17,3],[17,4,17,5],[17,7,17,8],[14,2,14,3],[14,4,14,5],[14,7,14,8],[15,2,15,3],[15,4,15,5],[15,7,15,8],[13,2,13,3],[13,4,13,5],[13,7,13,8],[10,2,10,3],[10,4,10,5],[10,7,10,8],[11,2,11,3],[11,4,11,5],[11,7,11,8],[4,2,4,3],[4,4,4,5],[4,7,4,8],[5,2,5,3],[5,4,5,5],[5,7,5,8],[22,2,22,3],[22,4,22,5],[22,7,22,8],[8,2,8,3],[8,4,8,5],[8,7,8,8],[9,2,9,3],[9,4,9,5],[9,7,9,8],[6,2,6,3],[6,4,6,5],[6,7,6,8],[7,2,7,3],[7,4,7,5],[7,7,7,8],[12,2,12,3],[12,4,12,5],[12,7,12,8]]}
[]
[null,"【添付資料】"]
[null,"■対応別避難誘導方法一覧表",null,null,null,null,null,null,null,null,null,null,null,"←参考です。仙台市への提出は不要です。"]
[null,"《記入例（既存のものがあればそれを活用）》"]
[null,"対応内容（※）","氏名",null,"連絡先",null,"移動手段","担当者",null,"備考"]
[]
[]
[]
[]
[]
[]
[]
[]
[]
[]
[]
[]
[]
[]
[]
[]
[]
[]
[]
[]
[]
[]
[]
[]
[]
[]
[]
[]
[]
[]
[]
[]
[]
[]
[]
[null,"※以下の該当番号を記入"]
[null,"（避難場所への移動）"]
[null,"１　単独歩行が可能、２　介助が必要、３　車いすを使用、"]
[null,"４　ストレッチャーや担架が必要、５　そのほか"]
[]
[null,"（そのほかの対応）"]
[null,"６　自宅に帰宅、７　病院に搬送、８　そのほか"]

{"sheet":"チェックリスト","index":7,"n_rows":100,"n_cols":12,"rows_kept":100,"cut":false,"hidden":false,"merged":[[23,3,23,4],[22,5,22,6],[23,5,23,6],[12,3,12,4],[13,3,13,4],[12,5,12,6],[13,5,13,6],[22,3,22,4],[9,3,9,6],[4,3,4,4],[5,3,5,4],[4,5,4,6],[5,5,5,6],[6,3,6,4],[6,5,6,6],[94,1,99,1],[24,4,25,4],[44,4,45,4],[63,4,64,4],[79,4,80,4],[92,4,93,4],[81,1,91,1],[81,2,82,2],[92,1,92,2],[93,1,93,2],[92,3,93,3],[44,1,44,2],[45,1,45,2],[44,3,45,3],[92,6,93,6],[92,5,93,5],[64,1,64,2],[63,3,64,3],[63,6,64,6],[65,1,78,1],[79,1,79,2],[80,1,80,2],[79,3,80,3],[79,6,80,6],[63,5,64,5],[79,5,80,5],[44,6,45,6],[46,1,62,1],[63,1,63,2],[44,5,45,5],[24,1,24,2],[25,1,25,2],[24,3,25,3],[24,6,25,6],[26,1,43,1],[26,2,27,2],[24,5,25,5],[22,1,23,1],[22,2,23,2],[12,1,13,2],[14,1,17,1],[14,2,15,2],[16,2,17,2],[18,1,19,2]]}
[]
[null,{"$f":"IF(作成!C8=\"医療施設\",\"医療施設の避難確保計画\",\"社会福祉施設等の避難確保計画（非常災害対策計画を含む）\")","v":"社会福祉施設等の避難確保計画（非常災害対策計画を含む）"},null,null,null,null,null,null,null,null,null,"□"]
[null,"チェックリスト"]
[]
[null,null,null,{"$f":"IF(作成!C8<>\"\",作成!C8,\"\")","v":""},null,"市町村"]
[null,null,null,"チェック担当者名",null,"チェック担当者名"]
[]
[]
[]
[null,null,"施設名",{"$f":"避難確保計画!C42","v":""}]
[]
[null,null,null,null,null,null,null,null,"黄色セルを埋めてください"]
[null,"施設が有する災害リスク等の確認",null,{"$f":"D5","v":""},null,"市町村"]
[null,null,null,"チェック欄",null,"チェック欄"]
[null,"災害リスクの確認","洪水浸水想定区域内に位置するか",{"$f":"IF(作成!A19>0,\"☑\",\"□\")","v":"□"},"位置する","☐","位置する"]
[null,null,null,{"$f":"IF(作成!A19=0,\"☑\",\"□\")","v":"☑"},"位置していない","☐","位置していない"]
[null,null,"土砂災害警戒区域や土砂災害特別警戒区域内に位置するか",{"$f":"IF(作成!G19>0,\"☑\",\"☐\")","v":"☐"},"位置する","☐","位置する"]
[null,null,null,{"$f":"IF(作成!G19=0,\"☑\",\"☐\")","v":"☑"},"位置していない","☐","位置していない"]
[null,"市町村地域防災計画に当該施設が定められているか",null,"☐","定められている","☐","定めている"]
[null,null,null,"☐","定められていない","☐","定めていない"]
[]
[]
[null,"計画項目","チェック項目",{"$f":"D5","v":""},null,"市町村",null,null,"避難確保計画該当部分"]
[null,null,null,"チェック欄",null,"チェック欄",null,null,"　　　↓"]
[null,"(ア)防災体制、情報収集及び伝達"]
[null,"（水防法施行規則16条一）洪水時の防災体制に関する事項、（土砂災害防止法施行規則5条の2一）土砂災害が発生するおそれがある場合における防災体制に関する事項"]
[null,null,"1.気象情報や河川情報、土砂災害に関する情報、避難情報の収集・伝達方法等を適切に定めているか","□","対応済","☐","適切",null,"３.防災体制"]
[null,null,null,"□","要改善","☐","要改善"]
[null,null,"【着眼点】"]
[null,null,"☐　雨量情報や洪水予報、河川水位情報、土砂災害警戒情報等の防災気象情報、市町村からの避難情報、その他避難に必要な情報を収集するタイミング、収集する者、収集する情報の種類、収集する方法を定めているか"]
[null,null,"☐　収集した情報の伝達先、伝達方法を定めているか"]
[]
[null,null,"2.避難を開始するタイミングを適切に定めているか","□","対応済","☐","適切",null,"３.防災体制"]
[null,null,"【着眼点】","□","要改善","☐","要改善"]
[null,null,{"$f":"IF(作成!C8=\"医療施設\",\"☐　警戒レベル３「高齢者等避難」の発令を受け避難行動をとる体制となっているか\",\"☐　警戒レベル３「高齢者等避難」が発令された場合に避難を開始することにしているか（避難完了までの時間を確保した上で、利用者の身体的な負担等を考慮し、利用者の身体状態に応じて避難開始のタイミングを分ける場合はある）\")","v":"☐　警戒レベル３「高齢者等避難」が発令された場合に避難を開始することにしているか（避難完了までの時間を確保した上で、利用者の身体的な負担等を考慮し、利用者の身体状態に応じて避難開始のタイミングを分ける場合はある）"}]
[null,null,{"$f":"IF(作成!C8=\"医療施設\",\"☐　職員の参集が困難となる大雨や暴風時における避難についても想定し、早めの避難支援要員を確保できる体制の構築を考慮しているか。また、夜間や休日における避難支援要員の確保についても考慮しているか\",\"☐　警戒レベル３「高齢者等避難」の発令を受けてから避難を開始しても間に合わないなど、利用者全員が避難を完了するまでに多くの時間を要する施設については、それよりも早いタイミングで避難を開始することにしているか\")","v":"☐　警戒レベル３「高齢者等避難」の発令を受けてから避難を開始しても間に合わないなど、利用者全員が避難を完了するまでに多くの時間を要する施設については、それよりも早いタイミングで避難を開始することにしているか"}]
[null,null,{"$f":"IF(作成!C8=\"医療施設\",\"☐　避難の頻度が多くなると、避難行動自体が患者の負担となり得ることから、患者の健康状態に応じて避難の開始タイミングを分けるなど、医療施設の実情に応じた避難方法を定めているか\",\"☐　警戒レベル３「高齢者等避難」の発令の目安となる氾濫警戒情報及び大雨警報（土砂災害）も避難の判断指標にしているか\")","v":"☐　警戒レベル３「高齢者等避難」の発令の目安となる氾濫警戒情報及び大雨警報（土砂災害）も避難の判断指標にしているか"}]
[]
[null,null,{"$f":"IF(作成!C8=\"医療施設\",\"3.警戒レベル３「高齢者等避難」等の発令が無い場合でも避難の判断ができるよう、複数の判断材料が設定されているか\",\"3.利用者の避難支援のための体制確立は適切であるか\")","v":"3.利用者の避難支援のための体制確立は適切であるか"},"□","対応済","☐","適切",null,"３.防災体制"]
[null,null,"【着眼点】","□","要改善","☐","要改善"]
[null,null,{"$f":"IF(作成!C8=\"医療施設\",\"☐　警戒レベル３「高齢者等避難」の発令の目安となる氾濫警戒情報及び大雨警報（土砂災害）や、避難指示の目安となる氾濫危険情報及び土砂災害警戒情報についても判断材料として利用されているか\",\"☐　避難行動について指揮する者を定めているか\")","v":"☐　避難行動について指揮する者を定めているか"}]
[null,null,{"$f":"IF(作成!C8=\"医療施設\",\"☐　警戒レベル３「高齢者等避難」の発令が無い場合でも避難の判断ができるよう、複数の判断材料を設定しているか\",\"☐　大雨や暴風により交通途絶が生じることで職員の参集が困難になることも想定し、特に夜間や休日に災害が切迫する可能性がある場合には、明るいうちに体制を確立するなど、早めに避難支援要員を確保する体制にしているか\")","v":"☐　大雨や暴風により交通途絶が生じることで職員の参集が困難になることも想定し、特に夜間や休日に災害が切迫する可能性がある場合には、明るいうちに体制を確立するなど、早めに避難支援要員を確保する体制にしているか"}]
[null,null,{"$f":"IF(作成!C8=\"医療施設\",\"☐　医療施設において、警戒レベル３「高齢者等避難」の発令が想定されるような、台風などが予想される場合、臨時に休診とすることを設定しているか\",\"☐　通所型の施設については、台風の襲来など、警戒レベル３「高齢者等避難」の発令が事前に予想される場合には、臨時に閉所するなどの措置を定めているか\")","v":"☐　通所型の施設については、台風の襲来など、警戒レベル３「高齢者等避難」の発令が事前に予想される場合には、臨時に閉所するなどの措置を定めているか"}]
[]
[null,"(イ)避難誘導"]
[null,"（水防法施行規則16条二）洪水時の避難の誘導に関する事項、（土砂災害防止法施行規則5条の2二）土砂災害が発生するおそれがある場合における避難の誘導に関する事項"]
[null,null,{"$f":"IF(作成!C8=\"医療施設\",\"1.避難先は避難の実効性が確保された場所に設定されているか\",\"1.安全が確保できる避難先を適切に選定しているか\")","v":"1.安全が確保できる避難先を適切に選定しているか"},"□","対応済","☐","適切",null,"【別紙１　施設周辺の避難経路図】"]
[null,null,"【着眼点】","□","要改善","☐","要改善",null,"５.避難誘導"]
[null,null,{"$f":"IF(作成!C8=\"医療施設\",\"☐　移動に伴う患者のリスクを踏まえ、垂直避難先を確保しているか。また、垂直避難先は、浸水しない高さに設けられているか\",\"☐　選定した避難先（指定緊急避難場所、近隣の安全な場所、他の社会福祉施設、屋内安全確保（垂直避難）の場所）は、想定される災害に対して安全な場所であるか　（家屋倒壊等氾濫想定区域や土砂災害特別警戒区域内に含まれていないこと、避難先の床高が浸水しない高さにあり食糧の確保など浸水継続時間に応じた避難に対応できること等）\")","v":"☐　選定した避難先（指定緊急避難場所、近隣の安全な場所、他の社会福祉施設、屋内安全確保（垂直避難）の場所）は、想定される災害に対して安全な場所であるか　（家屋倒壊等氾濫想定区域や土砂災害特別警戒区域内に含まれていないこと、避難先の床高が浸水しない高さにあり食糧の確保など浸水継続時間に応じた避難に対応できること等）"}]
[null,null,{"$f":"IF(作成!C8=\"医療施設\",\"☐　水平避難（立退き避難）を行う場合は、移動に伴う患者のリスクを踏まえ、「近隣の安全な場所」や「他の医療施設」への避難とし、緊急度合いに応じた複数の避難先が確保されているか\",\"☐　選定した避難先において利用者のケア等の対応が可能であるなど、避難の実効性を確認したか\")","v":"☐　選定した避難先において利用者のケア等の対応が可能であるなど、避難の実効性を確認したか"}]
[null,null,{"$f":"IF(作成!C8=\"医療施設\",\"☐　設定されている避難先（垂直避難先、指定緊急避難場所、近隣の安全な場所、他の医療施設）が、移動に伴う患者のリスクや避難にかかる時間等を踏まえた実効性のあるものになっているか\",\"☐　不測の事態が生じることも想定し、複数の避難先を選定しているか、また、少しでも安全な場所に移動する「緊急安全確保」の方法を定めているか\")","v":"☐　不測の事態が生じることも想定し、複数の避難先を選定しているか、また、少しでも安全な場所に移動する「緊急安全確保」の方法を定めているか"}]
[null,null,{"$f":"IF(作成!C8=\"医療施設\",\"☐　水平避難（立退き避難）を行う場合であっても、避難先が家屋倒壊等氾濫想定区域や土砂災害特別警戒区域内に含まれていないこと、浸水しない高さに設けることなど施設内で安全確保の対応ができるか\",\"\")","v":""}]
[null,null,{"$f":"IF(作成!C8=\"医療施設\",\"2.避難誘導がリスク情報を踏まえた実現可能なルート上に設定されているか\",\"2.安全が確保できる避難ルートや避難方法を定めているか\")","v":"2.安全が確保できる避難ルートや避難方法を定めているか"},"□","対応済","☐","適切",null,"【別紙１　施設周辺の避難経路図】"]
[null,null,"【着眼点】","□","要改善","☐","要改善",null,"５.避難誘導"]
[null,null,{"$f":"IF(作成!C8=\"医療施設\",\"☐　水平避難（立退き避難）を行う場合、浸水想定区域や土砂災害警戒区域など、施設の災害リスク情報を踏まえた避難ルートの設定となっているか\",\"☐　施設から避難先までの移動経路の災害リスクや、交通途絶等の可能性も考慮して、安全で確実な避難ルートが選定されているか\")","v":"☐　施設から避難先までの移動経路の災害リスクや、交通途絶等の可能性も考慮して、安全で確実な避難ルートが選定されているか"}]
[null,null,{"$f":"IF(作成!C8=\"医療施設\",\"☐　水平避難（立退き避難）を行う場合、避難ルートの途中に通行止め等の障害が発生する可能性を踏まえ、複数の避難ルートを検討しておくこと\",\"☐　施設外の避難先に移動するために必要な車両の台数や手配方法などを定めているか\")","v":"☐　施設外の避難先に移動するために必要な車両の台数や手配方法などを定めているか"}]
[]
[null,null,{"$f":"IF(作成!C8=\"医療施設\",\"3.必要に応じ、地域の協力が得られる体制が準備されているか\",\"3.避難支援に必要な要員を適切に確保しているか\")","v":"3.避難支援に必要な要員を適切に確保しているか"},"□","対応済","☐","適切",null,"３.防災体制"]
[null,null,"【着眼点】","□","要改善","☐","要改善",null,"防災体制一覧表（自衛水防組織を設置しない場合）"]
[null,null,{"$f":"IF(作成!C8=\"医療施設\",\"☐　職員のみだけでなく、必要に応じて消防団や近隣企業、地域住民等の地域関係者や利用者の家族など、避難支援協力者を定めているか\",\"☐　避難に要する時間を考慮した上で、避難支援要員の人数が確保されているか\")","v":"☐　避難に要する時間を考慮した上で、避難支援要員の人数が確保されているか"}]
[null,null,{"$f":"IF(作成!C8=\"医療施設\",\"\",\"☐　必要に応じて、消防団や近隣企業、地域住民等の地域関係者や利用者の家族など、避難支援協力者を定めているか\")","v":"☐　必要に応じて、消防団や近隣企業、地域住民等の地域関係者や利用者の家族など、避難支援協力者を定めているか"}]
[null,null,"※　消防団や近隣企業、地域住民等の地域関係者、利用者の家族を避難支援協力者として組み込んでいる場合には、その連絡先を定めていることが望ましい"]
[]
[null,"(ウ)避難の確保を図るための施設の整備"]
[null,"（水防法施行規則16条三）洪水時の避難の確保を図るための施設の整備に関する事項、（土砂災害防止法施行規則5条の2三）土砂災害が発生するおそれがある場合における避難の確保を図るための施設の整備に関する事項"]
[null,null,"1.必要な情報機器等を確保しているか","□","対応済","☐","適切",null,"４.情報収集及び伝達 "]
[null,null,"【着眼点】","□","要改善","☐","要改善",null,"６.避難の確保を図るための施設の整備"]
[null,null,"☐　インターネットや防災無線等で情報を収集するために必要な機器や設備が確保されているか"]
[null,null,"☐　市町村から施設に伝達される情報が確実に届くよう、複数の手段を確保しているか"]
[]
[null,null,"2.避難に必要な設備を確保しているか","□","対応済","☐","適切",null,"６.避難の確保を図るための施設の整備"]
[null,null,"【着眼点】","□","要改善","☐","要改善"]
[null,null,{"$f":"IF(作成!C8=\"医療施設\",\"☐　避難行動する際に、患者の健康状態等を考慮し、避難に必要な設備や機材等が記載されているか\",\"☐　利用者の避難支援にあたって、利用者のＡＤＬ（日常生活動作：歩けるかどうかなど）や要介護状態等を考慮し、避難に必要な設備（エレベータやスロープ等）を確保しているか\")","v":"☐　利用者の避難支援にあたって、利用者のＡＤＬ（日常生活動作：歩けるかどうかなど）や要介護状態等を考慮し、避難に必要な設備（エレベータやスロープ等）を確保しているか"}]
[null,null,"☐　夜間の避難に備えて、電池式照明器具や、利用者が誘導員を識別するための誘導用ライフジャケット等の機材を確保しているか"]
[]
[null,null,{"$f":"IF(作成!C8=\"医療施設\",\"3.屋内安全確保（垂直避難）を行う場合に備え、医療施設内等での滞在に必要な物資等が確保されているか\",\"3.屋内安全確保（垂直避難）を行う場合に必要な物資等を確保しているか\")","v":"3.屋内安全確保（垂直避難）を行う場合に必要な物資等を確保しているか"},"□","対応済","☐","適切",null,"６.避難の確保を図るための施設の整備"]
[null,null,"【着眼点】","□","要改善","☐","要改善"]
[null,null,{"$f":"IF(作成!C8=\"医療施設\",\"医療施設内等での屋内安全確保を行う場合に備え、備蓄や電気・水等について、長時間の浸水にも対応できるよう確保されているか\",\"☐　「屋内安全確保（垂直避難）」を行う場合に備え、長時間の浸水に対応できるよう食糧等の備蓄や非常用電源、生活用水等を確保しているか\")","v":"☐　「屋内安全確保（垂直避難）」を行う場合に備え、長時間の浸水に対応できるよう食糧等の備蓄や非常用電源、生活用水等を確保しているか"}]
[null,null,{"$f":"IF(作成!C8=\"医療施設\",\"（３日分の医療施設の機能を維持できる水や非常用自家発電設備の燃料を確保することが望ましい）\",\"\")","v":""}]
[null,"(エ)防災教育及び訓練の実施"]
[null,"（水防法施行規則16条四）洪水時を想定した防災教育及び訓練の実施に関する事項、（土砂災害防止法施行規則5条の2四）土砂災害が発生するおそれがある場合を想定した防災教育及び訓練の実施に関する事項"]
[null,null,{"$f":"IF(作成!C8=\"医療施設\",\"1.適切な時期に必要な教育・訓練の実施が設定されているか\",\"1.防災教育や訓練を適切に実施することにしているか\")","v":"1.防災教育や訓練を適切に実施することにしているか"},"□","対応済","☐","適切",null,"７.防災教育及び訓練の実施"]
[null,null,null,"□","要改善","☐","要改善"]
[null,null,"【着眼点】"]
[null,null,{"$f":"IF(作成!C8=\"医療施設\",\"☐　洪水予報、土砂災害に関する情報等の避難に必要な情報を収集及び共有するため、機器の操作や作業に係わる訓練（情報伝達訓練）、関連する教育が設定されているか\",\"☐　防災教育や訓練の実施頻度を具体的に定めているか（訓練については原則として年１回以上の頻度で実施することが望ましい）\")","v":"☐　防災教育や訓練の実施頻度を具体的に定めているか（訓練については原則として年１回以上の頻度で実施することが望ましい）"}]
[null,null,{"$f":"IF(作成!C8=\"医療施設\",\"☐　医療施設が浸水に至るまでの限られた時間内に、患者を避難場所まで安全に避難誘導するための訓練（避難誘導訓練）や、関連する教育の機会が設定されているか\",\"☐　職員に対して防災教育の機会を提供することとしているか\")","v":"☐　職員に対して防災教育の機会を提供することとしているか"}]
[null,null,{"$f":"IF(作成!C8=\"医療施設\",\"（避難誘導訓練において、患者が全員参加するのでは無く、身体的な状況に応じて避難支援に必要な人数や避難時間等を確認する訓練実施するなどの工夫も必要）\",\"☐　避難確保計画の内容を職員に周知することとしているか\")","v":"☐　避難確保計画の内容を職員に周知することとしているか"}]
[null,null,{"$f":"IF(作成!C8=\"医療施設\",\"☐　洪水や土砂災害の危険性が高まる出水期までに医療施設職員の対応力が高まるよう、出水期までに教育・訓練が設定されているか\",\"☐　利用者が施設を利用する際に避難確保計画の内容を利用者の家族に周知することとしているか\")","v":"☐　利用者が施設を利用する際に避難確保計画の内容を利用者の家族に周知することとしているか"}]
[null,null,{"$f":"IF(作成!C8=\"医療施設\",\"（すべての訓練を一度に行うのではなく、患者や職員の負担を軽減するため、訓練を分けて行う工夫も必要）\",\"※　情報伝達訓練や避難ルートの確認訓練、資機材の確認訓練、図上訓練、利用者の避難先への移動訓練など、実施する訓練の種類を具体的に定めていることが望ましい\")","v":"※　情報伝達訓練や避難ルートの確認訓練、資機材の確認訓練、図上訓練、利用者の避難先への移動訓練など、実施する訓練の種類を具体的に定めていることが望ましい"}]
[null,null,{"$f":"IF(作成!C8=\"医療施設\",\"☐　新規に採用された職員等が災害対応できるよう、当該職員に対する教育・訓練の機会が設定されているか\",\"※　訓練実施の際には、避難支援協力者に組み込まれている消防団や近隣企業、地域住民等の地域関係者や利用者の家族も参加することが望ましい\")","v":"※　訓練実施の際には、避難支援協力者に組み込まれている消防団や近隣企業、地域住民等の地域関係者や利用者の家族も参加することが望ましい"}]
[null,null,{"$f":"IF(作成!C8=\"医療施設\",\"\",\"※　訓練で得られた教訓を踏まえて、必要に応じて計画の見直しを実施すること\")","v":"※　訓練で得られた教訓を踏まえて、必要に応じて計画の見直しを実施すること"}]
[]
[null,"(オ)自衛水防組織の業務（設置した場合のみ該当）",null,null,null,null,null,null,{"$f":"IF(基本情報!E47=\"設置する\",1,0)","v":0}]
[null,"（水防法施行規則16条五）自衛水防組織の業務に関する事項"]
[null,{"$f":"IF(I93=0,\"非該当\",\"\")","v":"非該当"},"（自衛水防組織の業務内容の記載の確認）","□","対応済","☐","適切",null,"　「自衛水防組織の編成と任務」"]
[null,null,"自衛水防組織が設置されている場合、その業務内容が規定され、計画に記載されているか","□","要改善","☐","要改善"]
[null,null,"【着眼点】"]
[null,null,"☐　自衛水防組織を統括する統括管理者を定めているか"]
[null,null,"☐　少なくとも「洪水予報等の収集及び伝達」、「利用者の避難誘導」がそれぞれ自衛水防組織の業務として規定されているか"]
[null,null,"☐　内部組織（○○班など）を編成する場合、内部組織のそれぞれの業務内容・活動範囲が明確に区分され、内部組織毎に必要な要員と統括する者を定めているか"]

{"sheet":"町名一覧","index":8,"n_rows":1297,"n_cols":6,"rows_kept":1297,"cut":false,"hidden":true,"merged":[]}
[null,"青葉区","宮城野区","若林区","太白区","泉区"]
[null,"青葉町","安養寺１丁目","荒井１丁目","青山１丁目","明石南１丁目"]
[null,"青葉山","安養寺２丁目","荒井２丁目","青山２丁目","明石南２丁目"]
[null,"赤坂１丁目","安養寺３丁目","荒井３丁目","秋保町境野字上戸","明石南３丁目"]
[null,"赤坂２丁目","銀杏町","荒井４丁目","秋保町境野字漆方","明石南４丁目"]
[null,"赤坂３丁目","出花１丁目","荒井５丁目","秋保町境野字太田","明石南５丁目"]
[null,"あけぼの町","出花２丁目","荒井６丁目","秋保町境野字峠下","明石南６丁目"]
[null,"旭ケ丘１丁目","出花３丁目","荒井７丁目","秋保町境野字中原","明通１丁目"]
[null,"旭ケ丘２丁目","岩切１丁目","荒井８丁目","秋保町境野字中屋敷","明通２丁目"]
[null,"旭ケ丘３丁目","岩切２丁目","荒井字赤沼南","秋保町境野字七森","明通３丁目"]
[null,"旭ケ丘４丁目","岩切３丁目","荒井字揚場","秋保町境野字七森西","明通４丁目"]
[null,"愛子中央１丁目","岩切字青麻沢","荒井字雨坪","秋保町境野字野尻","朝日１丁目"]
[null,"愛子中央２丁目","岩切字青津目","荒井字丑ノ頭","秋保町境野字濱井場","朝日２丁目"]
[null,"愛子中央３丁目","岩切字余目","荒井字梅ノ木","秋保町境野字羽山","旭丘堤１丁目"]
[null,"愛子中央４丁目","岩切字余目西","荒井字鱗谷地","秋保町境野字彦隅","旭丘堤１丁目"]
[null,"愛子中央５丁目","岩切字余目南","荒井字上目南","秋保町境野字辺田","旭丘堤２丁目"]
[null,"愛子中央６丁目","岩切字一本杉北","荒井字遠藤西","秋保町境野字辺田山","旭丘堤２丁目"]
[null,"愛子東１丁目","岩切字一本杉中","荒井字大沼","秋保町境野字弥平田","泉ケ丘１丁目"]
[null,"愛子東２丁目","岩切字一本杉南","荒井字大沼上","秋保町境野字山田","泉ケ丘２丁目"]
[null,"愛子東３丁目","岩切字稲荷","荒井字大沼東","秋保町長袋字合ノ原","泉ケ丘３丁目"]
[null,"愛子東４丁目","岩切字稲荷西","荒井字大谷地","秋保町長袋字青木","泉ケ丘４丁目"]
[null,"愛子東５丁目","岩切字稲荷東","荒井字大谷地北","秋保町長袋字石神","泉ケ丘５丁目"]
[null,"愛子東６丁目","岩切字今市","荒井字沖谷地","秋保町長袋字石神山","泉中央１丁目"]
[null,"荒巻字青葉","岩切字今市東","荒井字鎌沼下","秋保町長袋字石本","泉中央２丁目"]
[null,"荒巻字弘法山","岩切字入山","荒井字神屋敷","秋保町長袋字泉口","泉中央３丁目"]
[null,"荒巻字三居沢","岩切字入生沢","荒井字神屋敷北","秋保町長袋字上野原","泉中央４丁目"]
[null,"荒巻字西雷神","岩切字江向北","荒井字神屋敷西","秋保町長袋字上台","泉中央南"]
[null,"荒巻字仁田谷地","岩切字大井","荒井字軽石田","秋保町長袋字大倉山","市名坂字阿久土"]
[null,"荒巻字坊主門","岩切字大前","荒井字川田","秋保町長袋字大槻","市名坂字油田"]
[null,"荒巻神明町","岩切字上河原","荒井字川戸東","秋保町長袋字大原","市名坂字石止"]
[null,"荒巻中央","岩切字観音前","荒井字北遠十丁","秋保町長袋字大東","市名坂字御釜田"]
[null,"荒巻本沢１丁目","岩切字鴻巣","荒井字切新田","秋保町長袋字大東南","市名坂字岡本"]
[null,"荒巻本沢２丁目","岩切字鴻巣北","荒井字沓形","秋保町長袋字大日向山","市名坂字沖"]
[null,"荒巻本沢３丁目","岩切字鴻巣南","荒井字下在家東","秋保町長袋字獺沢","市名坂字鹿島"]
[null,"一番町１丁目","岩切字小児","荒井字五才北","秋保町長袋字雁木田","市名坂字伽藍"]
[null,"一番町２丁目","岩切字三所北","荒井字境東","秋保町長袋字雁木田山","市名坂字窪田"]
[null,"一番町３丁目","岩切字三所南","荒井字桜木道下","秋保町長袋字賀澤","市名坂字黒木川原"]
[null,"一番町４丁目","岩切字昭和北","荒井字笹屋敷","秋保町長袋字釡下","市名坂字小柳"]
[null,"五橋１丁目","岩切字昭和西","荒井字笹屋敷西","秋保町長袋字上河原","市名坂字実相寺"]
[null,"五橋２丁目","岩切字昭和東","荒井字笹屋敷南","秋保町長袋字亀ケ森山","市名坂字清水端"]
[null,"芋沢字青野木","岩切字昭和南","荒井字瀬戸川北","秋保町長袋字川前","市名坂字新城"]
[null,"芋沢字赤坂","岩切字堰下","荒井字十呂盤","秋保町長袋字上原","市名坂字新門前"]
[null,"芋沢字赤坂下","岩切字堰堀","荒井字十呂盤東","秋保町長袋字国久","市名坂字砂押"]
[null,"芋沢字赤坂中","岩切字千刈田","荒井字宅地","秋保町長袋字久保","市名坂字善正寺"]
[null,"芋沢字荒屋敷","岩切字大正","荒井字土才敷","秋保町長袋字黒森","市名坂字高倉"]
[null,"芋沢字荒屋敷中","岩切字台屋敷","荒井字富岡内","秋保町長袋字澤端","市名坂字高島"]
[null,"芋沢字荒屋敷西","岩切字高江","荒井字富岡北裏","秋保町長袋字篠根澤","市名坂字高玉"]
[null,"芋沢字板橋","岩切字高原","荒井字富岡西","秋保町長袋字清水久保","市名坂字高玉川原"]
[null,"芋沢字板橋南","岩切字洞ケ沢","荒井字中在家","秋保町長袋字清水久保北","市名坂字竹内"]
[null,"芋沢字一本木","岩切字洞ノ口","荒井字中新田","秋保町長袋字下河原","市名坂字塚田"]
[null,"芋沢字一本木東","岩切字洞ノ口東","荒井字沼前八丁堀","秋保町長袋字下中河原","市名坂字寺下"]
[null,"芋沢字上野原","岩切字洞堀","荒井字浜田西","秋保町長袋字宿","市名坂字天神沢"]
[null,"芋沢字上野原東","岩切字土手外西","荒井字浜田東","秋保町長袋字白澤口","市名坂字筒場"]
[null,"芋沢字丑形","岩切字土手外東","荒井字東","秋保町長袋字新国久","市名坂字堂林"]
[null,"芋沢字唄坂","岩切字中江北","荒井字平田","秋保町長袋字新田","市名坂字鳥井原"]
[null,"芋沢字大勝草","岩切字中江南","荒井字広瀬東","秋保町長袋字新天神","市名坂字中川原"]
[null,"芋沢字大勝草上野原","岩切字中土手","荒井字藤田","秋保町長袋字菅刈","市名坂字中原"]
[null,"芋沢字大勝草下","岩切字新宿前","荒井字藤田北裏上","秋保町長袋字菅刈山","市名坂字中道"]
[null,"芋沢字大勝草中","岩切字西河原","荒井字藤田中島","秋保町長袋字鈴ケ澤","市名坂字楢町"]
[null,"芋沢字大勝草畑","岩切字西中土手","荒井字藤田西","秋保町長袋字諏訪北","市名坂字新道"]
[null,"芋沢字大竹","岩切字西茨田","荒井字藤田東","秋保町長袋字諏訪前","市名坂字西裏"]
[null,"芋沢字大竹新田","岩切字羽黒前","荒井字藤田前谷地下","秋保町長袋字台山","市名坂字野蔵"]
[null,"芋沢字大竹新田下","岩切字畑中","荒井字平堀","秋保町長袋字竹ノ内","市名坂字野添"]
[null,"芋沢字大竹中","岩切字初崎","荒井字平堀東","秋保町長袋字舘","市名坂字萩清水"]
[null,"芋沢字大竹原","岩切字茨田","荒井字細沼","秋保町長袋字舘ケ澤","市名坂字原田"]
[null,"芋沢字大竹南","岩切字東河原","荒井字堀添","秋保町長袋字舘下","市名坂字東裏"]
[null,"芋沢字大堀","岩切字東中","荒井字前谷地","秋保町長袋字舘山原","市名坂字古川"]
[null,"芋沢字奥武士","岩切字引目","荒井字前谷地上","秋保町長袋字堤下","市名坂字前沖"]
[null,"芋沢字奥武士上","岩切字百文南下","荒井字松岡","秋保町長袋字寺西","市名坂字町"]
[null,"芋沢字奥武士北","岩切字分台","荒井字南田中","秋保町長袋字天神","市名坂字万吉前"]
[null,"芋沢字奥武士西","岩切字堀合","荒井字南原田","秋保町長袋字戸崎","市名坂字南前"]
[null,"芋沢字奥武士東","岩切字水分","荒井字矢取東","秋保町長袋字戸森","市名坂字明神"]
[null,"芋沢字小倉","岩切字弥吾原","荒井字養賢堂","秋保町長袋字戸森山","市名坂字本町"]
[null,"芋沢字小倉東","岩切字屋敷前","荒井字四ツ谷西","秋保町長袋字中揚","市名坂字本屋敷"]
[null,"芋沢字柿崎","岩切字谷地","荒井字四ツ谷東","秋保町長袋字中原","市名坂字谷地"]
[null,"芋沢字柿崎下","岩切字山崎","荒井字四ツ谷南","秋保町長袋字並木","市名坂字柳清水"]
[null,"芋沢字柿崎中","岩切字山神北","荒井東１丁目","秋保町長袋字西台","市名坂字山岸"]
[null,"芋沢字柿崎東","岩切字山神南","荒井東２丁目","秋保町長袋字二ノ輪山","永和台"]
[null,"芋沢字柿崎南","岩切字若宮前","荒井南","秋保町長袋字野中","大沢１丁目"]
[null,"芋沢字鍛冶屋","岩切分台１丁目","荒浜字石場","秋保町長袋字畑","大沢２丁目"]
[null,"芋沢字鍛冶屋前","岩切分台２丁目","荒浜字石場前","秋保町長袋字濱坂","大沢３丁目"]
[null,"芋沢字鹿野","岩切分台３丁目","荒浜字伊勢西","秋保町長袋字原","小角字芦沢"]
[null,"芋沢字蒲沢","扇町１丁目","荒浜字一番山","秋保町長袋字東","小角字今宮"]
[null,"芋沢字蒲沢下","扇町１丁目","荒浜字一里塚","秋保町長袋字東河原","小角字上在家"]
[null,"芋沢字蒲沢原","扇町２丁目","荒浜字一本杉","秋保町長袋字深澤","小角字上在家前"]
[null,"芋沢字蒲沢山","扇町３丁目","荒浜字一本杉北","秋保町長袋字堀端","小角字上ノ山"]
[null,"芋沢字釜前","扇町４丁目","荒浜字一本杉東","秋保町長袋字前山","小角字上ノ山下"]
[null,"芋沢字上新田","扇町５丁目","荒浜字一本杉南","秋保町長袋字摩賀院","小角字柏原"]
[null,"芋沢字上新田道下","扇町６丁目","荒浜字井戸浜境","秋保町長袋字摩賀院下","小角字鹿"]
[null,"芋沢字上辺田","扇町７丁目","荒浜字今泉","秋保町長袋字摩賀院山","小角字鹿東"]
[null,"芋沢字河窪","大梶","荒浜字今切","秋保町長袋字町","小角字上原"]
[null,"芋沢字川坂","岡田字浦通一番","荒浜字大堀","秋保町長袋字町北裏","小角字上行沢"]
[null,"芋沢字北沢","岡田字裏通二番","荒浜字海浜","秋保町長袋字町南裏","小角字川添"]
[null,"芋沢字栗生沢","岡田字岡田中","荒浜字川向","秋保町長袋字水上北","小角字河原"]
[null,"芋沢字栗生沢下","岡田字岡田東","荒浜字北今切","秋保町長袋字水上南","小角字窪上"]
[null,"芋沢字栗生沢中","岡田字岡田前","荒浜字北官林","秋保町長袋字明神","小角字窪西"]
[null,"芋沢字栗生沢東","岡田字岡田南","荒浜字北丁","秋保町長袋字向国久","小角字窪東"]
[null,"芋沢字黒森山","岡田字海浜","荒浜字北長沼","秋保町長袋字向宿","小角字小丸山"]
[null,"芋沢字荒神","岡田字春日田","荒浜字北沼向","秋保町長袋字門前","小角字地蔵坂"]
[null,"芋沢字荒神前","岡田字上岡田","荒浜字狐塚","秋保町長袋字八重勝","小角字下河原"]
[null,"芋沢字甲野田","岡田字上高土手","荒浜字五枚下り","秋保町長袋字屋敷下","小角字下行沢"]
[null,"芋沢字甲野田北","岡田字北在家","荒浜字四本松","秋保町長袋字谷地","小角字白藤"]
[null,"芋沢字甲野田下","岡田字北高屋敷","荒浜字下大堀淵","秋保町長袋字山崎","小角字杉下"]
[null,"芋沢字甲野田中","岡田字北帆海房","荒浜字下松苗畑","秋保町長袋字山根","小角字杉下東"]
[null,"芋沢字甲野田南","岡田字久太郎東","荒浜字新田東","秋保町長袋字湯ノ辺田","小角字杉下前"]
[null,"芋沢字氷取場","岡田字久兵エ前","荒浜字新堀端","秋保町長袋字早稲田","小角字惣膳原"]
[null,"芋沢字小坂","岡田字小広目","荒浜字神明林","秋保町馬場字愛宕裏","小角字大満寺"]
[null,"芋沢字小坂南","岡田字渋川","荒浜字大学","秋保町馬場字穴戸","小角字大満寺前"]
[null,"芋沢字駒込","岡田字下高土手","荒浜字道場","秋保町馬場字石ケ森","小角字大明神"]
[null,"芋沢字権現森山","岡田字新浜浦通西","荒浜字中丁","秋保町馬場字石平","小角字館"]
[null,"芋沢字座当","岡田字新浜浦通東","荒浜字中堀南","秋保町馬場字芋生","小角字館前"]
[null,"芋沢字沢田","岡田字新浜浦畑","荒浜字七十刈","秋保町馬場字大杉","小角字堤下"]
[null,"芋沢字沢田下","岡田字新浜中通","荒浜字西","秋保町馬場字大平","小角字寅堤"]
[null,"芋沢字塩野沢","岡田字新浜西通","荒浜字西谷地","秋保町馬場字大滝","小角字中崎"]
[null,"芋沢字塩野沢西","岡田字新浜東通","荒浜字西谷地東","秋保町馬場字大樅","小角字中原"]
[null,"芋沢字下窪","岡田字新原東","荒浜字二部谷地","秋保町馬場字上ノ原","小角字白山"]
[null,"芋沢字下清水","岡田字砂原","荒浜字念仏田","秋保町馬場字北山","小角字橋"]
[null,"芋沢字下清水下","岡田字砂山","荒浜字松苗畑","秋保町馬場字北山西","小角字原前"]
[null,"芋沢字下野","岡田字大日前","荒浜字南官林","秋保町馬場字笹原","小角字日陰"]
[null,"芋沢字下野下","岡田字寺袋浦","荒浜字南大学","秋保町馬場字澤口","小角字東原"]
[null,"芋沢字四反田","岡田字寺袋前","荒浜字南丁","秋保町馬場字下久保","小角字東屋敷"]
[null,"芋沢字四反田前","岡田字伝兵衛前","荒浜字南長沼","秋保町馬場字新田町","小角字前原"]
[null,"芋沢字七子田","岡田字道場前","荒浜字南西谷地","秋保町馬場字鷹ノ巣","小角字升形"]
[null,"芋沢字下原","岡田字樋前","荒浜字南沼向","秋保町馬場字鷹ノ巣西","小角字松ノ木下"]
[null,"芋沢字宿","岡田字中原西","荒浜字谷地中林","秋保町馬場字滝原","小角字松ノ木田"]
[null,"芋沢字白坂","岡田字苗代向","荒浜字山路裏","秋保町馬場字竹林","小角字南股"]
[null,"芋沢字白坂西","岡田字西畑","荒浜新１丁目","秋保町馬場字田尻","小角字宮"]
[null,"芋沢字汁垂沢道上","岡田字八間谷地","荒浜新２丁目","秋保町馬場字土蔵","小角字宮後"]
[null,"芋沢字汁垂沢道下","岡田字浜通","荒町","秋保町馬場字堤","小角字明神"]
[null,"芋沢字新田","岡田字浜前北","飯田字河原","秋保町馬場字中","小角字明神下"]
[null,"芋沢字新苦地","岡田字浜前西","飯田字天神橋","秋保町馬場字中小屋","小角字明神前"]
[null,"芋沢字水門","岡田字東砂原","飯田字中橋","秋保町馬場字西向","小角字山田"]
[null,"芋沢字水門堀下","岡田字堀切前","飯田字屋敷","秋保町馬場字新川道","小角字蓬田"]
[null,"芋沢字水門南","岡田字堀切南","飯田字屋敷北","秋保町馬場字二枚橋","桂１丁目"]
[null,"芋沢字堰ケ袋","岡田字前田","飯田字横町","秋保町馬場字沼山","桂２丁目"]
[null,"芋沢字平","岡田字南在家","伊在１丁目","秋保町馬場字野尻北","桂３丁目"]
[null,"芋沢字高野原","岡田字南高屋敷","伊在２丁目","秋保町馬場字野尻町北","桂４丁目"]
[null,"芋沢字滝ノ瀬","岡田字南帆海房","伊在３丁目","秋保町馬場字野尻町南","上谷刈１丁目"]
[null,"芋沢字宅地","岡田字明神東","伊在字西田","秋保町馬場字馬場岳国有林","上谷刈２丁目"]
[null,"芋沢字田尻","岡田西町","伊在字白山地","秋保町馬場字昼野","上谷刈３丁目"]
[null,"芋沢字田中","小田原１丁目","伊在字白山前","秋保町馬場字深野","上谷刈４丁目"]
[null,"芋沢字長泉寺前","小田原２丁目","伊在字前通","秋保町馬場字辺田","上谷刈５丁目"]
[null,"芋沢字綱木","小田原３丁目","石垣町","秋保町馬場字馬立","上谷刈６丁目"]
[null,"芋沢字綱木坂","小田原牛小屋丁","石名坂","秋保町馬場字町頭","上谷刈字赤坂"]
[null,"芋沢字寺下","小田原金剛院丁","五橋３丁目","秋保町馬場字町北","上谷刈字大平東"]
[null,"芋沢字寺下北","小田原清水沼通","一本杉町","秋保町馬場字町南","上谷刈字大立目屋敷"]
[null,"芋沢字寺下西","小田原大行院丁","井土字井土浦","秋保町馬場字丸山","上谷刈字鹿ノ下"]
[null,"芋沢字寺下東","小田原広丁","井土字大野","秋保町馬場字三坂","上谷刈字上鶴巻"]
[null,"芋沢字同者道","小田原山本丁","井土字大分","秋保町馬場字向山","上谷刈字上ノ山"]
[null,"芋沢字銅谷原","小田原弓ノ町","井土字小午沼向山","秋保町馬場字本小屋","上谷刈字川原"]
[null,"芋沢字銅谷原北","花京院通","井土字開発","秋保町馬場字森安","上谷刈字北河原"]
[null,"芋沢字銅谷原東","蟹沢","井土字北浦","秋保町馬場字谷地","上谷刈字窪"]
[null,"芋沢字銅谷原道下","蒲生１丁目","井土字須賀","秋保町馬場字山口","上谷刈字熊ノ林"]
[null,"芋沢字銅谷原道下東","蒲生２丁目","井土字砂崩","秋保町馬場字横町","上谷刈字熊ノ林下"]
[null,"芋沢字鳥屋場前","蒲生３丁目","井土字宅地","秋保町湯向","上谷刈字古堤"]
[null,"芋沢字中居","蒲生４丁目","井土字太夫野","秋保町湯元字青木","上谷刈字小堤"]
[null,"芋沢字長坂","蒲生５丁目","井土字樋口","秋保町湯元字石名坂","上谷刈字小梨沢"]
[null,"芋沢字中田","蒲生字荒田","井土字二郷堀","秋保町湯元字上原","上谷刈字去田前"]
[null,"芋沢字中田下","蒲生字石神","井土字西浦","秋保町湯元字大日向","上谷刈字三平"]
[null,"芋沢字中田西","蒲生字井戸谷地","井土字沼田","秋保町湯元字釜土","上谷刈字三平東"]
[null,"芋沢字中田東","蒲生字牛路","井土字沼田向山","秋保町湯元字釜土西","上谷刈字下入山田"]
[null,"芋沢字中原","蒲生字榎","井土字沼向","秋保町湯元字釜土東","上谷刈字下鶴巻"]
[null,"芋沢字中山","蒲生字榎下","井土字東浦","秋保町湯元字釜土南","上谷刈字治郎兵衛下"]
[null,"芋沢字中山下","蒲生字荻袋","井土字南浦","秋保町湯元字木戸保","上谷刈字関ノ上"]
[null,"芋沢字中山中","蒲生字小田切","井土字山ノ後","秋保町湯元字源兵衛原","上谷刈字館"]
[null,"芋沢字苦地","蒲生字小田切浦","今泉１丁目","秋保町湯元字鹿乙","上谷刈字立脇"]
[null,"芋沢字苦地下","蒲生字鍛治谷地","今泉２丁目","秋保町湯元字白木澤","上谷刈字長命"]
[null,"芋沢字苦地中","蒲生字上蒲沼","今泉字上新田","秋保町湯元字太夫","上谷刈字長命岫"]
[null,"芋沢字西前","蒲生字上屋倉","今泉字久保田東","秋保町湯元字寺田","上谷刈字長命東"]
[null,"芋沢字二尺木","蒲生字北荒田","今泉字小在家","秋保町湯元字寺田原","上谷刈字塚"]
[null,"芋沢字畑前","蒲生字北上河原","今泉字小在家東","秋保町湯元字銅屋","上谷刈字堤下"]
[null,"芋沢字畑前北","蒲生字北下河原","今泉字小在家前","秋保町湯元字行澤","上谷刈字鳥谷"]
[null,"芋沢字畑前南","蒲生字北城道田","今泉字鹿子穴","秋保町湯元字除","上谷刈字中沢"]
[null,"芋沢字八前","蒲生字北中河原","今泉字新田東","秋保町湯元字橋本","上谷刈字沼"]
[null,"芋沢字八幡","蒲生字北屋ケ城","今泉字築道南","秋保町湯元字畑","上谷刈字沼下"]
[null,"芋沢字末坂","蒲生字雑子袋","今泉字寺田","秋保町湯元字半銅平","上谷刈字羽黒北"]
[null,"芋沢字花坂","蒲生字下蒲沼","今泉字土手外","秋保町湯元字平倉","上谷刈字羽黒山"]
[null,"芋沢字花坂上野原","蒲生字下袋","今泉字中上","秋保町湯元字枇杷原","上谷刈字橋元"]
[null,"芋沢字花坂下","蒲生字下屋倉","今泉字中村宅地","秋保町湯元字枇杷原西","上谷刈字原"]
[null,"芋沢字林下","蒲生字高原","今泉字中村東","秋保町湯元字細野原","上谷刈字平田"]
[null,"芋沢字原田","蒲生字田向","今泉字畑中","秋保町湯元字細野原南","上谷刈字舞台"]
[null,"芋沢字原田浦","蒲生字塚田","今泉字二木西","秋保町湯元字馬乙","上谷刈字二ツ谷"]
[null,"芋沢字原田北","蒲生字土手前","今泉字古川","秋保町湯元字薬師","上谷刈字古川"]
[null,"芋沢字原田下","蒲生字中通","今泉字門暮","秋保町湯元字湯向西","上谷刈字松林"]
[null,"芋沢字原田西","蒲生字中袋","裏柴田町","芦の口","上谷刈字松林東"]
[null,"芋沢字稗袋","蒲生字中屋倉","沖野１丁目","あすと長町１丁目","上谷刈字丸太"]
[null,"芋沢字人山","蒲生字鍋沼","沖野１丁目","あすと長町２丁目","上谷刈字丸太道添"]
[null,"芋沢字樋崎山","蒲生字鍋沼前","沖野２丁目","あすと長町３丁目","上谷刈字丸山"]
[null,"芋沢字平形","蒲生字西沼沢","沖野３丁目","あすと長町４丁目","上谷刈字道北"]
[null,"芋沢字平沢","蒲生字西屋敷添","沖野４丁目","泉崎１丁目","上谷刈字宮沢"]
[null,"芋沢字不動下","蒲生字二本木","沖野５丁目","泉崎２丁目","上谷刈字宮林後"]
[null,"芋沢字不動下向","蒲生字沼沢","沖野６丁目","大塒町","上谷刈字宮林前"]
[null,"芋沢字不動堂","蒲生字念仏田","沖野７丁目","大野田１丁目","上谷刈字向河原"]
[null,"芋沢字辺田","蒲生字八郎兵エ谷地第一","沖野字北門","大野田２丁目","上谷刈字向原"]
[null,"芋沢字洞ノ口","蒲生字八郎兵エ谷地第二","沖野字高野","大野田３丁目","上谷刈字八木沢"]
[null,"芋沢字堀合","蒲生字原屋敷","沖野字高野南","大野田４丁目","上谷刈字山添"]
[null,"芋沢字本郷","蒲生字東城道田","沖野字境","大野田５丁目","加茂１丁目"]
[null,"芋沢字前河原","蒲生字東通","沖野字舘東","大野田字イコタ","加茂２丁目"]
[null,"芋沢字松葉沢上","蒲生字東沼沢","沖野字中田尻","大野田字上古川","加茂３丁目"]
[null,"芋沢字松葉沢下","蒲生字東屋敷添","沖野字東中","大野田字河島","加茂４丁目"]
[null,"芋沢字的場","蒲生字袋西第一","沖野字南田尻","大野田字観音堂","加茂５丁目"]
[null,"芋沢字明神","蒲生字袋西ノ内第二","表柴田町","大野田字皿屋敷","北高森"]
[null,"芋沢字向田","蒲生字細川","卸町１丁目","大野田字下古川","北中山１丁目"]
[null,"芋沢字向寺","蒲生字前通","卸町２丁目","大野田字宿在家","北中山２丁目"]
[null,"芋沢字向寺西","蒲生字町","卸町３丁目","大野田字高原","北中山３丁目"]
[null,"芋沢字向寺南","蒲生字南上河原","卸町４丁目","大野田字塚田","北中山４丁目"]
[null,"芋沢字向原","蒲生字南下河原","卸町５丁目","大野田字土手前","黒松１丁目"]
[null,"芋沢字廻沢","蒲生字南城道田","卸町東１丁目","大野田字中河原","黒松２丁目"]
[null,"芋沢字谷津","蒲生字南中河原","卸町東２丁目","大野田字橋本","黒松３丁目"]
[null,"芋沢字谷津沢","蒲生字南屋ケ城","卸町東３丁目","大野田字前河原","向陽台１丁目"]
[null,"芋沢字湯船沢","蒲生字耳取","卸町東４丁目","大野田字元袋","向陽台２丁目"]
[null,"芋沢字湯船沢東","蒲生字元切","卸町東５丁目","大野田字六反田","向陽台３丁目"]
[null,"芋沢字要害","蒲生字屋倉","かすみ町","大谷地","向陽台４丁目"]
[null,"芋沢字横手","蒲生字屋敷","かすみ町","鈎取１丁目","向陽台５丁目"]
[null,"芋沢字横手西","蒲生字山神","霞目１丁目","鈎取２丁目","実沢字赤竹"]
[null,"芋沢字横手堀合","蒲生字四ツ辺","霞目２丁目","鈎取３丁目","実沢字赤竹下"]
[null,"芋沢字横前","蒲生字蓬田前","霞目字稲荷堂","鈎取４丁目","実沢字飛鳥原"]
[null,"芋沢字横向山","車町","霞目字田中","鈎取字青木塒","実沢字小豆嶋岩下"]
[null,"芋沢字吉成","小鶴１丁目","霞目字谷風","鈎取字一本杉","実沢字小豆嶋五百刈"]
[null,"芋沢字吉成西","小鶴２丁目","霞目字南","鈎取字新田町","実沢字小豆嶋下中"]
[null,"芋沢字吉成東","小鶴３丁目","霞目字八瀬川","鈎取字西根添","実沢字小豆嶋前"]
[null,"芋沢字吉成山","小鶴字後堤","蒲町","鈎取字東根添","実沢字小豆嶋屋敷"]
[null,"梅田町","小鶴字内沼","蒲町字北谷","鈎取字町","実沢字安部屋敷"]
[null,"大倉字青下","小鶴字大谷地","蒲町字東","鈎取字御堂平","実沢字安部山"]
[null,"大倉字赤岩","小鶴字黒門","蒲町東","鈎取字向原前","実沢字居久根山"]
[null,"大倉字赤坂","小鶴字高野","上飯田１丁目","鈎取字谷地田","実沢字石保"]
[null,"大倉字荒沢口","小鶴字境谷地中","上飯田２丁目","鈎取本町１丁目","実沢字一本橋"]
[null,"大倉字荒田","小鶴字境谷地西","上飯田３丁目","鈎取本町２丁目","実沢字猪沢鹿"]
[null,"大倉字石野立","小鶴字七反田","上飯田４丁目","鹿野１丁目","実沢字入八乙女滝下"]
[null,"大倉字一本木","小鶴字七反田東","上飯田字天神","鹿野２丁目","実沢字上ノ台"]
[null,"大倉字伊呂波","小鶴字七反田南","河原町１丁目","鹿野３丁目","実沢字上ノ原"]
[null,"大倉字岩下","小鶴字新境","河原町２丁目","鹿野本町","実沢字後山上"]
[null,"大倉字宇治沢","小鶴字千刈田","木ノ下１丁目","上野山１丁目","実沢字後山屋敷"]
[null,"大倉字海老沼","小鶴字銚子口","木ノ下２丁目","上野山２丁目","実沢字江下"]
[null,"大倉字大清水","小鶴字築留","木ノ下３丁目","上野山３丁目","実沢字小川淵"]
[null,"大倉字大手門","小鶴字野谷地東","木ノ下４丁目","恵和町","実沢字男生山"]
[null,"大倉字大葉羅","小鶴字野谷地南","木ノ下５丁目","越路","実沢字金屋敷"]
[null,"大倉字大原","小鶴字羽山","椌木通","郡山１丁目","実沢字鹿野"]
[null,"大倉字大葉羅上","小鶴字前谷地","穀町","郡山２丁目","実沢字釜ケ沢前沢"]
[null,"大倉字大葉羅下","小鶴字吉川","五十人町","郡山３丁目","実沢字釜ケ沢山"]
[null,"大倉字大原新田","小鶴字籠田","三百人町","郡山４丁目","実沢字釜淵"]
[null,"大倉字越底内","小鶴字籠田南","三本塚字赤沼下","郡山５丁目","実沢字上"]
[null,"大倉字御林","五輪１丁目","三本塚字赤沼西","郡山６丁目","実沢字上林"]
[null,"大倉字垣隅","五輪２丁目","三本塚字赤沼東","郡山７丁目","実沢字河原下"]
[null,"大倉字片下り","幸町１丁目","三本塚字井土堀","郡山８丁目","実沢字搦目"]
[null,"大倉字上小作","幸町２丁目","三本塚字上潮入","郡山字穴田西","実沢字勘太山"]
[null,"大倉字上菅田","幸町３丁目","三本塚字北中谷地","郡山字穴田東","実沢字菅野屋敷"]
[null,"大倉字上田沢","幸町４丁目","三本塚字荒谷","郡山字石塚","実沢字橘川屋敷"]
[null,"大倉字上山崎","幸町５丁目","三本塚字権毛下","郡山字一丁田","実沢字木村持山堤下"]
[null,"大倉字空堀","栄１丁目","三本塚字権太","郡山字小原","実沢字行屋"]
[null,"大倉字川縁","栄２丁目","三本塚字境堀","郡山字欠ノ上","実沢字桐ケ崎前下"]
[null,"大倉字上原","栄３丁目","三本塚字下新田","郡山字籠ノ瀬","実沢字桐ケ崎屋敷"]
[null,"大倉字北坂下","栄４丁目","三本塚字中潮入","郡山字北目宅地","実沢字熊野山"]
[null,"大倉字北谷地","栄５丁目","三本塚字中条浦","郡山字北目前","実沢字熊野山上"]
[null,"大倉字狐森","清水沼１丁目","三本塚字中谷地","郡山字行新田","実沢字源兵衛沢"]
[null,"大倉字木戸","清水沼２丁目","三本塚字沼屋敷浦","郡山字源兵衛西","実沢字荒神"]
[null,"大倉字久保","清水沼３丁目","三本塚字道下","郡山字源兵衛東","実沢字桜田前"]
[null,"大倉字窪田","自由ケ丘","清水小路","郡山字上野","実沢字去田沢目山"]
[null,"大倉字熊坂","白鳥１丁目","下飯田字高野東","郡山字菖蒲田","実沢字去田下無串"]
[null,"大倉字栗林","白鳥２丁目","下飯田字境南","郡山字新橋北","実沢字去田中"]
[null,"大倉字栗生","新田１丁目","下飯田字築道","郡山字新橋南","実沢字去田孫八"]
[null,"大倉字源左衛門谷地","新田２丁目","下飯田字築道東","郡山字舘ノ内","実沢字去田屋敷"]
[null,"大倉字小坂","新田３丁目","下飯田字遠十丁","郡山字出丸","実沢字沢目下"]
[null,"大倉字越倉","新田４丁目","下飯田字遠谷地","郡山字戸津河原","実沢字山旧下河原"]
[null,"大倉字小原","新田５丁目","下飯田字西田","郡山字原田","実沢字山旧淵下"]
[null,"大倉字斎野神","新田東１丁目","下飯田字屋敷北","郡山字深町","実沢字下原東屋敷"]
[null,"大倉字佐井利","新田東２丁目","下飯田字屋敷東","郡山字吹上下","実沢字清水田"]
[null,"大倉字座頭石","新田東３丁目","下飯田字屋敷南","郡山字吹上西","実沢字清水田中"]
[null,"大倉字沢口","新田東４丁目","白萩町","郡山字吹上西二野","実沢字清水田前下"]
[null,"大倉字獅籠","新田東５丁目","四郎丸字山野内","郡山字吹上東","実沢字清水田松原"]
[null,"大倉字清水前","仙石","志波町","郡山字南上河原","実沢字清水田屋敷"]
[null,"大倉字下窪","仙台港北１丁目","新寺１丁目","郡山字南下河原","実沢字十文字"]
[null,"大倉字下倉","仙台港北２丁目","新寺２丁目","郡山字南下河原向","実沢字新松山"]
[null,"大倉字下倉道合","高砂１丁目","新寺３丁目","郡山字南中河原北","実沢字諏訪上"]
[null,"大倉字下倉道下","高砂２丁目","新寺４丁目","郡山字南中河原南","実沢字諏訪下三番"]
[null,"大倉字下平","田子１丁目","新寺５丁目","郡山字矢口田","実沢字諏訪二番"]
[null,"大倉字下田沢","田子２丁目","新弓ノ町","郡山字谷地田西","実沢字諏訪四番"]
[null,"大倉字下道","田子３丁目","畳屋丁","郡山字谷地田東","実沢字清吾"]
[null,"大倉字上下","田子字愛宕","種次字市兵衛","郡山字矢来前","実沢字関場上"]
[null,"大倉字上下山神","田子字入","種次字沢目","郡山字蓬田","実沢字堰場下"]
[null,"大倉字菖蒲沼","田子字上","種次字山王前","小塚原字北中塚","実沢字関場屋敷"]
[null,"大倉字白木","田子字上井","種次字高原","金剛沢１丁目","実沢字泉秀院"]
[null,"大倉字治郎兵衛","田子字五平淵","種次字竹野花","金剛沢２丁目","実沢字曽利子"]
[null,"大倉字新山","田子字権八","種次字寺西","金剛沢３丁目","実沢字曽利子下"]
[null,"大倉字新田","田子字新入","種次字道元","桜木町","実沢字曽利子下河原"]
[null,"大倉字神明下","田子字田子西","種次字中斎","佐保山","実沢字曽利子屋敷"]
[null,"大倉字神明前","田子字天防","種次字中野","下余田字成田","実沢字高城"]
[null,"大倉字菅谷地","田子字富里","種次字中野東","四郎丸字大宮","実沢字高田"]
[null,"大倉字堰下","田子字鳥井","種次字中野町","四郎丸字岡谷地","実沢字立田"]
[null,"大倉字堰の沢","田子字中坪","種次字中屋敷","四郎丸字落合","実沢字立田荒谷地"]
[null,"大倉字堰場","田子字七畝","種次字沼田","四郎丸字桜木","実沢字立田新屋敷"]
[null,"大倉字曽倉","田子字西谷地","種次字番古","四郎丸字地蔵前","実沢字立田原"]
[null,"大倉字大六天","田子字袋河原","種次字東番古","四郎丸字尺丈島北","実沢字立田銘"]
[null,"大倉字高柵","田子字要害","種次字南番古","四郎丸字昭和裏","実沢字立田屋敷"]
[null,"大倉字高畑","田子西１丁目","長喜城字御蔵堀","四郎丸字昭和上","実沢字立田谷地"]
[null,"大倉字高見沢","田子西２丁目","長喜城字鉄砲前","四郎丸字昭和北","実沢字立田山"]
[null,"大倉字高森","田子西３丁目","長喜城字宮浦","四郎丸字昭和境","実沢字立田山神"]
[null,"大倉字滝ノ上","榴ケ岡","長喜城字宮前","四郎丸字昭和下","実沢字立田山神前"]
[null,"大倉字舘下","榴岡１丁目","長喜城字屋敷","四郎丸字昭和中","実沢字館後"]
[null,"大倉字地境","榴岡２丁目","長喜城字山神","四郎丸字昭和西","実沢字館沢"]
[null,"大倉字塚田","榴岡３丁目","長喜城字山神東","四郎丸字昭和東","実沢字館西谷地"]
[null,"大倉字堤沢","榴岡４丁目","土樋","四郎丸字昭和前","実沢字館前上"]
[null,"大倉字寺下","榴岡５丁目","土樋１丁目","四郎丸字昭和南","実沢字館前下"]
[null,"大倉字鳥谷峯","燕沢１丁目","鶴代町","四郎丸字新川","実沢字館前中"]
[null,"大倉字長窪","燕沢２丁目","堰場","四郎丸字新田","実沢字館屋敷"]
[null,"大倉字中崎","燕沢３丁目","遠見塚１丁目","四郎丸字神明","実沢字玉手"]
[null,"大倉字中白木","燕沢字北田","遠見塚２丁目","四郎丸字田中","実沢字段ノ原"]
[null,"大倉字長沼","燕沢字長町","遠見塚３丁目","四郎丸字戸ノ内","実沢字堤田"]
[null,"大倉字西風側","燕沢字糠塚","遠見塚東","四郎丸字土浮","実沢字寺内"]
[null,"大倉字西田","燕沢字原田","中倉１丁目","四郎丸字浜堀","実沢字伝城上"]
[null,"大倉字西畑","燕沢字前田","中倉２丁目","四郎丸字原東","実沢字伝城下"]
[null,"大倉字西原","燕沢字前塚","中倉３丁目","四郎丸字吹上","実沢字道祖神"]
[null,"大倉字根地木","燕沢字谷地","なないろの里１丁目","四郎丸字弁天","実沢字飛観音"]
[null,"大倉字野川","燕沢東１丁目","なないろの里２丁目","四郎丸字前","実沢字戸平"]
[null,"大倉字墓前","燕沢東２丁目","なないろの里３丁目","四郎丸字松原","実沢字中"]
[null,"大倉字白山","燕沢東３丁目","成田町","四郎丸字水押","実沢字中谷地前"]
[null,"大倉字橋折","鶴ケ谷１丁目","二軒茶屋","四郎丸字芳塚","実沢字中山北"]
[null,"大倉字橋本","鶴ケ谷２丁目","西新丁","四郎丸字渡道","実沢字中山南"]
[null,"大倉字原田","鶴ケ谷３丁目","日辺字大久保","砂押町","実沢字新坂沢"]
[null,"大倉字原山","鶴ケ谷４丁目","日辺字沖田","砂押南町","実沢字新坂沢下"]
[null,"大倉字東上原","鶴ケ谷５丁目","日辺字沖田東","諏訪町","実沢字西後山"]
[null,"大倉字東沢目","鶴ケ谷６丁目","日辺字落合道","太子堂","実沢字西山"]
[null,"大倉字東菖蒲沼","鶴ケ谷７丁目","日辺字五畝","太白１丁目","実沢字二ノ関穴田"]
[null,"大倉字樋渡","鶴ケ谷８丁目","日辺字五郎屋敷","太白２丁目","実沢字二ノ関下三番"]
[null,"大倉字古館","鶴ケ谷字大谷","日辺字沢目","太白３丁目","実沢字二ノ関下四番"]
[null,"大倉字宝伝前","鶴ケ谷字崖ノ上","日辺字敷地田","高柳字圭田","実沢字二ノ関下上"]
[null,"大倉字細田","鶴ケ谷字金堀","日辺字朱来","高柳字皇檀ケ原","実沢字二ノ関下河原一番"]
[null,"大倉字前田","鶴ケ谷字川原","日辺字千刈田","高柳字山神","実沢字二ノ関下河原二番"]
[null,"大倉字前原","鶴ケ谷字北畑","日辺字高田","坪沼字相ノ原","実沢字二ノ関西"]
[null,"大倉字大豆沢","鶴ケ谷字京田","日辺字高原","坪沼字青木沢","実沢字二ノ関橋本"]
[null,"大倉字丸森","鶴ケ谷字京原","日辺字宅所","坪沼字赤石山","実沢字二ノ関橋本西"]
[null,"大倉字丸谷地","鶴ケ谷字坂下","日辺字宅所下","坪沼字咨戸沢","実沢字二ノ関屋敷"]
[null,"大倉字丸山","鶴ケ谷字新田","日辺字宅地","坪沼字愛宕山中","実沢字蒜屋敷"]
[null,"大倉字水溜","鶴ケ谷字竹ノ花","日辺字田中","坪沼字愛宕山西","実沢字蒜屋敷前"]
[null,"大倉字道合","鶴ケ谷字舘下","日辺字土手合","坪沼字愛宕山東","実沢字萩屋敷"]
[null,"大倉字道中","鶴ケ谷字筒下","日辺字西河原","坪沼字板橋","実沢字萩屋敷欠下"]
[null,"大倉字水口","鶴ケ谷字中曾根","日辺字畑田","坪沼字一貫地","実沢字萩屋敷西沢"]
[null,"大倉字南","鶴ケ谷字並柳","日辺字林前","坪沼字稲塚中","実沢字畑田"]
[null,"大倉字南坂下","鶴ケ谷字原田","日辺字前河原","坪沼字稲塚西","実沢字畑中"]
[null,"大倉字南ノ沢","鶴ケ谷字本山","日辺字前田","坪沼字稲塚東","実沢字鼻毛"]
[null,"大倉字宮","鶴ケ谷字谷地","八軒小路","坪沼字稲塚南","実沢字馬場屋敷"]
[null,"大倉字宮前","鶴ケ谷北１丁目","東七番丁","坪沼字稲塚山","実沢字早坂下"]
[null,"大倉字向大倉山","鶴ケ谷北２丁目","東八番丁","坪沼字内城","実沢字葉山下"]
[null,"大倉字向田","鶴ケ谷東１丁目","東九番丁","坪沼字大貝上","実沢字葉山下三番"]
[null,"大倉字向前原","鶴ケ谷東１丁目","東新丁","坪沼字大貝下","実沢字原田"]
[null,"大倉字名剣原","鶴ケ谷東２丁目","藤塚字一本松","坪沼字大貝中","実沢字原田下"]
[null,"大倉字薬師","鶴ケ谷東３丁目","藤塚字牛道下","坪沼字大貝山","実沢字半田原西"]
[null,"大倉字矢籠","鶴ケ谷東４丁目","藤塚字三十刈","坪沼字大木田","実沢字半田原東"]
[null,"大倉字矢籠山","鶴巻１丁目","藤塚字下川原","坪沼字大苗","実沢字番堂山"]
[null,"大倉字屋敷平","鶴巻２丁目","藤塚字土手外","坪沼字大浪","実沢字広瀬"]
[null,"大倉字薮畑","鉄砲町","藤塚字中道下","坪沼字大針","実沢字広瀬川橋向"]
[null,"大倉字山下","鉄砲町中","藤塚字沼田","坪沼字上前","実沢字広畑"]
[null,"大倉字山根","鉄砲町西","藤塚字東谷地","坪沼字河原","実沢字樋渡"]
[null,"大倉字山野沢","鉄砲町東","藤塚字松の西","坪沼字北ノ上","実沢字細椚"]
[null,"大倉字湯湧","名掛丁","藤塚字屋敷","坪沼字北ノ下","実沢字細椚後屋敷"]
[null,"大倉字横川","中野１丁目","二木字大口","坪沼字北ノ中","実沢字細椚天皇"]
[null,"大倉字横川岳","中野２丁目","二木字笠神","坪沼字北原","実沢字細椚中谷地下"]
[null,"大倉字横根","中野３丁目","二木字荒谷西","坪沼字熊野前","実沢字細椚西"]
[null,"大倉字夜盗沢","中野４丁目","二木字山王","坪沼字郷田","実沢字細椚前"]
[null,"大倉字若林","中野５丁目","二木字新原","坪沼字境田","実沢字細椚前屋敷"]
[null,"大手町","中野字阿弥陀堂","二木字野中","坪沼字塩ノ瀬","実沢字細椚向芦沢"]
[null,"大町１丁目","中野字石橋","二木字広町","坪沼字宿畑","実沢字細椚向下"]
[null,"大町２丁目","中野字出花","二木字深谷地","坪沼字硯石","実沢字細野"]
[null,"霊屋下","中野字出花西","二木字二木前","坪沼字砂田","実沢字細野下"]
[null,"小田原４丁目","中野字牛小舎","二木字二又","坪沼字袖原","実沢字細野東"]
[null,"小田原５丁目","中野字大貝沼","二木字水神","坪沼字大八上","実沢字松原一番"]
[null,"小田原６丁目","中野字門浦","二木字山神","坪沼字大八下","実沢字松原中北"]
[null,"小田原７丁目","中野字上小袋田","舟丁","坪沼字滝ノ原","実沢字松原南"]
[null,"小田原８丁目","中野字柄越","古城１丁目","坪沼字舘","実沢字丸子淵"]
[null,"落合１丁目","中野字北上","古城２丁目","坪沼字舘前中","実沢字丸子淵下"]
[null,"落合２丁目","中野字腰廻","古城３丁目","坪沼字舘前西","実沢字宮下前"]
[null,"落合３丁目","中野字小原田","古城３丁目","坪沼字舘前東","実沢字宮下屋敷"]
[null,"落合４丁目","中野字四反田","文化町","坪沼字坪毛入","実沢字宮西"]
[null,"落合５丁目","中野字下小袋田","保春院前丁","坪沼字寺前","実沢字宮東"]
[null,"落合６丁目","中野字新川","南石切町","坪沼字寺山","実沢字明神"]
[null,"折立１丁目","中野字新田","南鍛冶町","坪沼字中沖","実沢字向田"]
[null,"折立２丁目","中野字神明","南小泉１丁目","坪沼字中沖北","実沢字向山"]
[null,"折立３丁目","中野字杉本","南小泉２丁目","坪沼字中沖南","実沢字無串後"]
[null,"折立４丁目","中野字高橋前","南小泉３丁目","坪沼字中沖山","実沢字無串河原"]
[null,"折立５丁目","中野字高松","南小泉４丁目","坪沼字長田北","実沢字六堂屋敷"]
[null,"折立６丁目","中野字只屋敷","南小泉字八軒小路","坪沼字長田中","実沢字六堂屋敷二番"]
[null,"貝ケ森１丁目","中野字寺前","南材木町","坪沼字長田西","実沢字茂倉山"]
[null,"貝ケ森２丁目","中野字堂崎","南染師町","坪沼字長田東","実沢字餅田"]
[null,"貝ケ森３丁目","中野字西原","元茶畑","坪沼字長田南","実沢字本屋敷"]
[null,"貝ケ森４丁目","中野字沼頭","大和町１丁目","坪沼字中山","実沢字森子田"]
[null,"貝ケ森５丁目","中野字沼向","大和町２丁目","坪沼字沼尻","実沢字森子田下"]
[null,"貝ケ森６丁目","中野字掃沼","大和町３丁目","坪沼字沼山","実沢字門前中"]
[null,"花京院１丁目","中野字船入","大和町４丁目","坪沼字根添","実沢字門前古屋敷"]
[null,"花京院２丁目","中野字古川","大和町５丁目","坪沼字根添中","実沢字八乙女"]
[null,"柏木１丁目","中野字前田","弓ノ町","坪沼字根添西","実沢字八乙女魚留"]
[null,"柏木２丁目","中野字向田","連坊１丁目","坪沼字根添東","実沢字八乙女下屋敷一番"]
[null,"柏木３丁目","中野字資田","連坊２丁目","坪沼字原前","実沢字八乙女下屋敷二番"]
[null,"春日町","中野字柳原","連坊小路","坪沼字針山","実沢字八乙女堰上"]
[null,"片平１丁目","中野字雷神","六郷","坪沼字東山","実沢字八乙女出戸"]
[null,"片平２丁目","苦竹１丁目","六十人町","坪沼字百枚田","実沢字八乙女札原"]
[null,"花壇","苦竹２丁目","六丁目字赤沼","坪沼字平四郎入","実沢字八乙女札原下"]
[null,"上愛子字赤生木","苦竹３丁目","六丁目字赤沼角","坪沼字南","実沢字八乙女前"]
[null,"上愛子字芦見","苦竹４丁目","六丁目字左近堀","坪沼字南山","実沢字八乙女持山"]
[null,"上愛子字荒","西宮城野","六丁目字細谷","坪沼字山田","実沢字八乙女屋敷"]
[null,"上愛子字板颪","二十人町","六丁目字南","坪沼字横根山","実沢字八沢"]
[null,"上愛子字五ツ森","二十人町通","六丁目字柳堀東","土手内１丁目","実沢字八沢下"]
[null,"上愛子字芋郷","二の森","六丁目字柳堀南","土手内２丁目","実沢字八沢橋本"]
[null,"上愛子字岩多羅山","萩野町１丁目","六丁の目北町","土手内３丁目","実沢字林泉寺下"]
[null,"上愛子字岩元","萩野町２丁目","六丁の目中町","富沢１丁目","実沢字林泉寺前上"]
[null,"上愛子字岩元前","萩野町３丁目","六丁の目西町","富沢２丁目","実沢字涌上り上"]
[null,"上愛子字梅ノ木田","萩野町４丁目","六丁の目東町","富沢３丁目","実沢字涌上り前南"]
[null,"上愛子字運南","原町１丁目","六丁の目南町","富沢４丁目","実沢字涌上り道合"]
[null,"上愛子字榎","原町２丁目","六丁の目元町","富沢字鍛冶屋敷","実沢字涌上り向田"]
[null,"上愛子字大岩","原町３丁目","若林１丁目","富沢字鍛冶屋敷前","実沢字涌上り屋敷"]
[null,"上愛子字大清水","原町４丁目","若林２丁目","富沢字川前","将監１０丁目"]
[null,"上愛子字大平","原町５丁目","若林３丁目","富沢字川前浦","将監１１丁目"]
[null,"上愛子字大針","原町６丁目","若林４丁目","富沢字川前東","将監１２丁目"]
[null,"上愛子字大道","原町苦竹字梅田","若林５丁目","富沢字熊ノ前","将監１３丁目"]
[null,"上愛子字大森","原町南目字町","若林６丁目","富沢字金剛沢","将監１丁目"]
[null,"上愛子字折葉","東六番丁","若林７丁目","富沢字下ノ内","将監２丁目"]
[null,"上愛子字街道","東仙台１丁目",null,"富沢字下ノ内浦","将監３丁目"]
[null,"上愛子字上大椚","東仙台２丁目",null,"富沢字下ノ内前","将監４丁目"]
[null,"上愛子字上北","東仙台３丁目",null,"富沢字外河原","将監５丁目"]
[null,"上愛子字上沢口","東仙台４丁目",null,"富沢字舘","将監６丁目"]
[null,"上愛子字上志田","東仙台５丁目",null,"富沢字舘東","将監７丁目"]
[null,"上愛子字上十三枚田","東仙台６丁目",null,"富沢字寺城","将監８丁目"]
[null,"上愛子字上遠野原","東仙台７丁目",null,"富沢字中河原","将監９丁目"]
[null,"上愛子字上町","東宮城野",null,"富沢字舞台","将監殿１丁目"]
[null,"上愛子字北内","日の出町１丁目",null,"富沢字前小路","将監殿２丁目"]
[null,"上愛子字北田","日の出町２丁目",null,"富沢字松山","将監殿３丁目"]
[null,"上愛子字北原","日の出町３丁目",null,"富沢字宮崎","将監殿４丁目"]
[null,"上愛子字北原道上","福住町",null,"富沢字山口","将監殿５丁目"]
[null,"上愛子字狐","福田町１丁目",null,"富沢字六本松","松陵１丁目"]
[null,"上愛子字倉内","福田町２丁目",null,"富沢西１丁目","松陵２丁目"]
[null,"上愛子字車","福田町３丁目",null,"富沢西２丁目","松陵３丁目"]
[null,"上愛子字小塩前","福田町４丁目",null,"富沢西３丁目","松陵４丁目"]
[null,"上愛子字斉勝森","福田町南１丁目",null,"富沢西４丁目","松陵５丁目"]
[null,"上愛子字坂下","福田町南２丁目",null,"富沢西５丁目","住吉台西１丁目"]
[null,"上愛子字沢目","福室１丁目",null,"富沢南１丁目","住吉台西２丁目"]
[null,"上愛子字三本木","福室２丁目",null,"富沢南２丁目","住吉台西３丁目"]
[null,"上愛子字塩柄","福室３丁目",null,"富田字上野中","住吉台西４丁目"]
[null,"上愛子字志田","福室４丁目",null,"富田字上野西","住吉台東１丁目"]
[null,"上愛子字下清水","福室５丁目",null,"富田字上野東","住吉台東２丁目"]
[null,"上愛子字下大椚","福室６丁目",null,"富田字京ノ北","住吉台東３丁目"]
[null,"上愛子字下北","福室７丁目",null,"富田字京ノ中","住吉台東４丁目"]
[null,"上愛子字下沢口","福室字御蔵前三番",null,"富田字京ノ南","住吉台東５丁目"]
[null,"上愛子字下十三枚田","福室字御蔵前二番",null,"富田字京町外河原","高玉町"]
[null,"上愛子字下遠野原","福室字上河原",null,"富田字南ノ中","高森１丁目"]
[null,"上愛子字蛇台原","福室字久保野一番",null,"富田字南ノ西","高森２丁目"]
[null,"上愛子字白沢","福室字久保野二番",null,"富田字南ノ東","高森３丁目"]
[null,"上愛子字新宮前","福室字県道前",null,"富田字八幡中","高森４丁目"]
[null,"上愛子字神明","福室字小原一番",null,"富田字八幡西","高森５丁目"]
[null,"上愛子字大五郎","福室字小原二番",null,"富田字八幡東","高森６丁目"]
[null,"上愛子字宝前","福室字境四番",null,"中田１丁目","高森７丁目"]
[null,"上愛子字田子上","福室字下河原",null,"中田２丁目","高森８丁目"]
[null,"上愛子字田子下","福室字新原田",null,"中田３丁目","長命ケ丘１丁目"]
[null,"上愛子字立石","福室字田中",null,"中田４丁目","長命ケ丘２丁目"]
[null,"上愛子字舘ノ内","福室字田中東一番",null,"中田５丁目","長命ケ丘３丁目"]
[null,"上愛子字田中","福室字田中東二番",null,"中田６丁目","長命ケ丘４丁目"]
[null,"上愛子字月見","福室字田中前一番",null,"中田７丁目","長命ケ丘５丁目"]
[null,"上愛子字堤","福室字田中前二番",null,"中田町字荒屋敷","長命ケ丘６丁目"]
[null,"上愛子字寺","福室字原田一番",null,"中田町字後河原","長命ケ丘東"]
[null,"上愛子字樋田","福室字原田二番",null,"中田町字鎌ケ淵","鶴が丘１丁目"]
[null,"上愛子字遠野原","福室字平柳",null,"中田町字北","鶴が丘２丁目"]
[null,"上愛子字道半","福室字弁当三番",null,"中田町字境","鶴が丘３丁目"]
[null,"上愛子字内崩","福室字弁当二番",null,"中田町字清水","鶴が丘４丁目"]
[null,"上愛子字中斉","福室字由谷地",null,"中田町字下古川","寺岡１丁目"]
[null,"上愛子字中遠野原","平成１丁目",null,"中田町字神明東","寺岡２丁目"]
[null,"上愛子字中道","平成２丁目",null,"中田町字杉ノ下","寺岡３丁目"]
[null,"上愛子字西","枡江",null,"中田町字千刈田","寺岡４丁目"]
[null,"上愛子字西原","松岡町",null,"中田町字寺浦","寺岡５丁目"]
[null,"上愛子字沼田","港１丁目",null,"中田町字留向","寺岡６丁目"]
[null,"上愛子字箱倉山","港２丁目",null,"中田町字二軒橋","天神沢１丁目"]
[null,"上愛子字橋本","港３丁目",null,"中田町字東","天神沢２丁目"]
[null,"上愛子字原","港４丁目",null,"中田町字東河原","七北田字赤生津"]
[null,"上愛子字二岩","港５丁目",null,"中田町字法地北","七北田字大沢"]
[null,"上愛子字舟橋","南目館",null,"中田町字法地南","七北田字大沢相ノ沢"]
[null,"上愛子字麓道上","宮城野１丁目",null,"中田町字前沖","七北田字大沢明通"]
[null,"上愛子字麓道下","宮城野２丁目",null,"中田町字前沖北","七北田字大沢大谷"]
[null,"上愛子字平治","宮城野３丁目",null,"中田町字前沖中","七北田字大沢柏"]
[null,"上愛子字辺田","宮千代１丁目",null,"中田町字前沖南","七北田字大沢上殿"]
[null,"上愛子字堀切","宮千代２丁目",null,"長町１丁目","七北田字大沢上蛇石"]
[null,"上愛子字前堀","宮千代３丁目",null,"長町２丁目","七北田字大沢上前"]
[null,"上愛子字前山","元寺小路",null,"長町３丁目","七北田字大沢木戸"]
[null,"上愛子字松原",null,null,"長町４丁目","七北田字大沢黒崎"]
[null,"上愛子字道合",null,null,"長町５丁目","七北田字大沢小松"]
[null,"上愛子字道上",null,null,"長町６丁目","七北田字大沢境"]
[null,"上愛子字道下",null,null,"長町７丁目","七北田字大沢大ケ沢"]
[null,"上愛子字南",null,null,"長町８丁目","七北田字大沢銅谷"]
[null,"上愛子字峯岸",null,null,"長町字越路","七北田字大沢殿"]
[null,"上愛子字宮入",null,null,"長町字地蔵堂","七北田字大沢鳥谷ケ沢"]
[null,"上愛子字宮下",null,null,"長町南１丁目","七北田字大沢中才"]
[null,"上愛子字宮西",null,null,"長町南２丁目","七北田字大沢中沢"]
[null,"上愛子字屋敷前",null,null,"長町南３丁目","七北田字大沢日焼"]
[null,"上愛子字谷地",null,null,"長町南４丁目","七北田字大沢丸山"]
[null,"上愛子字山神",null,null,"長嶺","七北田字大沢向原"]
[null,"上愛子字山下",null,null,"西多賀１丁目","七北田字大沢杢田"]
[null,"上愛子字雷神",null,null,"西多賀２丁目","七北田字欠下"]
[null,"上杉１丁目",null,null,"西多賀３丁目","七北田字駕籠沢"]
[null,"上杉２丁目",null,null,"西多賀４丁目","七北田字郷北沢"]
[null,"上杉３丁目",null,null,"西多賀５丁目","七北田字境"]
[null,"上杉４丁目",null,null,"西中田１丁目","七北田字笹"]
[null,"上杉５丁目",null,null,"西中田２丁目","七北田字白水沢"]
[null,"上杉６丁目",null,null,"西中田３丁目","七北田字新田"]
[null,"川内",null,null,"西中田４丁目","七北田字菅間"]
[null,"川内追廻",null,null,"西中田５丁目","七北田字菅間官林"]
[null,"川内亀岡北裏丁",null,null,"西中田６丁目","七北田字杉ノ田"]
[null,"川内亀岡町",null,null,"西中田７丁目","七北田字堰"]
[null,"川内川前丁",null,null,"西の平１丁目","七北田字高柳"]
[null,"川内三十人町",null,null,"西の平２丁目","七北田字滝原"]
[null,"川内大工町",null,null,"日本平","七北田字田中"]
[null,"川内中ノ瀬町",null,null,"根岸町","七北田字丹波沢"]
[null,"川内明神横丁",null,null,"萩ケ丘","七北田字寺沢"]
[null,"川内元支倉",null,null,"羽黒台","七北田字七ツ沼"]
[null,"川内山屋敷",null,null,"旗立１丁目","七北田字新道"]
[null,"川内澱橋通",null,null,"旗立２丁目","七北田字二本柳"]
[null,"川平１丁目",null,null,"旗立３丁目","七北田字念仏"]
[null,"川平２丁目",null,null,"八本松１丁目","七北田字野山"]
[null,"川平３丁目",null,null,"八本松２丁目","七北田字東裏"]
[null,"川平４丁目",null,null,"東大野田","七北田字日野"]
[null,"川平５丁目",null,null,"東郡山１丁目","七北田字古内"]
[null,"菊田町",null,null,"東郡山２丁目","七北田字古川"]
[null,"北根１丁目",null,null,"東中田１丁目","七北田字朴木沢"]
[null,"北根２丁目",null,null,"東中田２丁目","七北田字町"]
[null,"北根３丁目",null,null,"東中田３丁目","七北田字道"]
[null,"北根４丁目",null,null,"東中田４丁目","七北田字八乙女"]
[null,"北根黒松",null,null,"東中田５丁目","七北田字柳"]
[null,"北目町",null,null,"東中田６丁目","七北田字山ノ寺"]
[null,"北山１丁目",null,null,"人来田１丁目","南光台１丁目"]
[null,"北山２丁目",null,null,"人来田２丁目","南光台２丁目"]
[null,"北山３丁目",null,null,"人来田３丁目","南光台３丁目"]
[null,"木町",null,null,"ひより台","南光台４丁目"]
[null,"木町通１丁目",null,null,"袋原１丁目","南光台５丁目"]
[null,"木町通２丁目",null,null,"袋原２丁目","南光台６丁目"]
[null,"国見１丁目",null,null,"袋原３丁目","南光台７丁目"]
[null,"国見２丁目",null,null,"袋原４丁目","南光台東１丁目"]
[null,"国見３丁目",null,null,"袋原５丁目","南光台東２丁目"]
[null,"国見４丁目",null,null,"袋原６丁目","南光台東３丁目"]
[null,"国見５丁目",null,null,"袋原字内手","南光台南１丁目"]
[null,"国見６丁目",null,null,"袋原字北河原","南光台南２丁目"]
[null,"国見ケ丘１丁目",null,null,"袋原字小原","南光台南３丁目"]
[null,"国見ケ丘２丁目",null,null,"袋原字定野西","西田中字青木前"]
[null,"国見ケ丘３丁目",null,null,"袋原字定野東","西田中字青木前東"]
[null,"国見ケ丘４丁目",null,null,"袋原字堰場","西田中字荒屋敷"]
[null,"国見ケ丘５丁目",null,null,"袋原字台","西田中字荒屋敷西"]
[null,"国見ケ丘６丁目",null,null,"袋原字西前","西田中字荒屋敷南"]
[null,"国見ケ丘７丁目",null,null,"袋原字平淵","西田中字伊梨沢"]
[null,"熊ケ根字赤沢山",null,null,"二ツ沢","西田中字稲荷沢"]
[null,"熊ケ根字石積",null,null,"松が丘","西田中字稲荷沢西"]
[null,"熊ケ根字石橋",null,null,"三神峯１丁目","西田中字稲荷沢東"]
[null,"熊ケ根字大原道",null,null,"三神峯２丁目","西田中字大堰原"]
[null,"熊ケ根字小込沢山",null,null,"御堂平","西田中字大堤"]
[null,"熊ケ根字関一番",null,null,"緑ケ丘１丁目","西田中字大堤前"]
[null,"熊ケ根字関三番",null,null,"緑ケ丘２丁目","西田中字姥懐"]
[null,"熊ケ根字関二番",null,null,"緑ケ丘３丁目","西田中字姥懐西"]
[null,"熊ケ根字檀の原一番",null,null,"緑ケ丘４丁目","西田中字嘉右エ門河原"]
[null,"熊ケ根字檀の原二番",null,null,"南大野田","西田中字加賀屋敷"]
[null,"熊ケ根字土手ノ上",null,null,"向山１丁目","西田中字加賀屋敷北"]
[null,"熊ケ根字捻木",null,null,"向山２丁目","西田中字柿木田西"]
[null,"熊ケ根字野川",null,null,"向山３丁目","西田中字柿屋敷"]
[null,"熊ケ根字棒原",null,null,"向山４丁目","西田中字柿屋敷後"]
[null,"熊ケ根字前田",null,null,"茂ケ崎１丁目","西田中字柿屋敷西"]
[null,"熊ケ根字前原",null,null,"茂ケ崎２丁目","西田中字上川添西"]
[null,"熊ケ根字前原山",null,null,"茂ケ崎３丁目","西田中字上川添南"]
[null,"熊ケ根字町一番の一",null,null,"茂ケ崎４丁目","西田中字上舘西"]
[null,"熊ケ根字町一番の五",null,null,"茂庭１丁目","西田中字上田中"]
[null,"熊ケ根字町一番の三",null,null,"茂庭２丁目","西田中字上田中東"]
[null,"熊ケ根字町一番の二",null,null,"茂庭字合ノ沢北","西田中字上河原"]
[null,"熊ケ根字町一番の四",null,null,"茂庭字合ノ沢南","西田中字上河原北"]
[null,"熊ケ根字町一番の六",null,null,"茂庭字赤石山","西田中字上河原西"]
[null,"熊ケ根字町五番",null,null,"茂庭字愛宕山","西田中字上道下"]
[null,"熊ケ根字町三番",null,null,"茂庭字上ノ原山","西田中字上道下中"]
[null,"熊ケ根字町二番",null,null,"茂庭字宇塚","西田中字上道下西"]
[null,"熊ケ根字町四番",null,null,"茂庭字生出前","西田中字上山下"]
[null,"熊ケ根字町六番",null,null,"茂庭字生出森","西田中字萱場"]
[null,"熊ケ根字南",null,null,"茂庭字生出森東","西田中字萱場中"]
[null,"栗生１丁目",null,null,"茂庭字大沢","西田中字萱場東"]
[null,"栗生２丁目",null,null,"茂庭字大堤","西田中字萱場前"]
[null,"栗生３丁目",null,null,"茂庭字門野","西田中字萱場向"]
[null,"栗生４丁目",null,null,"茂庭字門野山","西田中字萱場山"]
[null,"栗生５丁目",null,null,"茂庭字鹿ノ上","西田中字河原田"]
[null,"栗生６丁目",null,null,"茂庭字亀ケ森","西田中字官林"]
[null,"栗生７丁目",null,null,"茂庭字亀ケ森北","西田中字北屋敷"]
[null,"郷六字石山",null,null,"茂庭字萱ケ崎","西田中字杭城山"]
[null,"郷六字岩下",null,null,"茂庭字川添西","西田中字小倉"]
[null,"郷六字大霜",null,null,"茂庭字川添東","西田中字小倉官林"]
[null,"郷六字大森",null,null,"茂庭字熊野","西田中字小倉中"]
[null,"郷六字葛岡",null,null,"茂庭字五ケ銘","西田中字小倉山"]
[null,"郷六字葛岡下",null,null,"茂庭字御所川","西田中字小坂"]
[null,"郷六字久保",null,null,"茂庭字小塚西","西田中字小坂東"]
[null,"郷六字郷六上",null,null,"茂庭字小塚東","西田中字五百刈"]
[null,"郷六字郷六山",null,null,"茂庭字佐保山北","西田中字才ノ前"]
[null,"郷六字国有林",null,null,"茂庭字佐保山西","西田中字作田"]
[null,"郷六字笹ノ上",null,null,"茂庭字佐保山東","西田中字作田西"]
[null,"郷六字庄子",null,null,"茂庭字坂ノ下","西田中字作田東"]
[null,"郷六字龍沢",null,null,"茂庭字新熊野","西田中字沢ノ口"]
[null,"郷六字舘",null,null,"茂庭字新組","西田中字沢ノ口前"]
[null,"郷六字出戸",null,null,"茂庭字新御所川","西田中字三十刈山"]
[null,"郷六字沼田",null,null,"茂庭字曾根","西田中字清水沢"]
[null,"郷六字針金",null,null,"茂庭字高田西","西田中字志村"]
[null,"郷六字宮",null,null,"茂庭字高田東","西田中字下川添"]
[null,"郷六字屋敷",null,null,"茂庭字高田山","西田中字下川添北"]
[null,"郷六字四ツ谷堀敷",null,null,"茂庭字立石","西田中字下川添東"]
[null,"国分町１丁目",null,null,"茂庭字銅谷沢","西田中字下川添南"]
[null,"国分町２丁目",null,null,"茂庭字中ノ瀬中","西田中字下田中"]
[null,"国分町３丁目",null,null,"茂庭字中ノ瀬西","西田中字下田中後北"]
[null,"小松島１丁目",null,null,"茂庭字中ノ瀬東","西田中字下田中後南"]
[null,"小松島２丁目",null,null,"茂庭字中ノ森","西田中字下田中東"]
[null,"小松島３丁目",null,null,"茂庭字長嶺山","西田中字下田中南"]
[null,"小松島４丁目",null,null,"茂庭字中身山","西田中字新大堤"]
[null,"小松島新堤",null,null,"茂庭字中谷地北","西田中字新堰田"]
[null,"米ケ袋１丁目",null,null,"茂庭字中谷地南","西田中字堰下"]
[null,"米ケ袋２丁目",null,null,"茂庭字中谷地山","西田中字堰田"]
[null,"米ケ袋３丁目",null,null,"茂庭字梨野北","西田中字台"]
[null,"鷺ケ森１丁目",null,null,"茂庭字梨野中","西田中字台東"]
[null,"鷺ケ森２丁目",null,null,"茂庭字梨野西","西田中字鷹ノ巣"]
[null,"作並字相ノ沢",null,null,"茂庭字梨野東","西田中字竹田沢"]
[null,"作並字岩谷堂",null,null,"茂庭字鍋田","西田中字露払堤下"]
[null,"作並字岩谷堂西",null,null,"茂庭字西","西田中字露払西"]
[null,"作並字上ノ台上",null,null,"茂庭字西前","西田中字露払前"]
[null,"作並字上ノ台下",null,null,"茂庭字沼原","西田中字露払前河原下"]
[null,"作並字歌ノ沢",null,null,"茂庭字原","西田中字露払道北"]
[null,"作並字生嶽",null,null,"茂庭字原山","西田中字露払南"]
[null,"作並字御櫃前北",null,null,"茂庭字東","西田中字露払向"]
[null,"作並字御櫃前南",null,null,"茂庭字人来田中","西田中字露払向河原上"]
[null,"作並字鎌倉",null,null,"茂庭字人来田西","西田中字露払向河原中"]
[null,"作並字鎌倉下原",null,null,"茂庭字人来田東","西田中字露払屋敷"]
[null,"作並字鎌倉山",null,null,"茂庭字人来田山","西田中字寺崎西"]
[null,"作並字神ノ前西",null,null,"茂庭字舟木北","西田中字動目木"]
[null,"作並字神ノ前東",null,null,"茂庭字舟木南","西田中字中屋敷"]
[null,"作並字上日影",null,null,"茂庭字本郷","西田中字中屋敷西"]
[null,"作並字川崎",null,null,"茂庭字馬尾坂北","西田中字並木"]
[null,"作並字国有林",null,null,"茂庭字馬尾坂南","西田中字並木南"]
[null,"作並字小坂西",null,null,"茂庭字馬越石","西田中字西沢"]
[null,"作並字小坂東",null,null,"茂庭字町北","西田中字西沢東"]
[null,"作並字鹿込",null,null,"茂庭字町尻","西田中字根岸"]
[null,"作並字瀬戸原",null,null,"茂庭字町田","西田中字根岸東"]
[null,"作並字滝ノ上",null,null,"茂庭字松ケ平","西田中字根岸南"]
[null,"作並字檀ノ原",null,null,"茂庭字松場","西田中字根添"]
[null,"作並字樋ノ口",null,null,"茂庭字嶺岸","西田中字萩坂"]
[null,"作並字戸崎",null,null,"茂庭字嶺山","西田中字萩坂前"]
[null,"作並字戸崎下谷地",null,null,"茂庭字向根","西田中字萩坂前上"]
[null,"作並字戸崎原上",null,null,"茂庭字矢倉木","西田中字東沢"]
[null,"作並字長原",null,null,"茂庭台１丁目","西田中字朴ノ木"]
[null,"作並字中山",null,null,"茂庭台２丁目","西田中字朴ノ木山"]
[null,"作並字新坂",null,null,"茂庭台３丁目","西田中字松下"]
[null,"作並字沼山",null,null,"茂庭台４丁目","西田中字道合"]
[null,"作並字日影",null,null,"茂庭台５丁目","西田中字道下"]
[null,"作並字日向",null,null,"門前町","西田中字三森山"]
[null,"作並字深沢山",null,null,"八木山香澄町","西田中字焼河原"]
[null,"作並字二橋",null,null,"八木山東１丁目","西田中字焼河原北"]
[null,"作並字不動原",null,null,"八木山東２丁目","西田中字山岸"]
[null,"作並字葡萄原山",null,null,"八木山本町１丁目","西田中字山崎"]
[null,"作並字棒目木",null,null,"八木山本町２丁目","西田中字山崎南"]
[null,"作並字北子原",null,null,"八木山松波町","西中山一丁目"]
[null,"作並字北子原下",null,null,"八木山緑町","西中山二丁目"]
[null,"作並字元木",null,null,"八木山南１丁目","虹の丘１丁目"]
[null,"作並字薬師前",null,null,"八木山南２丁目","虹の丘２丁目"]
[null,"作並字山田北",null,null,"八木山南３丁目","虹の丘３丁目"]
[null,"作並字山田南",null,null,"八木山南４丁目","虹の丘４丁目"]
[null,"作並字湯ノ原",null,null,"八木山南５丁目","根白石字青笹山"]
[null,"桜ケ丘１丁目",null,null,"八木山南６丁目","根白石字青笹山ノ内団子坂"]
[null,"桜ケ丘２丁目",null,null,"八木山弥生町","根白石字揚場道下"]
[null,"桜ケ丘３丁目",null,null,"柳生１丁目","根白石字愛宕下"]
[null,"桜ケ丘４丁目",null,null,"柳生２丁目","根白石字愛宕下中"]
[null,"桜ケ丘５丁目",null,null,"柳生３丁目","根白石字愛宕下西"]
[null,"桜ケ丘６丁目",null,null,"柳生４丁目","根白石字愛宕脇北"]
[null,"桜ケ丘７丁目",null,null,"柳生５丁目","根白石字油房堤下"]
[null,"桜ケ丘８丁目",null,null,"柳生６丁目","根白石字荒田"]
[null,"桜ケ丘９丁目",null,null,"柳生７丁目","根白石字荒砥沢"]
[null,"桜ケ岡公園",null,null,"柳生字荒田","根白石字荒屋敷"]
[null,"三条町",null,null,"柳生字稲荷","根白石字石倉山"]
[null,"子平町",null,null,"柳生字上河原","根白石字石倉山官林"]
[null,"下愛子字青木",null,null,"柳生字川西","根白石字上田"]
[null,"下愛子字稲荷前",null,null,"柳生字北","根白石字上田北"]
[null,"下愛子字岩谷",null,null,"柳生字北原","根白石字上田堤頭東"]
[null,"下愛子字梅木",null,null,"柳生字沢目","根白石字上田堤下"]
[null,"下愛子字神下",null,null,"柳生字関場","根白石字上田西"]
[null,"下愛子字川辺",null,null,"柳生字台","根白石字上ノ宿"]
[null,"下愛子字観音",null,null,"柳生字台田","根白石字海老沼"]
[null,"下愛子字観音堂",null,null,"柳生字台畑","根白石字大堰下"]
[null,"下愛子字窪",null,null,"柳生字田中","根白石字小角屋敷"]
[null,"下愛子字志出",null,null,"柳生字土手外","根白石字小角屋敷前"]
[null,"下愛子字清水端",null,null,"柳生字野添","根白石字姥懐"]
[null,"下愛子字竹ノ花",null,null,"柳生字前原北","根白石字姥懐前"]
[null,"下愛子字立車",null,null,"柳生字前原西","根白石字姥懐前下"]
[null,"下愛子字舘",null,null,"柳生字前原南","根白石字柿木田"]
[null,"下愛子字田中",null,null,"柳生字松木","根白石字陰沼"]
[null,"下愛子字月橋",null,null,"柳生字南野添","根白石字陰沼北"]
[null,"下愛子字天神",null,null,"山田字岩崎","根白石字柏原"]
[null,"下愛子字戸内前",null,null,"山田字大石","根白石字学校前"]
[null,"下愛子字中原",null,null,"山田字欠ノ上前","根白石字蒲沢"]
[null,"下愛子字西風蕃山",null,null,"山田字御殿","根白石字蒲沢東"]
[null,"下愛子字二本松",null,null,"山田字新田堀下中","根白石字上川原"]
[null,"下愛子字白山",null,null,"山田字新田堀下南","根白石字上舘"]
[null,"下愛子字畑合",null,null,"山田字清太原","根白石字上花輪"]
[null,"下愛子字葉前場",null,null,"山田字竹ノ内前","根白石字上花輪前"]
[null,"下愛子字毘沙門",null,null,"山田字田中前","根白石字川添"]
[null,"下愛子字町",null,null,"山田字汚田通","根白石字河原田"]
[null,"下愛子字松ノ木下",null,null,"山田字旗立","根白石字河原田下"]
[null,"下愛子字峯岸前",null,null,"山田字船渡前","根白石字官林"]
[null,"下愛子字明神前",null,null,"山田字谷地前","根白石字君が代"]
[null,"下愛子字本木",null,null,"山田字山田山","根白石字経檀河原"]
[null,"下愛子字本木裏",null,null,"山田上ノ台町","根白石字車屋敷"]
[null,"下愛子字本木前",null,null,"山田北前町","根白石字笹坂東"]
[null,"下愛子字山岸",null,null,"山田自由ケ丘","根白石字清水屋敷"]
[null,"下愛子字横町前",null,null,"山田新町","根白石字下河原"]
[null,"昭和町",null,null,"山田本町","根白石字下花輪"]
[null,"西花苑１丁目",null,null,"閖上字境","根白石字下町"]
[null,"西花苑２丁目",null,null,"若葉町","根白石字新坂上"]
[null,"星陵町",null,null,null,"根白石字新田"]
[null,"台原１丁目",null,null,null,"根白石字新田南"]
[null,"台原２丁目",null,null,null,"根白石字菅沢"]
[null,"台原３丁目",null,null,null,"根白石字杉下"]
[null,"台原４丁目",null,null,null,"根白石字杉下後"]
[null,"台原５丁目",null,null,null,"根白石字杉下前"]
[null,"台原６丁目",null,null,null,"根白石字杉原"]
[null,"台原７丁目",null,null,null,"根白石字杉原上"]
[null,"台原森林公園",null,null,null,"根白石字杉原向"]
[null,"高野原１丁目",null,null,null,"根白石字寸針"]
[null,"高野原２丁目",null,null,null,"根白石字大六天下河添"]
[null,"高野原３丁目",null,null,null,"根白石字多賀屋敷"]
[null,"高野原４丁目",null,null,null,"根白石字館蔭"]
[null,"高松１丁目",null,null,null,"根白石字館蔭下"]
[null,"高松２丁目",null,null,null,"根白石字館下"]
[null,"高松３丁目",null,null,null,"根白石字団子坂下"]
[null,"滝道",null,null,null,"根白石字堤下"]
[null,"立町",null,null,null,"根白石字寺裏"]
[null,"中央１丁目",null,null,null,"根白石字寺崎"]
[null,"中央２丁目",null,null,null,"根白石字堂所岩下"]
[null,"中央３丁目",null,null,null,"根白石字堂所川底"]
[null,"中央４丁目",null,null,null,"根白石字堂所高田"]
[null,"千代田町",null,null,null,"根白石字堂所西沢"]
[null,"土樋１丁目",null,null,null,"根白石字堂所道下"]
[null,"堤通雨宮町",null,null,null,"根白石字堂所屋敷"]
[null,"堤町１丁目",null,null,null,"根白石字堂所山"]
[null,"堤町２丁目",null,null,null,"根白石字堂ノ沢"]
[null,"堤町３丁目",null,null,null,"根白石字堂ノ沢西"]
[null,"角五郎１丁目",null,null,null,"根白石字銅谷堤下"]
[null,"角五郎２丁目",null,null,null,"根白石字銅谷的場"]
[null,"東照宮１丁目",null,null,null,"根白石字銅谷明神下"]
[null,"東照宮２丁目",null,null,null,"根白石字銅谷屋敷"]
[null,"通町１丁目",null,null,null,"根白石字銅谷山"]
[null,"通町２丁目",null,null,null,"根白石字銅谷山ノ内堤頭"]
[null,"中江１丁目",null,null,null,"根白石字年川屋敷"]
[null,"中江２丁目",null,null,null,"根白石字中花輪"]
[null,"中山１丁目",null,null,null,"根白石字中花輪堀西"]
[null,"中山２丁目",null,null,null,"根白石字二百刈"]
[null,"中山３丁目",null,null,null,"根白石字八反田西"]
[null,"中山４丁目",null,null,null,"根白石字八反田東"]
[null,"中山５丁目",null,null,null,"根白石字花輪裏"]
[null,"中山６丁目",null,null,null,"根白石字花輪田"]
[null,"中山７丁目",null,null,null,"根白石字花輪細田"]
[null,"中山８丁目",null,null,null,"根白石字花輪前"]
[null,"中山９丁目",null,null,null,"根白石字花輪明神前"]
[null,"中山台１丁目",null,null,null,"根白石字花輪山"]
[null,"中山台２丁目",null,null,null,"根白石字花輪山下"]
[null,"中山台３丁目",null,null,null,"根白石字原田"]
[null,"中山台４丁目",null,null,null,"根白石字針生"]
[null,"中山台西",null,null,null,"根白石字針生前"]
[null,"中山吉成１丁目",null,null,null,"根白石字針生南"]
[null,"中山吉成２丁目",null,null,null,"根白石字針生山"]
[null,"中山吉成３丁目",null,null,null,"根白石字針生山ノ内樫山"]
[null,"新坂町",null,null,null,"根白石字判在家"]
[null,"西勝山",null,null,null,"根白石字判在家後"]
[null,"錦ケ丘１丁目",null,null,null,"根白石字判在家西"]
[null,"錦ケ丘２丁目",null,null,null,"根白石字判在家向河原"]
[null,"錦ケ丘３丁目",null,null,null,"根白石字判在家向河原下"]
[null,"錦ケ丘４丁目",null,null,null,"根白石字東鹿野"]
[null,"錦ケ丘５丁目",null,null,null,"根白石字東鹿野山下"]
[null,"錦ケ丘６丁目",null,null,null,"根白石字髭屋敷"]
[null,"錦ケ丘７丁目",null,null,null,"根白石字髭屋敷飛地"]
[null,"錦ケ丘８丁目",null,null,null,"根白石字平林庄司"]
[null,"錦ケ丘９丁目",null,null,null,"根白石字平林中村"]
[null,"錦町１丁目",null,null,null,"根白石字平林屋敷"]
[null,"錦町２丁目",null,null,null,"根白石字広表"]
[null,"ニツカ",null,null,null,"根白石字広表下"]
[null,"新川字石田",null,null,null,"根白石字広表中"]
[null,"新川字石橋",null,null,null,"根白石字広表淵頭"]
[null,"新川字井戸沢",null,null,null,"根白石字福沢"]
[null,"新川字柿下",null,null,null,"根白石字福沢後"]
[null,"新川字鹿野",null,null,null,"根白石字福沢川添"]
[null,"新川字神下",null,null,null,"根白石字福沢下"]
[null,"新川字上山際",null,null,null,"根白石字福沢館下"]
[null,"新川字北田",null,null,null,"根白石字古屋敷"]
[null,"新川字北野尻",null,null,null,"根白石字宝積寺前"]
[null,"新川字窪田",null,null,null,"根白石字前坂北"]
[null,"新川字佐手山",null,null,null,"根白石字前坂南"]
[null,"新川字清水頭",null,null,null,"根白石字町頭"]
[null,"新川字清水尻",null,null,null,"根白石字町尻道下"]
[null,"新川字下山際",null,null,null,"根白石字町西上"]
[null,"新川字関口",null,null,null,"根白石字町西下"]
[null,"新川字滝倉",null,null,null,"根白石字町西中"]
[null,"新川字岳山",null,null,null,"根白石字町東"]
[null,"新川字堤下",null,null,null,"根白石字紫山"]
[null,"新川字土手下",null,null,null,"根白石字薬師堂道西"]
[null,"新川字中村",null,null,null,"根白石字谷地"]
[null,"新川字中屋敷",null,null,null,"根白石字八千代"]
[null,"新川字中山田",null,null,null,"根白石字山神"]
[null,"新川字西又",null,null,null,"根白石字山田原"]
[null,"新川字野尻",null,null,null,"根白石字行木沢"]
[null,"新川字畑沢",null,null,null,"根白石字行木沢東"]
[null,"新川字初ノ小屋",null,null,null,"根白石字養賢堂"]
[null,"新川字早坂",null,null,null,"根白石字芳ノ沢"]
[null,"新川字早坂西",null,null,null,"根白石字六軒小路"]
[null,"新川字原田",null,null,null,"野村字愛宕"]
[null,"新川字深沢",null,null,null,"野村字鐙坂"]
[null,"新川字堀端",null,null,null,"野村字石保"]
[null,"新川字道下",null,null,null,"野村字板川"]
[null,"新川字水口",null,null,null,"野村字一本杉"]
[null,"新川字宮裏",null,null,null,"野村字入西河原"]
[null,"新川字八森",null,null,null,"野村字内林"]
[null,"支倉町",null,null,null,"野村字上台"]
[null,"八幡１丁目",null,null,null,"野村字上台前"]
[null,"八幡２丁目",null,null,null,"野村字上野"]
[null,"八幡３丁目",null,null,null,"野村字上野下"]
[null,"八幡４丁目",null,null,null,"野村字上野前"]
[null,"八幡５丁目",null,null,null,"野村字上野前中"]
[null,"八幡６丁目",null,null,null,"野村字大涛"]
[null,"八幡７丁目",null,null,null,"野村字桂島"]
[null,"葉山町",null,null,null,"野村字桂島東"]
[null,"東勝山１丁目",null,null,null,"野村字上西河原"]
[null,"東勝山２丁目",null,null,null,"野村字川ノ上"]
[null,"東勝山３丁目",null,null,null,"野村字川淵"]
[null,"広瀬町",null,null,null,"野村字川前"]
[null,"福沢町",null,null,null,"野村字源吉"]
[null,"藤松",null,null,null,"野村字小菅西"]
[null,"双葉ケ丘１丁目",null,null,null,"野村字小菅東"]
[null,"双葉ケ丘２丁目",null,null,null,"野村字小菅山"]
[null,"二日町",null,null,null,"野村字駒女沢"]
[null,"本町１丁目",null,null,null,"野村字西城"]
[null,"本町２丁目",null,null,null,"野村字才兵衛"]
[null,"本町３丁目",null,null,null,"野村字作蔵"]
[null,"水の森１丁目",null,null,null,"野村字沢ノ口"]
[null,"水の森２丁目",null,null,null,"野村字沢目"]
[null,"水の森３丁目",null,null,null,"野村字下西河原"]
[null,"水の森４丁目",null,null,null,"野村字新桂島"]
[null,"南吉成１丁目",null,null,null,"野村字新桂島前"]
[null,"南吉成２丁目",null,null,null,"野村字新堤下"]
[null,"南吉成３丁目",null,null,null,"野村字新田"]
[null,"南吉成４丁目",null,null,null,"野村字新馬場屋敷"]
[null,"南吉成５丁目",null,null,null,"野村字新林田"]
[null,"南吉成６丁目",null,null,null,"野村字新東沢"]
[null,"南吉成７丁目",null,null,null,"野村字新平山"]
[null,"みやぎ台１丁目",null,null,null,"野村字新平山後"]
[null,"みやぎ台２丁目",null,null,null,"野村字新松林"]
[null,"みやぎ台３丁目",null,null,null,"野村字新八木沢"]
[null,"みやぎ台４丁目",null,null,null,"野村字菅間前"]
[null,"みやぎ台５丁目",null,null,null,"野村字杉ノ内"]
[null,"宮町１丁目",null,null,null,"野村字千刈田"]
[null,"宮町２丁目",null,null,null,"野村字高森"]
[null,"宮町３丁目",null,null,null,"野村字太斉山"]
[null,"宮町４丁目",null,null,null,"野村字立田原"]
[null,"宮町５丁目",null,null,null,"野村字堤下"]
[null,"向田",null,null,null,"野村字天皇"]
[null,"茂庭字小畑山",null,null,null,"野村字天王前"]
[null,"茂庭字杉ノ沢",null,null,null,"野村字道心沢"]
[null,"茂庭字滝沢",null,null,null,"野村字筒岫"]
[null,"茂庭字立沢北",null,null,null,"野村字筒岫中"]
[null,"茂庭字立沢南",null,null,null,"野村字筒岫東"]
[null,"茂庭字綱木",null,null,null,"野村字筒岫前"]
[null,"茂庭字綱木裏山",null,null,null,"野村字筒岫屋敷"]
[null,"茂庭字綱木西",null,null,null,"野村字東原東"]
[null,"茂庭字綱木東",null,null,null,"野村字東原前"]
[null,"茂庭字綱木前山",null,null,null,"野村字東原屋敷"]
[null,"茂庭字寺下",null,null,null,"野村字中河原"]
[null,"茂庭字鳥屋",null,null,null,"野村字中島"]
[null,"茂庭字蕃山",null,null,null,"野村字中岫"]
[null,"茂庭字真里",null,null,null,"野村字中原"]
[null,"茂庭字松倉",null,null,null,"野村字長淵"]
[null,"茂庭字松山",null,null,null,"野村字名代"]
[null,"茂庭字湯ノ沢",null,null,null,"野村字西坂"]
[null,"山手町",null,null,null,"野村字西原"]
[null,"吉成１丁目",null,null,null,"野村字西原沢"]
[null,"吉成２丁目",null,null,null,"野村字仁平"]
[null,"吉成３丁目",null,null,null,"野村字登田"]
[null,"吉成台１丁目",null,null,null,"野村字野村"]
[null,"吉成台２丁目",null,null,null,"野村字野村西"]
[null,"臨済院",null,null,null,"野村字萩塚"]
[null,null,null,null,null,"野村字八幡前"]
[null,null,null,null,null,"野村字馬場屋敷"]
[null,null,null,null,null,"野村字林田"]
[null,null,null,null,null,"野村字原田"]
[null,null,null,null,null,"野村字東河原"]
[null,null,null,null,null,"野村字東村境"]
[null,null,null,null,null,"野村字吹附"]
[null,null,null,null,null,"野村字藤木"]
[null,null,null,null,null,"野村字舞台"]
[null,null,null,null,null,"野村字二重袋"]
[null,null,null,null,null,"野村字二重袋前"]
[null,null,null,null,null,"野村字古屋敷"]
[null,null,null,null,null,"野村字弁天"]
[null,null,null,null,null,"野村字前河原"]
[null,null,null,null,null,"野村字松林"]
[null,null,null,null,null,"野村字松林下"]
[null,null,null,null,null,"野村字丸山"]
[null,null,null,null,null,"野村字南河原"]
[null,null,null,null,null,"野村字明神後"]
[null,null,null,null,null,"野村字明神前"]
[null,null,null,null,null,"野村字本七北田"]
[null,null,null,null,null,"野村字守"]
[null,null,null,null,null,"野村字門前"]
[null,null,null,null,null,"野村字葉木沢上"]
[null,null,null,null,null,"野村字葉木沢下"]
[null,null,null,null,null,"野村字矢崎"]
[null,null,null,null,null,"野村字谷地"]
[null,null,null,null,null,"野村字山下"]
[null,null,null,null,null,"野村字山寺"]
[null,null,null,null,null,"東黒松"]
[null,null,null,null,null,"福岡字青木平"]
[null,null,null,null,null,"福岡字赤下"]
[null,null,null,null,null,"福岡字穴田"]
[null,null,null,null,null,"福岡字阿弥陀前"]
[null,null,null,null,null,"福岡字石田"]
[null,null,null,null,null,"福岡字石坊"]
[null,null,null,null,null,"福岡字泉"]
[null,null,null,null,null,"福岡字板橋"]
[null,null,null,null,null,"福岡字一本杉"]
[null,null,null,null,null,"福岡字上野原"]
[null,null,null,null,null,"福岡字鰻沢"]
[null,null,null,null,null,"福岡字永安寺官林"]
[null,null,null,null,null,"福岡字延寿"]
[null,null,null,null,null,"福岡字大沢"]
[null,null,null,null,null,"福岡字大畑"]
[null,null,null,null,null,"福岡字大畑原"]
[null,null,null,null,null,"福岡字大畑東"]
[null,null,null,null,null,"福岡字大畑前"]
[null,null,null,null,null,"福岡字大堀"]
[null,null,null,null,null,"福岡字大前通"]
[null,null,null,null,null,"福岡字大森"]
[null,null,null,null,null,"福岡字小倉"]
[null,null,null,null,null,"福岡字小山"]
[null,null,null,null,null,"福岡字欠ノ上"]
[null,null,null,null,null,"福岡字鍛冶袋"]
[null,null,null,null,null,"福岡字柏坊"]
[null,null,null,null,null,"福岡字柏坊前"]
[null,null,null,null,null,"福岡字学校裏"]
[null,null,null,null,null,"福岡字金畑"]
[null,null,null,null,null,"福岡字蟹子沢"]
[null,null,null,null,null,"福岡字鹿畑"]
[null,null,null,null,null,"福岡字釜ノ沢"]
[null,null,null,null,null,"福岡字上荒沢"]
[null,null,null,null,null,"福岡字上鼬原"]
[null,null,null,null,null,"福岡字上一本杉"]
[null,null,null,null,null,"福岡字上大沢"]
[null,null,null,null,null,"福岡字上大堀"]
[null,null,null,null,null,"福岡字上寿連原"]
[null,null,null,null,null,"福岡字上菅"]
[null,null,null,null,null,"福岡字上堰添"]
[null,null,null,null,null,"福岡字上鳥居原"]
[null,null,null,null,null,"福岡字上泥畑"]
[null,null,null,null,null,"福岡字上野中沢"]
[null,null,null,null,null,"福岡字上畑"]
[null,null,null,null,null,"福岡字上蒜"]
[null,null,null,null,null,"福岡字上朴陀羅"]
[null,null,null,null,null,"福岡字上屋敷"]
[null,null,null,null,null,"福岡字川欠"]
[null,null,null,null,null,"福岡字川崎"]
[null,null,null,null,null,"福岡字官林"]
[null,null,null,null,null,"福岡字木前"]
[null,null,null,null,null,"福岡字北泉"]
[null,null,null,null,null,"福岡字北柄火"]
[null,null,null,null,null,"福岡字北鎖"]
[null,null,null,null,null,"福岡字北高見"]
[null,null,null,null,null,"福岡字北長坂"]
[null,null,null,null,null,"福岡字北苦桃"]
[null,null,null,null,null,"福岡字北朴陀羅"]
[null,null,null,null,null,"福岡字北向"]
[null,null,null,null,null,"福岡字狐崎"]
[null,null,null,null,null,"福岡字切沢"]
[null,null,null,null,null,"福岡字切立"]
[null,null,null,null,null,"福岡字鎖"]
[null,null,null,null,null,"福岡字熊ノ沢"]
[null,null,null,null,null,"福岡字小家下"]
[null,null,null,null,null,"福岡字坂下"]
[null,null,null,null,null,"福岡字坂下前"]
[null,null,null,null,null,"福岡字酒屋前"]
[null,null,null,null,null,"福岡字沢目"]
[null,null,null,null,null,"福岡字下荒沢"]
[null,null,null,null,null,"福岡字下鼬原"]
[null,null,null,null,null,"福岡字下鎖"]
[null,null,null,null,null,"福岡字下泥畑"]
[null,null,null,null,null,"福岡字下野中沢"]
[null,null,null,null,null,"福岡字下蒜"]
[null,null,null,null,null,"福岡字寿連原"]
[null,null,null,null,null,"福岡字寿連原西"]
[null,null,null,null,null,"福岡字城ノ内"]
[null,null,null,null,null,"福岡字城ノ内裏"]
[null,null,null,null,null,"福岡字新小山"]
[null,null,null,null,null,"福岡字新堤下"]
[null,null,null,null,null,"福岡字新中在家"]
[null,null,null,null,null,"福岡字新林"]
[null,null,null,null,null,"福岡字菅ノ崎"]
[null,null,null,null,null,"福岡字堰下"]
[null,null,null,null,null,"福岡字堰添"]
[null,null,null,null,null,"福岡字堰堀下"]
[null,null,null,null,null,"福岡字台"]
[null,null,null,null,null,"福岡字大文字"]
[null,null,null,null,null,"福岡字高梨"]
[null,null,null,null,null,"福岡字高見"]
[null,null,null,null,null,"福岡字岳山"]
[null,null,null,null,null,"福岡字檀ノ原"]
[null,null,null,null,null,"福岡字長間前"]
[null,null,null,null,null,"福岡字堤下"]
[null,null,null,null,null,"福岡字寺下"]
[null,null,null,null,null,"福岡字照岡"]
[null,null,null,null,null,"福岡字天神"]
[null,null,null,null,null,"福岡字天神前"]
[null,null,null,null,null,"福岡字東泉寺前"]
[null,null,null,null,null,"福岡字堂林"]
[null,null,null,null,null,"福岡字外門"]
[null,null,null,null,null,"福岡字銅谷"]
[null,null,null,null,null,"福岡字中荒沢"]
[null,null,null,null,null,"福岡字中切立"]
[null,null,null,null,null,"福岡字中鎖"]
[null,null,null,null,null,"福岡字中在家"]
[null,null,null,null,null,"福岡字中菅"]
[null,null,null,null,null,"福岡字中鳥居原"]
[null,null,null,null,null,"福岡字中苦桃"]
[null,null,null,null,null,"福岡字中蒜"]
[null,null,null,null,null,"福岡字中朴陀羅"]
[null,null,null,null,null,"福岡字苦桃"]
[null,null,null,null,null,"福岡字苦桃新林"]
[null,null,null,null,null,"福岡字西石"]
[null,null,null,null,null,"福岡字西泉"]
[null,null,null,null,null,"福岡字西上野原"]
[null,null,null,null,null,"福岡字西苦桃"]
[null,null,null,null,null,"福岡字西朴陀羅"]
[null,null,null,null,null,"福岡字西松場"]
[null,null,null,null,null,"福岡字西森下"]
[null,null,null,null,null,"福岡字馬場"]
[null,null,null,null,null,"福岡字東石"]
[null,null,null,null,null,"福岡字東泉"]
[null,null,null,null,null,"福岡字東切立"]
[null,null,null,null,null,"福岡字東苦桃"]
[null,null,null,null,null,"福岡字東朴陀羅"]
[null,null,null,null,null,"福岡字平場"]
[null,null,null,null,null,"福岡字蒜但木"]
[null,null,null,null,null,"福岡字蒜但木向"]
[null,null,null,null,null,"福岡字吹付"]
[null,null,null,null,null,"福岡字藤沢"]
[null,null,null,null,null,"福岡字藤沢新官林"]
[null,null,null,null,null,"福岡字藤沢前"]
[null,null,null,null,null,"福岡字二又"]
[null,null,null,null,null,"福岡字麓"]
[null,null,null,null,null,"福岡字下手前"]
[null,null,null,null,null,"福岡字朴陀羅"]
[null,null,null,null,null,"福岡字細野"]
[null,null,null,null,null,"福岡字松場"]
[null,null,null,null,null,"福岡字南柄火"]
[null,null,null,null,null,"福岡字南切立"]
[null,null,null,null,null,"福岡字南鳥居原"]
[null,null,null,null,null,"福岡字南長坂"]
[null,null,null,null,null,"福岡字南原"]
[null,null,null,null,null,"福岡字宮田"]
[null,null,null,null,null,"福岡字向原"]
[null,null,null,null,null,"福岡字モッペイ"]
[null,null,null,null,null,"福岡字森下"]
[null,null,null,null,null,"福岡字屋敷"]
[null,null,null,null,null,"福岡字屋敷前道下"]
[null,null,null,null,null,"福岡字山下"]
[null,null,null,null,null,"福岡字湯沢"]
[null,null,null,null,null,"福岡字芳ノ沢"]
[null,null,null,null,null,"福岡字蓬田"]
[null,null,null,null,null,"福岡字雷神下"]
[null,null,null,null,null,"福岡字六淵"]
[null,null,null,null,null,"古内字入山田"]
[null,null,null,null,null,"古内字北"]
[null,null,null,null,null,"古内字坂下"]
[null,null,null,null,null,"古内字坂ノ上"]
[null,null,null,null,null,"古内字新坂の上"]
[null,null,null,null,null,"古内字新七北田川添"]
[null,null,null,null,null,"古内字新仁渡"]
[null,null,null,null,null,"古内字新古内浦"]
[null,null,null,null,null,"古内字新堀田"]
[null,null,null,null,null,"古内字杉ノ内下"]
[null,null,null,null,null,"古内字杉ノ内前"]
[null,null,null,null,null,"古内字高森"]
[null,null,null,null,null,"古内字糺"]
[null,null,null,null,null,"古内字七北田川添"]
[null,null,null,null,null,"古内字仁渡"]
[null,null,null,null,null,"古内字野合"]
[null,null,null,null,null,"古内字畑沢"]
[null,null,null,null,null,"古内字古内"]
[null,null,null,null,null,"古内字堀田上"]
[null,null,null,null,null,"古内字堀田下"]
[null,null,null,null,null,"古内字道添"]
[null,null,null,null,null,"古内字南"]
[null,null,null,null,null,"古内字宮下"]
[null,null,null,null,null,"古内字矢崎"]
[null,null,null,null,null,"朴沢字相ノ沢"]
[null,null,null,null,null,"朴沢字荒沢"]
[null,null,null,null,null,"朴沢字家下"]
[null,null,null,null,null,"朴沢字石田"]
[null,null,null,null,null,"朴沢字一ノ堰"]
[null,null,null,null,null,"朴沢字壱野々"]
[null,null,null,null,null,"朴沢字岩下"]
[null,null,null,null,null,"朴沢字後向"]
[null,null,null,null,null,"朴沢字梅田"]
[null,null,null,null,null,"朴沢字裏ノ原"]
[null,null,null,null,null,"朴沢字大原"]
[null,null,null,null,null,"朴沢字小田"]
[null,null,null,null,null,"朴沢字垣山"]
[null,null,null,null,null,"朴沢字柿山"]
[null,null,null,null,null,"朴沢字風穴"]
[null,null,null,null,null,"朴沢字風穴脇"]
[null,null,null,null,null,"朴沢字柏房"]
[null,null,null,null,null,"朴沢字上高野原"]
[null,null,null,null,null,"朴沢字上坂下"]
[null,null,null,null,null,"朴沢字上鳥居原"]
[null,null,null,null,null,"朴沢字神前"]
[null,null,null,null,null,"朴沢字上原"]
[null,null,null,null,null,"朴沢字上原向"]
[null,null,null,null,null,"朴沢字上原脇"]
[null,null,null,null,null,"朴沢字上屋敷"]
[null,null,null,null,null,"朴沢字狩集"]
[null,null,null,null,null,"朴沢字川添"]
[null,null,null,null,null,"朴沢字川原"]
[null,null,null,null,null,"朴沢字官林"]
[null,null,null,null,null,"朴沢字木戸脇"]
[null,null,null,null,null,"朴沢字経堂原"]
[null,null,null,null,null,"朴沢字行屋前"]
[null,null,null,null,null,"朴沢字草井原"]
[null,null,null,null,null,"朴沢字九ノ森"]
[null,null,null,null,null,"朴沢字久保"]
[null,null,null,null,null,"朴沢字窪田"]
[null,null,null,null,null,"朴沢字小林"]
[null,null,null,null,null,"朴沢字小原"]
[null,null,null,null,null,"朴沢字小原前"]
[null,null,null,null,null,"朴沢字小原脇"]
[null,null,null,null,null,"朴沢字小屋"]
[null,null,null,null,null,"朴沢字小屋森"]
[null,null,null,null,null,"朴沢字坂下"]
[null,null,null,null,null,"朴沢字猿岩"]
[null,null,null,null,null,"朴沢字沢"]
[null,null,null,null,null,"朴沢字沢ノ口"]
[null,null,null,null,null,"朴沢字地嶽"]
[null,null,null,null,null,"朴沢字志田中"]
[null,null,null,null,null,"朴沢字下高野原"]
[null,null,null,null,null,"朴沢字下田"]
[null,null,null,null,null,"朴沢字下平"]
[null,null,null,null,null,"朴沢字下田後"]
[null,null,null,null,null,"朴沢字下屋敷"]
[null,null,null,null,null,"朴沢字下屋敷脇"]
[null,null,null,null,null,"朴沢字十二神"]
[null,null,null,null,null,"朴沢字新鷹鳥屋"]
[null,null,null,null,null,"朴沢字新田"]
[null,null,null,null,null,"朴沢字新田脇"]
[null,null,null,null,null,"朴沢字新要害"]
[null,null,null,null,null,"朴沢字清八屋敷"]
[null,null,null,null,null,"朴沢字瀬木沢"]
[null,null,null,null,null,"朴沢字大堂谷地"]
[null,null,null,null,null,"朴沢字鷹繋"]
[null,null,null,null,null,"朴沢字鷹鳥屋"]
[null,null,null,null,null,"朴沢字檀ノ原"]
[null,null,null,null,null,"朴沢字寺山"]
[null,null,null,null,null,"朴沢字鳥居原"]
[null,null,null,null,null,"朴沢字鳥居原前"]
[null,null,null,null,null,"朴沢字永倉"]
[null,null,null,null,null,"朴沢字中小屋"]
[null,null,null,null,null,"朴沢字中在家"]
[null,null,null,null,null,"朴沢字中元屋敷"]
[null,null,null,null,null,"朴沢字二階"]
[null,null,null,null,null,"朴沢字西小屋"]
[null,null,null,null,null,"朴沢字西ノ脇"]
[null,null,null,null,null,"朴沢字西ノ脇後"]
[null,null,null,null,null,"朴沢字西ノ脇西"]
[null,null,null,null,null,"朴沢字西原"]
[null,null,null,null,null,"朴沢字西又"]
[null,null,null,null,null,"朴沢字沼平"]
[null,null,null,null,null,"朴沢字畑中前"]
[null,null,null,null,null,"朴沢字畑中脇"]
[null,null,null,null,null,"朴沢字八幡下"]
[null,null,null,null,null,"朴沢字八幡前"]
[null,null,null,null,null,"朴沢字花立"]
[null,null,null,null,null,"朴沢字原"]
[null,null,null,null,null,"朴沢字原前"]
[null,null,null,null,null,"朴沢字東瀬木沢"]
[null,null,null,null,null,"朴沢字東田"]
[null,null,null,null,null,"朴沢字東向"]
[null,null,null,null,null,"朴沢字人繰原"]
[null,null,null,null,null,"朴沢字平林"]
[null,null,null,null,null,"朴沢字朴沢畑"]
[null,null,null,null,null,"朴沢字細田"]
[null,null,null,null,null,"朴沢字堀田沢"]
[null,null,null,null,null,"朴沢字本郷"]
[null,null,null,null,null,"朴沢字本田"]
[null,null,null,null,null,"朴沢字的場"]
[null,null,null,null,null,"朴沢字的場裏"]
[null,null,null,null,null,"朴沢字的場前"]
[null,null,null,null,null,"朴沢字道合"]
[null,null,null,null,null,"朴沢字南"]
[null,null,null,null,null,"朴沢字宮床山"]
[null,null,null,null,null,"朴沢字向谷地"]
[null,null,null,null,null,"朴沢字向山"]
[null,null,null,null,null,"朴沢字山下"]
[null,null,null,null,null,"朴沢字山下前"]
[null,null,null,null,null,"朴沢字山添"]
[null,null,null,null,null,"朴沢字山田"]
[null,null,null,null,null,"朴沢字山田原"]
[null,null,null,null,null,"朴沢字山田向"]
[null,null,null,null,null,"朴沢字要害前"]
[null,null,null,null,null,"朴沢字横前"]
[null,null,null,null,null,"朴沢字芳ノ沢"]
[null,null,null,null,null,"朴沢字蘭山"]
[null,null,null,null,null,"歩坂町"]
[null,null,null,null,null,"本田町"]
[null,null,null,null,null,"松森字阿賀途"]
[null,null,null,null,null,"松森字赤沼"]
[null,null,null,null,null,"松森字阿比古"]
[null,null,null,null,null,"松森字戌亥沢"]
[null,null,null,null,null,"松森字岩久保"]
[null,null,null,null,null,"松森字後沢"]
[null,null,null,null,null,"松森字後田"]
[null,null,null,null,null,"松森字内町"]
[null,null,null,null,null,"松森字浦田"]
[null,null,null,null,null,"松森字岡本前"]
[null,null,null,null,null,"松森字岡本南"]
[null,null,null,null,null,"松森字鹿島"]
[null,null,null,null,null,"松森字上河原"]
[null,null,null,null,null,"松森字伽蘭"]
[null,null,null,null,null,"松森字河原"]
[null,null,null,null,null,"松森字小迫"]
[null,null,null,null,null,"松森字斉兵衛"]
[null,null,null,null,null,"松森字坂下"]
[null,null,null,null,null,"松森字刺松"]
[null,null,null,null,null,"松森字沢目"]
[null,null,null,null,null,"松森字下町"]
[null,null,null,null,null,"松森字下伽蘭"]
[null,null,null,null,null,"松森字下河原"]
[null,null,null,null,null,"松森字下台"]
[null,null,null,null,null,"松森字下中門"]
[null,null,null,null,null,"松森字下鼠堂"]
[null,null,null,null,null,"松森字城前"]
[null,null,null,null,null,"松森字陣ケ原"]
[null,null,null,null,null,"松森字陣ケ前"]
[null,null,null,null,null,"松森字新庄"]
[null,null,null,null,null,"松森字新田"]
[null,null,null,null,null,"松森字住吉"]
[null,null,null,null,null,"松森字関場"]
[null,null,null,null,null,"松森字堰堀"]
[null,null,null,null,null,"松森字台"]
[null,null,null,null,null,"松森字太子堂"]
[null,null,null,null,null,"松森字台谷地"]
[null,null,null,null,null,"松森字館"]
[null,null,null,null,null,"松森字田中"]
[null,null,null,null,null,"松森字堤下"]
[null,null,null,null,null,"松森字堂谷"]
[null,null,null,null,null,"松森字中河原"]
[null,null,null,null,null,"松森字長岫"]
[null,null,null,null,null,"松森字中道"]
[null,null,null,null,null,"松森字西沢"]
[null,null,null,null,null,"松森字鼠堂"]
[null,null,null,null,null,"松森字野々免"]
[null,null,null,null,null,"松森字八合"]
[null,null,null,null,null,"松森字東沢"]
[null,null,null,null,null,"松森字深田"]
[null,null,null,null,null,"松森字歩坂"]
[null,null,null,null,null,"松森字不動"]
[null,null,null,null,null,"松森字朴手"]
[null,null,null,null,null,"松森字本田"]
[null,null,null,null,null,"松森字前ケ沢"]
[null,null,null,null,null,"松森字前田"]
[null,null,null,null,null,"松森字前沼"]
[null,null,null,null,null,"松森字前谷地"]
[null,null,null,null,null,"松森字真米"]
[null,null,null,null,null,"松森字松木沢"]
[null,null,null,null,null,"松森字明神"]
[null,null,null,null,null,"松森字八沢"]
[null,null,null,null,null,"みずほ台"]
[null,null,null,null,null,"南中山１丁目"]
[null,null,null,null,null,"南中山２丁目"]
[null,null,null,null,null,"南中山３丁目"]
[null,null,null,null,null,"南中山４丁目"]
[null,null,null,null,null,"南中山５丁目"]
[null,null,null,null,null,"南中山６丁目"]
[null,null,null,null,null,"紫山１丁目"]
[null,null,null,null,null,"紫山２丁目"]
[null,null,null,null,null,"紫山３丁目"]
[null,null,null,null,null,"紫山４丁目"]
[null,null,null,null,null,"紫山５丁目"]
[null,null,null,null,null,"八乙女１丁目"]
[null,null,null,null,null,"八乙女２丁目"]
[null,null,null,null,null,"八乙女３丁目"]
[null,null,null,null,null,"八乙女３丁目"]
[null,null,null,null,null,"八乙女４丁目"]
[null,null,null,null,null,"八乙女中央１丁目"]
[null,null,null,null,null,"八乙女中央２丁目"]
[null,null,null,null,null,"八乙女中央３丁目"]
[null,null,null,null,null,"八乙女中央４丁目"]
[null,null,null,null,null,"八乙女中央５丁目"]
[null,null,null,null,null,"館１丁目"]
[null,null,null,null,null,"館２丁目"]
[null,null,null,null,null,"館３丁目"]
[null,null,null,null,null,"館４丁目"]
[null,null,null,null,null,"館５丁目"]
[null,null,null,null,null,"館６丁目"]
[null,null,null,null,null,"館７丁目"]
[null,null,null,null,null,"山の寺１丁目"]
[null,null,null,null,null,"山の寺２丁目"]
[null,null,null,null,null,"山の寺３丁目"]
[null,null,null,null,null,"友愛町"]